Workbook

Sheet Main
B10: 2022-01-05
B12: Sheet No. | C12: Template Name | D12: Summary
B13: 1 | C13: Future Intra | D13: For Intraday trading in F&O segment
B14: 2 | C14: Cash Intra | D14: For Intraday trading in cash market segment
B15: 3 | C15: Mid-cap Intra | D15: For Intraday trading in Mid-cap stocks
B16: 4 | C16: Bulk Deals | D16: Reveals Bulk Deals carried on NSE & BSE
B17: 5 | C17: Call Tracker
K27: `

Sheet Future Intra
M5: Back to Main Page
A6: FOR INTRA DAY TRADING | L6: =Main!B10 -> 2022-01-05
A9: Sr.no | B9: Sector | C9: Scrip | D9: Expiry Date | E9: CLOSE RATE | F9: Pivot Point | G9: Supports | J9: Resistances
E10: Point | F10: Point | G10: S1 | H10: S2 | I10: S3 | J10: R1 | K10: R2 | L10: R3 | M10: HIGH | N10: LOW | O10: OI | P10: % Change in OI
A11: 1 | B11: Index | C11: BANKNIFTY | D11: 2022-01-27 | E11: 36977.35 | F11: 36830.95 | G11: 36638.50 | H11: 36299.65 | I11: 36107.20 | J11: 37169.80 | K11: 37362.25 | L11: 37701.10 | M11: 37023.4 | N11: 36492.1 | O11: 2324675 | P11: -8.85%
A12: 2 | B12: Index | C12: NIFTY | D12: 2022-01-27 | E12: 17846.75 | F12: 17783.32 | G12: 17695.83 | H12: 17544.92 | I12: 17457.43 | J12: 17934.23 | K12: 18021.72 | L12: 18172.63 | M12: 17870.8 | N12: 17632.4 | O12: 11483850 | P12: -0.57%
A13: 3 | B13: Index | C13: FINNIFTY | D13: 2022-01-25 | E13: 18022.05 | F13: 17960.35 | G13: 17886.70 | H13: 17751.35 | I13: 17677.70 | J13: 18095.70 | K13: 18169.35 | L13: 18304.70 | M13: 18034 | N13: 17825 | O13: 1680 | P13: -20.75%
A14: 4 | B14: Chemical | C14: AARTIIND | D14: 2022-01-27 | E14: 997.20 | F14: 1004.20 | G14: 978.55 | H14: 959.90 | I14: 934.25 | J14: 1022.85 | K14: 1048.50 | L14: 1067.15 | M14: 1029.85 | N14: 985.55 | O14: 2368100 | P14: 12.29%
A15: 5 | B15: Pharma | C15: ABBOTINDIA | D15: 2022-01-27 | E15: 19090.90 | F15: 19195.43 | G15: 18895.47 | H15: 18700.03 | I15: 18400.07 | J15: 19390.87 | K15: 19690.83 | L15: 19886.27 | M15: 19495.4 | N15: 19000 | O15: 32900 | P15: 9.67%
A16: 6 | B16: Others | C16: ABCAPITAL | D16: 2022-01-27 | E16: 131.55 | F16: 130.92 | G16: 128.13 | H16: 124.72 | I16: 121.93 | J16: 134.33 | K16: 137.12 | L16: 140.53 | M16: 133.7 | N16: 127.5 | O16: 8588800 | P16: 15.43%
A17: 7 | B17: Textile | C17: ABFRL | D17: 2022-01-27 | E17: 287.55 | F17: 283.47 | G17: 277.88 | H17: 268.22 | I17: 262.63 | J17: 293.13 | K17: 298.72 | L17: 308.38 | M17: 289.05 | N17: 273.8 | O17: 10964200 | P17: 7.47%
A18: 8 | B18: Cement | C18: ACC | D18: 2022-01-27 | E18: 2233.35 | F18: 2243.65 | G18: 2214.70 | H18: 2196.05 | I18: 2167.10 | J18: 2262.30 | K18: 2291.25 | L18: 2309.90 | M18: 2272.6 | N18: 2225 | O18: 2584250 | P18: -3.53%
A19: 9 | B19: Others | C19: ADANIENT | D19: 2022-01-27 | E19: 1725.55 | F19: 1722.87 | G19: 1708.23 | H19: 1690.92 | I19: 1676.28 | J19: 1740.18 | K19: 1754.82 | L19: 1772.13 | M19: 1737.5 | N19: 1705.55 | O19: 20948000 | P19: -0.26%
A20: 10 | B20: Others | C20: ADANIPORTS | D20: 2022-01-27 | E20: 742.30 | F20: 742.47 | G20: 735.23 | H20: 728.17 | I20: 720.93 | J20: 749.53 | K20: 756.77 | L20: 763.83 | M20: 749.7 | N20: 735.4 | O20: 86671250 | P20: 0.08%
A21: 11 | B21: Pharma | C21: ALKEM | D21: 2022-01-27 | E21: 3623.95 | F21: 3664.27 | G21: 3569.68 | H21: 3515.42 | I21: 3420.83 | J21: 3718.53 | K21: 3813.12 | L21: 3867.38 | M21: 3758.85 | N21: 3610 | O21: 326400 | P21: 1.43%
A22: 12 | B22: Automobile | C22: AMARAJABAT | D22: 2022-01-27 | E22: 639.70 | F22: 638.98 | G22: 634.72 | H22: 629.73 | I22: 625.47 | J22: 643.97 | K22: 648.23 | L22: 653.22 | M22: 643.25 | N22: 634 | O22: 8856000 | P22: -0.56%
A23: 13 | B23: Cement | C23: AMBUJACEM | D23: 2022-01-27 | E23: 391.00 | F23: 389.07 | G23: 386.23 | H23: 381.47 | I23: 378.63 | J23: 393.83 | K23: 396.67 | L23: 401.43 | M23: 391.9 | N23: 384.3 | O23: 13050000 | P23: -0.26%
A24: 14 | B24: Pharma | C24: APLLTD | D24: 2022-01-27 | E24: 841.05 | F24: 831.50 | G24: 816.55 | H24: 792.05 | I24: 777.10 | J24: 856.00 | K24: 870.95 | L24: 895.45 | M24: 846.45 | N24: 807 | O24: 1722000 | P24: 5.72%
A25: 15 | B25: Others | C25: APOLLOHOSP | D25: 2022-01-27 | E25: 4989.50 | F25: 4994.78 | G25: 4937.02 | H25: 4884.53 | I25: 4826.77 | J25: 5047.27 | K25: 5105.03 | L25: 5157.52 | M25: 5052.55 | N25: 4942.3 | O25: 2303125 | P25: 0.52%
A26: 16 | B26: Automobile | C26: APOLLOTYRE | D26: 2022-01-27 | E26: 226.10 | F26: 225.60 | G26: 222.20 | H26: 218.30 | I26: 214.90 | J26: 229.50 | K26: 232.90 | L26: 236.80 | M26: 229 | N26: 221.7 | O26: 10782500 | P26: 6.65%
A27: 17 | B27: Automobile | C27: ASHOKLEY | D27: 2022-01-27 | E27: 127.60 | F27: 127.53 | G27: 126.42 | H27: 125.23 | I27: 124.12 | J27: 128.72 | K27: 129.83 | L27: 131.02 | M27: 128.65 | N27: 126.35 | O27: 34942500 | P27: -3.78%
A28: 18 | B28: FMCG | C28: ASIANPAINT | D28: 2022-01-27 | E28: 3473.95 | F28: 3460.13 | G28: 3436.52 | H28: 3399.08 | I28: 3375.47 | J28: 3497.57 | K28: 3521.18 | L28: 3558.62 | M28: 3483.75 | N28: 3422.7 | O28: 3486300 | P28: 3.18%
A29: 19 | B29: Others | C29: ASTRAL | D29: 2022-01-27 | E29: 2408.05 | F29: 2392.72 | G29: 2330.33 | H29: 2252.62 | I29: 2190.23 | J29: 2470.43 | K29: 2532.82 | L29: 2610.53 | M29: 2455.1 | N29: 2315 | O29: 786775 | P29: 37.42%
A30: 20 | B30: Others | C30: ATUL | D30: 2022-01-27 | E30: 9352.30 | F30: 9255.07 | G30: 9137.18 | H30: 8922.07 | I30: 8804.18 | J30: 9470.18 | K30: 9588.07 | L30: 9803.18 | M30: 9372.95 | N30: 9039.95 | O30: 56475 | P30: 15.14%
A31: 21 | B31: Banking | C31: AUBANK | D31: 2022-01-27 | E31: 1098.40 | F31: 1094.07 | G31: 1080.93 | H31: 1063.47 | I31: 1050.33 | J31: 1111.53 | K31: 1124.67 | L31: 1142.13 | M31: 1107.2 | N31: 1076.6 | O31: 3516000 | P31: 1.53%
A32: 22 | B32: Pharma | C32: AUROPHARMA | D32: 2022-01-27 | E32: 724.15 | F32: 728.32 | G32: 718.68 | H32: 713.22 | I32: 703.58 | J32: 733.78 | K32: 743.42 | L32: 748.88 | M32: 737.95 | N32: 722.85 | O32: 14882250 | P32: -0.98%
A33: 23 | B33: Banking | C33: AXISBANK | D33: 2022-01-27 | E33: 710.55 | F33: 708.17 | G33: 704.33 | H33: 698.12 | I33: 694.28 | J33: 714.38 | K33: 718.22 | L33: 724.43 | M33: 712 | N33: 701.95 | O33: 47620800 | P33: -2.28%
A34: 24 | B34: Automobile | C34: BAJAJ-AUTO | D34: 2022-01-27 | E34: 3298.50 | F34: 3300.13 | G34: 3276.87 | H34: 3255.23 | I34: 3231.97 | J34: 3321.77 | K34: 3345.03 | L34: 3366.67 | M34: 3323.4 | N34: 3278.5 | O34: 3123250 | P34: -1.77%
A35: 25 | B35: Finance | C35: BAJAJFINSV | D35: 2022-01-27 | E35: 17171.10 | F35: 17104.58 | G35: 16981.52 | H35: 16791.93 | I35: 16668.87 | J35: 17294.17 | K35: 17417.23 | L35: 17606.82 | M35: 17227.65 | N35: 16915 | O35: 573750 | P35: -1.09%
A36: 26 | B36: Finance | C36: BAJFINANCE | D36: 2022-01-27 | E36: 7372.65 | F36: 7346.08 | G36: 7289.67 | H36: 7206.68 | I36: 7150.27 | J36: 7429.07 | K36: 7485.48 | L36: 7568.47 | M36: 7402.5 | N36: 7263.1 | O36: 4026125 | P36: 1.98%
A37: 27 | B37: Automobile | C37: BALKRISIND | D37: 2022-01-27 | E37: 2322.10 | F37: 2329.37 | G37: 2293.78 | H37: 2265.47 | I37: 2229.88 | J37: 2357.68 | K37: 2393.27 | L37: 2421.58 | M37: 2364.95 | N37: 2301.05 | O37: 1382000 | P37: -0.89%
A38: 28 | B38: Others | C38: BALRAMCHIN | D38: 2022-01-27 | E38: 428.95 | F38: 410.97 | G38: 389.98 | H38: 351.02 | I38: 330.03 | J38: 449.93 | K38: 470.92 | L38: 509.88 | M38: 431.95 | N38: 372 | O38: 3875200 | P38: 285.67%
A39: 29 | B39: Banking | C39: BANDHANBNK | D39: 2022-01-27 | E39: 255.85 | F39: 257.52 | G39: 251.23 | H39: 246.62 | I39: 240.33 | J39: 262.13 | K39: 268.42 | L39: 273.03 | M39: 263.8 | N39: 252.9 | O39: 26731800 | P39: 10.56%
A40: 30 | B40: Banking | C40: BANKBARODA | D40: 2022-01-27 | E40: 84.30 | F40: 84.25 | G40: 83.45 | H40: 82.60 | I40: 81.80 | J40: 85.10 | K40: 85.90 | L40: 86.75 | M40: 85.05 | N40: 83.4 | O40: 141581700 | P40: 0.46%
A41: 31 | B41: FMCG | C41: BATAINDIA | D41: 2022-01-27 | E41: 1855.05 | F41: 1858.68 | G41: 1837.37 | H41: 1819.68 | I41: 1798.37 | J41: 1876.37 | K41: 1897.68 | L41: 1915.37 | M41: 1880 | N41: 1841 | O41: 1544950 | P41: 2.26%
A42: 32 | B42: Capital_Goods | C42: BEL | D42: 2022-01-27 | E42: 217.40 | F42: 216.42 | G42: 212.83 | H42: 208.27 | I42: 204.68 | J42: 220.98 | K42: 224.57 | L42: 229.13 | M42: 220 | N42: 211.85 | O42: 22811400 | P42: 6.32%
A43: 33 | B43: FMCG | C43: BERGEPAINT | D43: 2022-01-27 | E43: 785.45 | F43: 781.53 | G43: 776.07 | H43: 766.68 | I43: 761.22 | J43: 790.92 | K43: 796.38 | L43: 805.77 | M43: 787 | N43: 772.15 | O43: 4811400 | P43: -3.91%
A44: 34 | B44: Automobile | C44: BHARATFORG | D44: 2022-01-27 | E44: 718.35 | F44: 719.10 | G44: 711.40 | H44: 704.45 | I44: 696.75 | J44: 726.05 | K44: 733.75 | L44: 740.70 | M44: 726.8 | N44: 712.15 | O44: 7648500 | P44: -4.46%
A45: 35 | B45: Telecom | C45: BHARTIARTL | D45: 2022-01-27 | E45: 698.60 | F45: 698.28 | G45: 692.22 | H45: 685.83 | I45: 679.77 | J45: 704.67 | K45: 710.73 | L45: 717.12 | M45: 704.35 | N45: 691.9 | O45: 66400250 | P45: -3.12%
A46: 36 | B46: Capital_Goods | C46: BHEL | D46: 2022-01-27 | E46: 60.40 | F46: 60.42 | G46: 59.43 | H46: 58.47 | I46: 57.48 | J46: 61.38 | K46: 62.37 | L46: 63.33 | M46: 61.4 | N46: 59.45 | O46: 115206000 | P46: -1.60%
A47: 37 | B47: Pharma | C47: BIOCON | D47: 2022-01-27 | E47: 366.25 | F47: 366.12 | G47: 360.63 | H47: 355.02 | I47: 349.53 | J47: 371.73 | K47: 377.22 | L47: 382.83 | M47: 371.6 | N47: 360.5 | O47: 18009000 | P47: 3.12%
A48: 38 | B48: Automobile | C48: BOSCHLTD | D48: 2022-01-27 | E48: 17249.60 | F48: 17266.57 | G48: 17034.13 | H48: 16818.67 | I48: 16586.23 | J48: 17482.03 | K48: 17714.47 | L48: 17929.93 | M48: 17499 | N48: 17051.1 | O48: 165650 | P48: -0.81%
A49: 39 | B49: Oil_Gas | C49: BPCL | D49: 2022-01-27 | E49: 387.50 | F49: 389.85 | G49: 384.05 | H49: 380.60 | I49: 374.80 | J49: 393.30 | K49: 399.10 | L49: 402.55 | M49: 395.65 | N49: 386.4 | O49: 28351800 | P49: 3.14%
A50: 40 | B50: FMCG | C50: BRITANNIA | D50: 2022-01-27 | E50: 3649.15 | F50: 3643.42 | G50: 3633.43 | H50: 3617.72 | I50: 3607.73 | J50: 3659.13 | K50: 3669.12 | L50: 3684.83 | M50: 3653.4 | N50: 3627.7 | O50: 1254800 | P50: -0.29%
A51: 41 | B51: Technology | C51: BSOFT | D51: 2022-01-27 | E51: 562.35 | F51: 565.25 | G51: 555.50 | H51: 548.65 | I51: 538.90 | J51: 572.10 | K51: 581.85 | L51: 588.70 | M51: 575 | N51: 558.4 | O51: 4742400 | P51: -1.35%
A52: 42 | B52: Pharma | C52: CADILAHC | D52: 2022-01-27 | E52: 466.90 | F52: 471.15 | G52: 462.10 | H52: 457.30 | I52: 448.25 | J52: 475.95 | K52: 485.00 | L52: 489.80 | M52: 480.2 | N52: 466.35 | O52: 18032300 | P52: 2.37%
A53: 43 | B53: Banking | C53: CANBK | D53: 2022-01-27 | E53: 207.40 | F53: 207.27 | G53: 204.93 | H53: 202.47 | I53: 200.13 | J53: 209.73 | K53: 212.07 | L53: 214.53 | M53: 209.6 | N53: 204.8 | O53: 53740800 | P53: -0.51%
A54: 44 | B54: Finance | C54: CANFINHOME | D54: 2022-01-27 | E54: 582.65 | F54: 578.95 | G54: 573.90 | H54: 565.15 | I54: 560.10 | J54: 587.70 | K54: 592.75 | L54: 601.50 | M54: 584 | N54: 570.2 | O54: 3919500 | P54: 0.35%
A55: 45 | B55: Others | C55: CHAMBLFERT | D55: 2022-01-27 | E55: 409.20 | F55: 406.87 | G55: 401.73 | H55: 394.27 | I55: 389.13 | J55: 414.33 | K55: 419.47 | L55: 426.93 | M55: 412 | N55: 399.4 | O55: 2115000 | P55: 1.59%
A56: 46 | B56: Finance | C56: CHOLAFIN | D56: 2022-01-27 | E56: 547.20 | F56: 544.15 | G56: 539.55 | H56: 531.90 | I56: 527.30 | J56: 551.80 | K56: 556.40 | L56: 564.05 | M56: 548.75 | N56: 536.5 | O56: 7771250 | P56: -1.57%
A57: 47 | B57: Pharma | C57: CIPLA | D57: 2022-01-27 | E57: 928.65 | F57: 930.83 | G57: 922.82 | H57: 916.98 | I57: 908.97 | J57: 936.67 | K57: 944.68 | L57: 950.52 | M57: 938.85 | N57: 925 | O57: 10159500 | P57: 2.12%
A58: 48 | B58: Others | C58: COALINDIA | D58: 2022-01-27 | E58: 153.65 | F58: 154.52 | G58: 152.23 | H58: 150.82 | I58: 148.53 | J58: 155.93 | K58: 158.22 | L58: 159.63 | M58: 156.8 | N58: 153.1 | O58: 45389400 | P58: 0.98%
A59: 49 | B59: Technology | C59: COFORGE | D59: 2022-01-27 | E59: 6070.70 | F59: 6063.17 | G59: 5995.63 | H59: 5920.57 | I59: 5853.03 | J59: 6138.23 | K59: 6205.77 | L59: 6280.83 | M59: 6130.7 | N59: 5988.1 | O59: 671500 | P59: 3.24%
A60: 50 | B60: FMCG | C60: COLPAL | D60: 2022-01-27 | E60: 1472.80 | F60: 1470.88 | G60: 1463.92 | H60: 1455.03 | I60: 1448.07 | J60: 1479.77 | K60: 1486.73 | L60: 1495.62 | M60: 1477.85 | N60: 1462 | O60: 3188150 | P60: -1.29%
A61: 51 | B61: Others | C61: CONCOR | D61: 2022-01-27 | E61: 629.60 | F61: 628.70 | G61: 620.00 | H61: 610.40 | I61: 601.70 | J61: 638.30 | K61: 647.00 | L61: 656.60 | M61: 637.4 | N61: 619.1 | O61: 6319200 | P61: 0.84%
A62: 52 | B62: Others | C62: COROMANDEL | D62: 2022-01-27 | E62: 773.90 | F62: 773.43 | G62: 759.87 | H62: 745.83 | I62: 732.27 | J62: 787.47 | K62: 801.03 | L62: 815.07 | M62: 787 | N62: 759.4 | O62: 1214375 | P62: 9.03%
A63: 53 | B63: Capital_Goods | C63: CROMPTON | D63: 2022-01-27 | E63: 438.10 | F63: 439.90 | G63: 435.40 | H63: 432.70 | I63: 428.20 | J63: 442.60 | K63: 447.10 | L63: 449.80 | M63: 444.4 | N63: 437.2 | O63: 2106500 | P63: 1.92%
A64: 54 | B64: Banking | C64: CUB | D64: 2022-01-27 | E64: 142.20 | F64: 141.20 | G64: 139.85 | H64: 137.50 | I64: 136.15 | J64: 143.55 | K64: 144.90 | L64: 147.25 | M64: 142.55 | N64: 138.85 | O64: 9237800 | P64: -7.46%
A65: 55 | B65: Capital_Goods | C65: CUMMINSIND | D65: 2022-01-27 | E65: 952.60 | F65: 951.58 | G65: 941.07 | H65: 929.53 | I65: 919.02 | J65: 963.12 | K65: 973.63 | L65: 985.17 | M65: 962.1 | N65: 940.05 | O65: 1020600 | P65: -8.05%
A66: 56 | B66: FMCG | C66: DABUR | D66: 2022-01-27 | E66: 576.95 | F66: 578.03 | G66: 572.47 | H66: 567.98 | I66: 562.42 | J66: 582.52 | K66: 588.08 | L66: 592.57 | M66: 583.6 | N66: 573.55 | O66: 10522500 | P66: 4.58%
A67: 57 | B67: Cement | C67: DALBHARAT | D67: 2022-01-27 | E67: 1880.55 | F67: 1884.87 | G67: 1860.83 | H67: 1841.12 | I67: 1817.08 | J67: 1904.58 | K67: 1928.62 | L67: 1948.33 | M67: 1908.9 | N67: 1865.15 | O67: 550500 | P67: 1.90%
A68: 58 | B68: Chemical | C68: DEEPAKNTR | D68: 2022-01-27 | E68: 2523.75 | F68: 2531.02 | G68: 2498.93 | H68: 2474.12 | I68: 2442.03 | J68: 2555.83 | K68: 2587.92 | L68: 2612.73 | M68: 2563.1 | N68: 2506.2 | O68: 2221500 | P68: -0.35%
A69: 59 | B69: Others | C69: DELTACORP | D69: 2022-01-27 | E69: 259.45 | F69: 258.75 | G69: 252.00 | H69: 244.55 | I69: 237.80 | J69: 266.20 | K69: 272.95 | L69: 280.40 | M69: 265.5 | N69: 251.3 | O69: 16760100 | P69: -1.31%
A70: 60 | B70: Pharma | C70: DIVISLAB | D70: 2022-01-27 | E70: 4644.45 | F70: 4660.38 | G70: 4606.77 | H70: 4569.08 | I70: 4515.47 | J70: 4698.07 | K70: 4751.68 | L70: 4789.37 | M70: 4714 | N70: 4622.7 | O70: 2397900 | P70: 0.70%
A71: 61 | B71: Others | C71: DIXON | D71: 2022-01-27 | E71: 5509.60 | F71: 5513.30 | G71: 5453.45 | H71: 5397.30 | I71: 5337.45 | J71: 5569.45 | K71: 5629.30 | L71: 5685.45 | M71: 5573.15 | N71: 5457.15 | O71: 434875 | P71: 3.54%
A72: 62 | B72: Realty | C72: DLF | D72: 2022-01-27 | E72: 395.50 | F72: 396.17 | G72: 390.63 | H72: 385.77 | I72: 380.23 | J72: 401.03 | K72: 406.57 | L72: 411.43 | M72: 401.7 | N72: 391.3 | O72: 27627600 | P72: 0.41%
A73: 63 | B73: Pharma | C73: DRREDDY | D73: 2022-01-27 | E73: 4851.35 | F73: 4876.57 | G73: 4816.83 | H73: 4782.32 | I73: 4722.58 | J73: 4911.08 | K73: 4970.82 | L73: 5005.33 | M73: 4936.3 | N73: 4842.05 | O73: 2227625 | P73: 0.17%
A74: 64 | B74: Automobile | C74: EICHERMOT | D74: 2022-01-27 | E74: 2708.70 | F74: 2711.12 | G74: 2688.68 | H74: 2668.67 | I74: 2646.23 | J74: 2731.13 | K74: 2753.57 | L74: 2773.58 | M74: 2733.55 | N74: 2691.1 | O74: 2524900 | P74: -10.57%
A75: 65 | B75: Automobile | C75: ESCORTS | D75: 2022-01-27 | E75: 1903.65 | F75: 1903.83 | G75: 1895.12 | H75: 1886.58 | I75: 1877.87 | J75: 1912.37 | K75: 1921.08 | L75: 1929.62 | M75: 1912.55 | N75: 1895.3 | O75: 5379000 | P75: 2.85%
A76: 66 | B76: Automobile | C76: EXIDEIND | D76: 2022-01-27 | E76: 170.65 | F76: 170.58 | G76: 169.37 | H76: 168.08 | I76: 166.87 | J76: 171.87 | K76: 173.08 | L76: 174.37 | M76: 171.8 | N76: 169.3 | O76: 23144400 | P76: -1.59%
A77: 67 | B77: Banking | C77: FEDERALBNK | D77: 2022-01-27 | E77: 88.70 | F77: 88.32 | G77: 87.58 | H77: 86.47 | I77: 85.73 | J77: 89.43 | K77: 90.17 | L77: 91.28 | M77: 89.05 | N77: 87.2 | O77: 97290000 | P77: -0.79%
A78: 68 | B78: Technology | C78: FSL | D78: 2022-01-27 | E78: 186.80 | F78: 187.15 | G78: 183.85 | H78: 180.90 | I78: 177.60 | J78: 190.10 | K78: 193.40 | L78: 196.35 | M78: 190.45 | N78: 184.2 | O78: 9529000 | P78: -1.37%
A79: 69 | B79: Oil_Gas | C79: GAIL | D79: 2022-01-27 | E79: 133.30 | F79: 133.33 | G79: 131.92 | H79: 130.53 | I79: 129.12 | J79: 134.72 | K79: 136.13 | L79: 137.52 | M79: 134.75 | N79: 131.95 | O79: 40565000 | P79: -2.26%
A80: 70 | B80: Pharma | C80: GLENMARK | D80: 2022-01-27 | E80: 519.50 | F80: 522.23 | G80: 515.47 | H80: 511.43 | I80: 504.67 | J80: 526.27 | K80: 533.03 | L80: 537.07 | M80: 529 | N80: 518.2 | O80: 8833150 | P80: -0.05%
A81: 71 | B81: Infrastructure | C81: GMRINFRA | D81: 2022-01-27 | E81: 48.40 | F81: 47.90 | G81: 46.90 | H81: 45.40 | I81: 44.40 | J81: 49.40 | K81: 50.40 | L81: 51.90 | M81: 48.9 | N81: 46.4 | O81: 129262500 | P81: -2.68%
A82: 72 | B82: Others | C82: GNFC | D82: 2022-01-27 | E82: 469.20 | F82: 462.35 | G82: 446.90 | H82: 424.60 | I82: 409.15 | J82: 484.65 | K82: 500.10 | L82: 522.40 | M82: 477.8 | N82: 440.05 | O82: 1856400 | P82: 113.13%
A83: 73 | B83: FMCG | C83: GODREJCP | D83: 2022-01-27 | E83: 950.90 | F83: 950.45 | G83: 935.95 | H83: 921.00 | I83: 906.50 | J83: 965.40 | K83: 979.90 | L83: 994.85 | M83: 964.95 | N83: 935.5 | O83: 5426000 | P83: 0.74%
A84: 74 | B84: Realty | C84: GODREJPROP | D84: 2022-01-27 | E84: 1894.70 | F84: 1898.58 | G84: 1872.17 | H84: 1849.63 | I84: 1823.22 | J84: 1921.12 | K84: 1947.53 | L84: 1970.07 | M84: 1925 | N84: 1876.05 | O84: 3252600 | P84: 1.17%
A85: 75 | B85: Pharma | C85: GRANULES | D85: 2022-01-27 | E85: 327.05 | F85: 332.08 | G85: 319.17 | H85: 311.28 | I85: 298.37 | J85: 339.97 | K85: 352.88 | L85: 360.77 | M85: 345 | N85: 324.2 | O85: 14284800 | P85: 5.77%
A86: 76 | B86: Cement | C86: GRASIM | D86: 2022-01-27 | E86: 1695.35 | F86: 1685.87 | G86: 1672.08 | H86: 1648.82 | I86: 1635.03 | J86: 1709.13 | K86: 1722.92 | L86: 1746.18 | M86: 1699.65 | N86: 1662.6 | O86: 12237425 | P86: -1.41%
A87: 77 | B87: Oil_Gas | C87: GSPL | D87: 2022-01-27 | E87: 300.45 | F87: 300.73 | G87: 297.17 | H87: 293.88 | I87: 290.32 | J87: 304.02 | K87: 307.58 | L87: 310.87 | M87: 304.3 | N87: 297.45 | O87: 889100 | P87: 2.95%
A88: 78 | B88: Oil_Gas | C88: GUJGASLTD | D88: 2022-01-27 | E88: 651.25 | F88: 648.83 | G88: 644.72 | H88: 638.18 | I88: 634.07 | J88: 655.37 | K88: 659.48 | L88: 666.02 | M88: 652.95 | N88: 642.3 | O88: 2442500 | P88: -0.51%
A89: 79 | B89: Others | C89: HAL | D89: 2022-01-27 | E89: 1255.95 | F89: 1255.28 | G89: 1239.52 | H89: 1223.08 | I89: 1207.32 | J89: 1271.72 | K89: 1287.48 | L89: 1303.92 | M89: 1271.05 | N89: 1238.85 | O89: 2954500 | P89: 2.27%
A90: 80 | B90: Capital_Goods | C90: HAVELLS | D90: 2022-01-27 | E90: 1409.65 | F90: 1407.07 | G90: 1395.63 | H90: 1381.62 | I90: 1370.18 | J90: 1421.08 | K90: 1432.52 | L90: 1446.53 | M90: 1418.5 | N90: 1393.05 | O90: 3338000 | P90: 2.52%
A91: 81 | B91: Technology | C91: HCLTECH | D91: 2022-01-27 | E91: 1326.25 | F91: 1319.37 | G91: 1308.18 | H91: 1290.12 | I91: 1278.93 | J91: 1337.43 | K91: 1348.62 | L91: 1366.68 | M91: 1330.55 | N91: 1301.3 | O91: 17336200 | P91: 1.63%
A92: 82 | B92: Finance | C92: HDFC | D92: 2022-01-27 | E92: 2679.50 | F92: 2663.75 | G92: 2644.55 | H92: 2609.60 | I92: 2590.40 | J92: 2698.70 | K92: 2717.90 | L92: 2752.85 | M92: 2682.95 | N92: 2628.8 | O92: 13092000 | P92: -0.14%
A93: 83 | B93: Finance | C93: HDFCAMC | D93: 2022-01-27 | E93: 2479.95 | F93: 2474.98 | G93: 2463.97 | H93: 2447.98 | I93: 2436.97 | J93: 2490.97 | K93: 2501.98 | L93: 2517.97 | M93: 2486 | N93: 2459 | O93: 3153600 | P93: 0.12%
A94: 84 | B94: Banking | C94: HDFCBANK | D94: 2022-01-27 | E94: 1531.20 | F94: 1525.70 | G94: 1516.50 | H94: 1501.80 | I94: 1492.60 | J94: 1540.40 | K94: 1549.60 | L94: 1564.30 | M94: 1534.9 | N94: 1511 | O94: 35130700 | P94: 1.70%
A95: 85 | B95: Finance | C95: HDFCLIFE | D95: 2022-01-27 | E95: 656.20 | F95: 655.63 | G95: 652.82 | H95: 649.43 | I95: 646.62 | J95: 659.02 | K95: 661.83 | L95: 665.22 | M95: 658.45 | N95: 652.25 | O95: 19959500 | P95: 1.28%
A96: 86 | B96: Automobile | C96: HEROMOTOCO | D96: 2022-01-27 | E96: 2496.10 | F96: 2493.08 | G96: 2481.07 | H96: 2466.03 | I96: 2454.02 | J96: 2508.12 | K96: 2520.13 | L96: 2535.17 | M96: 2505.1 | N96: 2478.05 | O96: 4354800 | P96: 0.12%
A97: 87 | B97: Metals | C97: HINDALCO | D97: 2022-01-27 | E97: 478.20 | F97: 478.22 | G97: 473.58 | H97: 468.97 | I97: 464.33 | J97: 482.83 | K97: 487.47 | L97: 492.08 | M97: 482.85 | N97: 473.6 | O97: 29172275 | P97: 0.25%
A98: 88 | B98: Metals | C98: HINDCOPPER | D98: 2022-01-27 | E98: 134.15 | F98: 133.05 | G98: 130.60 | H98: 127.05 | I98: 124.60 | J98: 136.60 | K98: 139.05 | L98: 142.60 | M98: 135.5 | N98: 129.5 | O98: 7215400 | P98: 121.08%
A99: 89 | B99: Oil_Gas | C99: HINDPETRO | D99: 2022-01-27 | E99: 299.40 | F99: 299.17 | G99: 296.28 | H99: 293.17 | I99: 290.28 | J99: 302.28 | K99: 305.17 | L99: 308.28 | M99: 302.05 | N99: 296.05 | O99: 11178000 | P99: 0.93%
A100: 90 | B100: FMCG | C100: HINDUNILVR | D100: 2022-01-27 | E100: 2406.25 | F100: 2392.92 | G100: 2374.48 | H100: 2342.72 | I100: 2324.28 | J100: 2424.68 | K100: 2443.12 | L100: 2474.88 | M100: 2411.35 | N100: 2361.15 | O100: 8931900 | P100: -4.02%
A101: 91 | B101: Others | C101: HONAUT | D101: 2022-01-27 | E101: 42459.45 | F101: 42321.47 | G101: 41862.98 | H101: 41266.52 | I101: 40808.03 | J101: 42917.93 | K101: 43376.42 | L101: 43972.88 | M101: 42779.95 | N101: 41725 | O101: 4890 | P101: 32.52%
A102: 92 | B102: Finance | C102: IBULHSGFIN | D102: 2022-01-27 | E102: 218.90 | F102: 220.17 | G102: 215.53 | H102: 212.17 | I102: 207.53 | J102: 223.53 | K102: 228.17 | L102: 231.53 | M102: 224.8 | N102: 216.8 | O102: 33638100 | P102: 5.85%
A103: 93 | B103: Banking | C103: ICICIBANK | D103: 2022-01-27 | E103: 776.00 | F103: 774.35 | G103: 767.90 | H103: 759.80 | I103: 753.35 | J103: 782.45 | K103: 788.90 | L103: 797.00 | M103: 780.8 | N103: 766.25 | O103: 78116500 | P103: -1.08%
A104: 94 | B104: Finance | C104: ICICIGI | D104: 2022-01-27 | E104: 1430.65 | F104: 1430.22 | G104: 1418.48 | H104: 1406.32 | I104: 1394.58 | J104: 1442.38 | K104: 1454.12 | L104: 1466.28 | M104: 1441.95 | N104: 1418.05 | O104: 3052350 | P104: -0.84%
A105: 95 | B105: Finance | C105: ICICIPRULI | D105: 2022-01-27 | E105: 571.90 | F105: 570.62 | G105: 567.28 | H105: 562.67 | I105: 559.33 | J105: 575.23 | K105: 578.57 | L105: 583.18 | M105: 573.95 | N105: 566 | O105: 5529750 | P105: -2.67%
A106: 96 | B106: Telecom | C106: IDEA | D106: 2022-01-27 | E106: 15.40 | F106: 15.52 | G106: 15.13 | H106: 14.87 | I106: 14.48 | J106: 15.78 | K106: 16.17 | L106: 16.43 | M106: 15.9 | N106: 15.25 | O106: 846370000 | P106: 2.01%
A107: 97 | B107: Finance | C107: IDFC | D107: 2022-01-27 | E107: 62.80 | F107: 63.13 | G107: 61.97 | H107: 61.13 | I107: 59.97 | J107: 63.97 | K107: 65.13 | L107: 65.97 | M107: 64.3 | N107: 62.3 | O107: 46930000 | P107: 5.96%
A108: 98 | B108: Banking | C108: IDFCFIRSTB | D108: 2022-01-27 | E108: 49.55 | F108: 49.60 | G108: 48.85 | H108: 48.15 | I108: 47.40 | J108: 50.30 | K108: 51.05 | L108: 51.75 | M108: 50.35 | N108: 48.9 | O108: 149905500 | P108: 1.62%
A109: 99 | B109: Others | C109: IEX | D109: 2022-01-27 | E109: 263.00 | F109: 262.40 | G109: 259.45 | H109: 255.90 | I109: 252.95 | J109: 265.95 | K109: 268.90 | L109: 272.45 | M109: 265.35 | N109: 258.85 | O109: 39195000 | P109: 4.71%
A110: 100 | B110: Oil_Gas | C110: IGL | D110: 2022-01-27 | E110: 472.25 | F110: 473.83 | G110: 468.07 | H110: 463.88 | I110: 458.12 | J110: 478.02 | K110: 483.78 | L110: 487.97 | M110: 479.6 | N110: 469.65 | O110: 11053625 | P110: 6.03%
A111: 101 | B111: Infrastructure | C111: INDHOTEL | D111: 2022-01-27 | E111: 185.35 | F111: 185.63 | G111: 182.92 | H111: 180.48 | I111: 177.77 | J111: 188.07 | K111: 190.78 | L111: 193.22 | M111: 188.35 | N111: 183.2 | O111: 14479200 | P111: 0.08%
A112: 102 | B112: Cement | C112: INDIACEM | D112: 2022-01-27 | E112: 201.10 | F112: 201.00 | G112: 198.75 | H112: 196.40 | I112: 194.15 | J112: 203.35 | K112: 205.60 | L112: 207.95 | M112: 203.25 | N112: 198.65 | O112: 11324500 | P112: 0.49%
A113: 103 | B113: Others | C113: INDIAMART | D113: 2022-01-27 | E113: 6638.95 | F113: 6617.07 | G113: 6524.13 | H113: 6409.32 | I113: 6316.38 | J113: 6731.88 | K113: 6824.82 | L113: 6939.63 | M113: 6710 | N113: 6502.25 | O113: 237300 | P113: -1.68%
A114: 104 | B114: Others | C114: INDIGO | D114: 2022-01-27 | E114: 2045.15 | F114: 2039.48 | G114: 2010.97 | H114: 1976.78 | I114: 1948.27 | J114: 2073.67 | K114: 2102.18 | L114: 2136.37 | M114: 2068 | N114: 2005.3 | O114: 2753000 | P114: 3.74%
A115: 105 | B115: Banking | C115: INDUSINDBK | D115: 2022-01-27 | E115: 909.00 | F115: 910.17 | G115: 897.98 | H115: 886.97 | I115: 874.78 | J115: 921.18 | K115: 933.37 | L115: 944.38 | M115: 922.35 | N115: 899.15 | O115: 28404900 | P115: 2.64%
A116: 106 | B116: Telecom | C116: INDUSTOWER | D116: 2022-01-27 | E116: 255.45 | F116: 253.23 | G116: 248.22 | H116: 240.98 | I116: 235.97 | J116: 260.47 | K116: 265.48 | L116: 272.72 | M116: 258.25 | N116: 246 | O116: 16018800 | P116: 0.99%
A117: 107 | B117: Technology | C117: INFY | D117: 2022-01-27 | E117: 1905.65 | F117: 1900.45 | G117: 1889.40 | H117: 1873.15 | I117: 1862.10 | J117: 1916.70 | K117: 1927.75 | L117: 1944.00 | M117: 1911.5 | N117: 1884.2 | O117: 29804700 | P117: 0.46%
A118: 108 | B118: Oil_Gas | C118: IOC | D118: 2022-01-27 | E118: 114.55 | F118: 114.58 | G118: 113.67 | H118: 112.78 | I118: 111.87 | J118: 115.47 | K118: 116.38 | L118: 117.27 | M118: 115.5 | N118: 113.7 | O118: 46254000 | P118: 1.66%
A119: 109 | B119: Pharma | C119: IPCALAB | D119: 2022-01-27 | E119: 2176.45 | F119: 2186.13 | G119: 2158.37 | H119: 2140.28 | I119: 2112.52 | J119: 2204.22 | K119: 2231.98 | L119: 2250.07 | M119: 2213.9 | N119: 2168.05 | O119: 1277325 | P119: -1.36%
A120: 110 | B120: Others | C120: IRCTC | D120: 2022-01-27 | E120: 852.35 | F120: 852.35 | G120: 847.05 | H120: 841.75 | I120: 836.45 | J120: 857.65 | K120: 862.95 | L120: 868.25 | M120: 857.65 | N120: 847.05 | O120: 8311625 | P120: -0.81%
A121: 111 | B121: FMCG | C121: ITC | D121: 2022-01-27 | E121: 221.00 | F121: 221.02 | G121: 219.78 | H121: 218.57 | I121: 217.33 | J121: 222.23 | K121: 223.47 | L121: 224.68 | M121: 222.25 | N121: 219.8 | O121: 225900800 | P121: 0.06%
A122: 112 | B122: Metals | C122: JINDALSTEL | D122: 2022-01-27 | E122: 388.75 | F122: 387.90 | G122: 383.60 | H122: 378.45 | I122: 374.15 | J122: 393.05 | K122: 397.35 | L122: 402.50 | M122: 392.2 | N122: 382.75 | O122: 34237500 | P122: -0.59%
A123: 113 | B123: Cement | C123: JKCEMENT | D123: 2022-01-27 | E123: 3492.05 | F123: 3503.97 | G123: 3458.08 | H123: 3424.12 | I123: 3378.23 | J123: 3537.93 | K123: 3583.82 | L123: 3617.78 | M123: 3549.85 | N123: 3470 | O123: 288050 | P123: -1.56%
A124: 114 | B124: Metals | C124: JSWSTEEL | D124: 2022-01-27 | E124: 673.00 | F124: 671.90 | G124: 666.80 | H124: 660.60 | I124: 655.50 | J124: 678.10 | K124: 683.20 | L124: 689.40 | M124: 677 | N124: 665.7 | O124: 40817250 | P124: -0.99%
A125: 115 | B125: Others | C125: JUBLFOOD | D125: 2022-01-27 | E125: 3623.00 | F125: 3632.50 | G125: 3583.45 | H125: 3543.90 | I125: 3494.85 | J125: 3672.05 | K125: 3721.10 | L125: 3760.65 | M125: 3681.55 | N125: 3592.95 | O125: 1835500 | P125: 3.61%
A126: 116 | B126: Banking | C126: KOTAKBANK | D126: 2022-01-27 | E126: 1856.15 | F126: 1844.97 | G126: 1830.23 | H126: 1804.32 | I126: 1789.58 | J126: 1870.88 | K126: 1885.62 | L126: 1911.53 | M126: 1859.7 | N126: 1819.05 | O126: 14548800 | P126: -5.23%
A127: 117 | B127: Finance | C127: L&TFH | D127: 2022-01-27 | E127: 79.55 | F127: 79.50 | G127: 78.75 | H127: 77.95 | I127: 77.20 | J127: 80.30 | K127: 81.05 | L127: 81.85 | M127: 80.25 | N127: 78.7 | O127: 62691100 | P127: 0.88%
A128: 118 | B128: Others | C128: LALPATHLAB | D128: 2022-01-27 | E128: 3834.75 | F128: 3846.80 | G128: 3805.95 | H128: 3777.15 | I128: 3736.30 | J128: 3875.60 | K128: 3916.45 | L128: 3945.25 | M128: 3887.65 | N128: 3818 | O128: 454000 | P128: -9.06%
A129: 119 | B129: Pharma | C129: LAURUSLABS | D129: 2022-01-27 | E129: 520.55 | F129: 523.50 | G129: 512.05 | H129: 503.55 | I129: 492.10 | J129: 532.00 | K129: 543.45 | L129: 551.95 | M129: 534.95 | N129: 515 | O129: 3926700 | P129: 1.80%
A130: 120 | B130: Finance | C130: LICHSGFIN | D130: 2022-01-27 | E130: 380.10 | F130: 380.10 | G130: 375.70 | H130: 371.30 | I130: 366.90 | J130: 384.50 | K130: 388.90 | L130: 393.30 | M130: 384.5 | N130: 375.7 | O130: 12864000 | P130: 1.07%
A131: 121 | B131: Capital_Goods | C131: LT | D131: 2022-01-27 | E131: 1944.25 | F131: 1939.42 | G131: 1927.83 | H131: 1911.42 | I131: 1899.83 | J131: 1955.83 | K131: 1967.42 | L131: 1983.83 | M131: 1951 | N131: 1923 | O131: 12575250 | P131: 0.74%
A132: 122 | B132: Technology | C132: LTI | D132: 2022-01-27 | E132: 7599.25 | F132: 7551.52 | G132: 7480.73 | H132: 7362.22 | I132: 7291.43 | J132: 7670.03 | K132: 7740.82 | L132: 7859.33 | M132: 7622.3 | N132: 7433 | O132: 688050 | P132: 6.60%
A133: 123 | B133: Technology | C133: LTTS | D133: 2022-01-27 | E133: 5941.00 | F133: 5862.17 | G133: 5750.28 | H133: 5559.57 | I133: 5447.68 | J133: 6052.88 | K133: 6164.77 | L133: 6355.48 | M133: 5974.05 | N133: 5671.45 | O133: 648200 | P133: 7.35%
A134: 124 | B134: Pharma | C134: LUPIN | D134: 2022-01-27 | E134: 934.25 | F134: 940.23 | G134: 926.47 | H134: 918.68 | I134: 904.92 | J134: 948.02 | K134: 961.78 | L134: 969.57 | M134: 954 | N134: 932.45 | O134: 6924100 | P134: 2.08%
A135: 125 | B135: Automobile | C135: M&M | D135: 2022-01-27 | E135: 835.85 | F135: 836.55 | G135: 829.10 | H135: 822.35 | I135: 814.90 | J135: 843.30 | K135: 850.75 | L135: 857.50 | M135: 844 | N135: 829.8 | O135: 10943100 | P135: 0.59%
A136: 126 | B136: Finance | C136: M&MFIN | D136: 2022-01-27 | E136: 153.25 | F136: 153.48 | G136: 151.32 | H136: 149.38 | I136: 147.22 | J136: 155.42 | K136: 157.58 | L136: 159.52 | M136: 155.65 | N136: 151.55 | O136: 28860000 | P136: 3.43%
A137: 127 | B137: Finance | C137: MANAPPURAM | D137: 2022-01-27 | E137: 165.55 | F137: 166.60 | G137: 163.10 | H137: 160.65 | I137: 157.15 | J137: 169.05 | K137: 172.55 | L137: 175.00 | M137: 170.1 | N137: 164.15 | O137: 18921000 | P137: 3.41%
A138: 128 | B138: FMCG | C138: MARICO | D138: 2022-01-27 | E138: 502.85 | F138: 503.88 | G138: 498.17 | H138: 493.48 | I138: 487.77 | J138: 508.57 | K138: 514.28 | L138: 518.97 | M138: 509.6 | N138: 499.2 | O138: 8168000 | P138: 9.51%
A139: 129 | B139: Automobile | C139: MARUTI | D139: 2022-01-27 | E139: 7633.85 | F139: 7608.92 | G139: 7557.98 | H139: 7482.12 | I139: 7431.18 | J139: 7684.78 | K139: 7735.72 | L139: 7811.58 | M139: 7659.85 | N139: 7533.05 | O139: 2160900 | P139: -1.90%
A140: 130 | B140: FMCG | C140: MCDOWELL-N | D140: 2022-01-27 | E140: 915.00 | F140: 910.27 | G140: 900.63 | H140: 886.27 | I140: 876.63 | J140: 924.63 | K140: 934.27 | L140: 948.63 | M140: 919.9 | N140: 895.9 | O140: 15786250 | P140: 1.19%
A141: 131 | B141: Others | C141: MCX | D141: 2022-01-27 | E141: 1633.35 | F141: 1632.42 | G141: 1614.83 | H141: 1596.32 | I141: 1578.73 | J141: 1650.93 | K141: 1668.52 | L141: 1687.03 | M141: 1650 | N141: 1613.9 | O141: 1783600 | P141: 2.89%
A142: 132 | B142: Pharma | C142: METROPOLIS | D142: 2022-01-27 | E142: 3446.10 | F142: 3444.68 | G142: 3415.77 | H142: 3385.43 | I142: 3356.52 | J142: 3475.02 | K142: 3503.93 | L142: 3534.27 | M142: 3473.6 | N142: 3414.35 | O142: 521000 | P142: -1.85%
A143: 133 | B143: Finance | C143: MFSL | D143: 2022-01-27 | E143: 1025.50 | F143: 1025.47 | G143: 1008.98 | H143: 992.47 | I143: 975.98 | J143: 1041.98 | K143: 1058.47 | L143: 1074.98 | M143: 1041.95 | N143: 1008.95 | O143: 1339000 | P143: 5.59%
A144: 134 | B144: Oil_Gas | C144: MGL | D144: 2022-01-27 | E144: 873.15 | F144: 876.48 | G144: 866.67 | H144: 860.18 | I144: 850.37 | J144: 882.97 | K144: 892.78 | L144: 899.27 | M144: 886.3 | N144: 870 | O144: 4561800 | P144: 0.70%
A145: 135 | B145: Technology | C145: MINDTREE | D145: 2022-01-27 | E145: 4801.45 | F145: 4809.15 | G145: 4738.30 | H145: 4675.15 | I145: 4604.30 | J145: 4872.30 | K145: 4943.15 | L145: 5006.30 | M145: 4880 | N145: 4746 | O145: 2508000 | P145: 2.12%
A146: 136 | B146: Automobile | C146: MOTHERSUMI | D146: 2022-01-27 | E146: 225.50 | F146: 225.80 | G146: 223.70 | H146: 221.90 | I146: 219.80 | J146: 227.60 | K146: 229.70 | L146: 231.50 | M146: 227.9 | N146: 224 | O146: 26775000 | P146: -1.01%
A147: 137 | B147: Technology | C147: MPHASIS | D147: 2022-01-27 | E147: 3412.40 | F147: 3424.05 | G147: 3372.35 | H147: 3332.30 | I147: 3280.60 | J147: 3464.10 | K147: 3515.80 | L147: 3555.85 | M147: 3475.75 | N147: 3384 | O147: 1751575 | P147: 2.93%
A148: 138 | B148: Automobile | C148: MRF | D148: 2022-01-27 | E148: 74094.00 | F148: 73936.43 | G148: 73601.57 | H148: 73109.13 | I148: 72774.27 | J148: 74428.87 | K148: 74763.73 | L148: 75256.17 | M148: 74271.3 | N148: 73444 | O148: 57720 | P148: -1.82%
A149: 139 | B149: Finance | C149: MUTHOOTFIN | D149: 2022-01-27 | E149: 1538.60 | F149: 1539.65 | G149: 1525.40 | H149: 1512.20 | I149: 1497.95 | J149: 1552.85 | K149: 1567.10 | L149: 1580.30 | M149: 1553.9 | N149: 1526.45 | O149: 3341250 | P149: -1.37%
A150: 140 | B150: Others | C150: NAM-INDIA | D150: 2022-01-27 | E150: 357.35 | F150: 356.55 | G150: 354.50 | H150: 351.65 | I150: 349.60 | J150: 359.40 | K150: 361.45 | L150: 364.30 | M150: 358.6 | N150: 353.7 | O150: 3619200 | P150: -2.84%
A151: 141 | B151: Metals | C151: NATIONALUM | D151: 2022-01-27 | E151: 102.60 | F151: 102.67 | G151: 100.93 | H151: 99.27 | I151: 97.53 | J151: 104.33 | K151: 106.07 | L151: 107.73 | M151: 104.4 | N151: 101 | O151: 99645500 | P151: 0.83%
A152: 142 | B152: Others | C152: NAUKRI | D152: 2022-01-27 | E152: 5619.00 | F152: 5622.95 | G152: 5556.05 | H152: 5493.10 | I152: 5426.20 | J152: 5685.90 | K152: 5752.80 | L152: 5815.75 | M152: 5689.85 | N152: 5560 | O152: 1122750 | P152: -0.75%
A153: 143 | B153: Chemical | C153: NAVINFLUOR | D153: 2022-01-27 | E153: 4130.60 | F153: 4166.07 | G153: 4087.13 | H153: 4043.67 | I153: 3964.73 | J153: 4209.53 | K153: 4288.47 | L153: 4331.93 | M153: 4245 | N153: 4122.6 | O153: 367425 | P153: -2.27%
A154: 144 | B154: Others | C154: NBCC | D154: 2022-01-27 | E154: 46.15 | F154: 46.45 | G154: 45.65 | H154: 45.15 | I154: 44.35 | J154: 46.95 | K154: 47.75 | L154: 48.25 | M154: 47.25 | N154: 45.95 | O154: 9636000 | P154: 24.88%
A155: 145 | B155: FMCG | C155: NESTLEIND | D155: 2022-01-27 | E155: 19997.45 | F155: 19919.45 | G155: 19791.00 | H155: 19584.55 | I155: 19456.10 | J155: 20125.90 | K155: 20254.35 | L155: 20460.80 | M155: 20047.9 | N155: 19713 | O155: 308000 | P155: 0.79%
A156: 146 | B156: Metals | C156: NMDC | D156: 2022-01-27 | E156: 136.15 | F156: 135.93 | G156: 134.77 | H156: 133.38 | I156: 132.22 | J156: 137.32 | K156: 138.48 | L156: 139.87 | M156: 137.1 | N156: 134.55 | O156: 79535700 | P156: 0.20%
A157: 147 | B157: Power | C157: NTPC | D157: 2022-01-27 | E157: 131.80 | F157: 129.85 | G157: 127.70 | H157: 123.60 | I157: 121.45 | J157: 133.95 | K157: 136.10 | L157: 140.20 | M157: 132 | N157: 125.75 | O157: 56504100 | P157: -3.02%
A158: 148 | B158: Realty | C158: OBEROIRLTY | D158: 2022-01-27 | E158: 898.85 | F158: 899.90 | G158: 885.95 | H158: 873.05 | I158: 859.10 | J158: 912.80 | K158: 926.75 | L158: 939.65 | M158: 913.85 | N158: 887 | O158: 2933700 | P158: 4.00%
A159: 149 | B159: Technology | C159: OFSS | D159: 2022-01-27 | E159: 4090.60 | F159: 4071.07 | G159: 4033.93 | H159: 3977.27 | I159: 3940.13 | J159: 4127.73 | K159: 4164.87 | L159: 4221.53 | M159: 4108.2 | N159: 4014.4 | O159: 696625 | P159: -2.72%
A160: 150 | B160: Oil_Gas | C160: ONGC | D160: 2022-01-27 | E160: 148.25 | F160: 147.17 | G160: 145.18 | H160: 142.12 | I160: 140.13 | J160: 150.23 | K160: 152.22 | L160: 155.28 | M160: 149.15 | N160: 144.1 | O160: 33949300 | P160: 5.78%
A161: 151 | B161: Textile | C161: PAGEIND | D161: 2022-01-27 | E161: 41074.45 | F161: 41133.80 | G161: 40823.75 | H161: 40573.05 | I161: 40263.00 | J161: 41384.50 | K161: 41694.55 | L161: 41945.25 | M161: 41443.85 | N161: 40883.1 | O161: 80940 | P161: 2.43%
A162: 152 | B162: Pharma | C162: PEL | D162: 2022-01-27 | E162: 2690.95 | F162: 2693.65 | G162: 2665.75 | H162: 2640.55 | I162: 2612.65 | J162: 2718.85 | K162: 2746.75 | L162: 2771.95 | M162: 2721.55 | N162: 2668.45 | O162: 3135825 | P162: 0.52%
A163: 153 | B163: Technology | C163: PERSISTENT | D163: 2022-01-27 | E163: 4861.35 | F163: 4874.18 | G163: 4828.22 | H163: 4795.08 | I163: 4749.12 | J163: 4907.32 | K163: 4953.28 | L163: 4986.42 | M163: 4920.15 | N163: 4841.05 | O163: 445500 | P163: 2.91%
A164: 154 | B164: Oil_Gas | C164: PETRONET | D164: 2022-01-27 | E164: 219.25 | F164: 219.58 | G164: 217.77 | H164: 216.28 | I164: 214.47 | J164: 221.07 | K164: 222.88 | L164: 224.37 | M164: 221.4 | N164: 218.1 | O164: 18624000 | P164: 2.04%
A165: 155 | B165: Finance | C165: PFC | D165: 2022-01-27 | E165: 123.55 | F165: 123.60 | G165: 122.55 | H165: 121.55 | I165: 120.50 | J165: 124.60 | K165: 125.65 | L165: 126.65 | M165: 124.65 | N165: 122.6 | O165: 40207000 | P165: 2.03%
A166: 156 | B166: Pharma | C166: PFIZER | D166: 2022-01-27 | E166: 5089.85 | F166: 5118.80 | G166: 5051.10 | H166: 5012.35 | I166: 4944.65 | J166: 5157.55 | K166: 5225.25 | L166: 5264.00 | M166: 5186.5 | N166: 5080.05 | O166: 148000 | P166: 4.87%
A167: 157 | B167: FMCG | C167: PIDILITIND | D167: 2022-01-27 | E167: 2603.25 | F167: 2567.63 | G167: 2526.62 | H167: 2449.98 | I167: 2408.97 | J167: 2644.27 | K167: 2685.28 | L167: 2761.92 | M167: 2608.65 | N167: 2491 | O167: 2104750 | P167: 2.68%
A168: 158 | B168: Chemical | C168: PIIND | D168: 2022-01-27 | E168: 3028.15 | F168: 3043.53 | G168: 2993.12 | H168: 2958.08 | I168: 2907.67 | J168: 3078.57 | K168: 3128.98 | L168: 3164.02 | M168: 3093.95 | N168: 3008.5 | O168: 1618500 | P168: 0.50%
A169: 159 | B169: Banking | C169: PNB | D169: 2022-01-27 | E169: 38.50 | F169: 38.48 | G169: 38.12 | H169: 37.73 | I169: 37.37 | J169: 38.87 | K169: 39.23 | L169: 39.62 | M169: 38.85 | N169: 38.1 | O169: 264864000 | P169: 0.55%
A170: 160 | B170: Others | C170: POLYCAB | D170: 2022-01-27 | E170: 2471.00 | F170: 2478.62 | G170: 2450.33 | H170: 2429.67 | I170: 2401.38 | J170: 2499.28 | K170: 2527.57 | L170: 2548.23 | M170: 2506.9 | N170: 2457.95 | O170: 543900 | P170: -0.71%
A171: 161 | B171: Power | C171: POWERGRID | D171: 2022-01-27 | E171: 211.55 | F171: 210.45 | G171: 207.10 | H171: 202.65 | I171: 199.30 | J171: 214.90 | K171: 218.25 | L171: 222.70 | M171: 213.8 | N171: 206 | O171: 26974314 | P171: -5.86%
A172: 162 | B172: Media | C172: PVR | D172: 2022-01-27 | E172: 1351.95 | F172: 1351.98 | G172: 1325.97 | H172: 1299.98 | I172: 1273.97 | J172: 1377.97 | K172: 1403.98 | L172: 1429.97 | M172: 1378 | N172: 1326 | O172: 2890921 | P172: 1.86%
A173: 163 | B173: Others | C173: RAIN | D173: 2022-01-27 | E173: 244.30 | F173: 242.23 | G173: 235.22 | H173: 226.13 | I173: 219.12 | J173: 251.32 | K173: 258.33 | L173: 267.42 | M173: 249.25 | N173: 233.15 | O173: 2927500 | P173: 78.78%
A174: 164 | B174: Cement | C174: RAMCOCEM | D174: 2022-01-27 | E174: 1026.40 | F174: 1026.13 | G174: 1017.02 | H174: 1007.63 | I174: 998.52 | J174: 1035.52 | K174: 1044.63 | L174: 1054.02 | M174: 1035.25 | N174: 1016.75 | O174: 1904000 | P174: -3.36%
A175: 165 | B175: Banking | C175: RBLBANK | D175: 2022-01-27 | E175: 131.05 | F175: 131.57 | G175: 128.33 | H175: 125.62 | I175: 122.38 | J175: 134.28 | K175: 137.52 | L175: 140.23 | M175: 134.8 | N175: 128.85 | O175: 40069300 | P175: -2.17%
A176: 166 | B176: Power | C176: RECLTD | D176: 2022-01-27 | E176: 136.60 | F176: 136.68 | G176: 135.67 | H176: 134.73 | I176: 133.72 | J176: 137.62 | K176: 138.63 | L176: 139.57 | M176: 137.7 | N176: 135.75 | O176: 37626000 | P176: 2.50%
A177: 167 | B177: Oil_Gas | C177: RELIANCE | D177: 2022-01-27 | E177: 2462.55 | F177: 2447.93 | G177: 2429.17 | H177: 2395.78 | I177: 2377.02 | J177: 2481.32 | K177: 2500.08 | L177: 2533.47 | M177: 2466.7 | N177: 2414.55 | O177: 32024500 | P177: -2.36%
A178: 168 | B178: Metals | C178: SAIL | D178: 2022-01-27 | E178: 110.40 | F178: 110.35 | G178: 109.05 | H178: 107.70 | I178: 106.40 | J178: 111.70 | K178: 113.00 | L178: 114.35 | M178: 111.65 | N178: 109 | O178: 151824250 | P178: 0.18%
A179: 169 | B179: Banking | C179: SBICARD | D179: 2022-01-27 | E179: 938.15 | F179: 936.02 | G179: 932.58 | H179: 927.02 | I179: 923.58 | J179: 941.58 | K179: 945.02 | L179: 950.58 | M179: 939.45 | N179: 930.45 | O179: 4707000 | P179: -2.52%
A180: 170 | B180: Finance | C180: SBILIFE | D180: 2022-01-27 | E180: 1223.90 | F180: 1222.73 | G180: 1213.87 | H180: 1203.83 | I180: 1194.97 | J180: 1232.77 | K180: 1241.63 | L180: 1251.67 | M180: 1231.6 | N180: 1212.7 | O180: 6557250 | P180: -0.39%
A181: 171 | B181: Banking | C181: SBIN | D181: 2022-01-27 | E181: 484.45 | F181: 480.57 | G181: 475.83 | H181: 467.22 | I181: 462.48 | J181: 489.18 | K181: 493.92 | L181: 502.53 | M181: 485.3 | N181: 471.95 | O181: 93597000 | P181: -3.64%
A182: 172 | B182: Cement | C182: SHREECEM | D182: 2022-01-27 | E182: 27084.25 | F182: 27116.23 | G182: 26782.47 | H182: 26480.68 | I182: 26146.92 | J182: 27418.02 | K182: 27751.78 | L182: 28053.57 | M182: 27450 | N182: 26814.45 | O182: 163325 | P182: 2.32%
A183: 173 | B183: Capital_Goods | C183: SIEMENS | D183: 2022-01-27 | E183: 2364.80 | F183: 2370.63 | G183: 2348.37 | H183: 2331.93 | I183: 2309.67 | J183: 2387.07 | K183: 2409.33 | L183: 2425.77 | M183: 2392.9 | N183: 2354.2 | O183: 1851025 | P183: 3.06%
A184: 174 | B184: Textile | C184: SRF | D184: 2022-01-27 | E184: 2441.25 | F184: 2422.90 | G184: 2395.80 | H184: 2350.35 | I184: 2323.25 | J184: 2468.35 | K184: 2495.45 | L184: 2540.90 | M184: 2450 | N184: 2377.45 | O184: 2962500 | P184: -2.09%
A185: 175 | B185: Finance | C185: SRTRANSFIN | D185: 2022-01-27 | E185: 1255.10 | F185: 1256.22 | G185: 1232.43 | H185: 1209.77 | I185: 1185.98 | J185: 1278.88 | K185: 1302.67 | L185: 1325.33 | M185: 1280 | N185: 1233.55 | O185: 3292000 | P185: -0.93%
A186: 176 | B186: Pharma | C186: STAR | D186: 2022-01-27 | E186: 451.35 | F186: 454.83 | G186: 446.22 | H186: 441.08 | I186: 432.47 | J186: 459.97 | K186: 468.58 | L186: 473.72 | M186: 463.45 | N186: 449.7 | O186: 5826600 | P186: -0.02%
A187: 177 | B187: Pharma | C187: SUNPHARMA | D187: 2022-01-27 | E187: 840.35 | F187: 844.12 | G187: 832.78 | H187: 825.22 | I187: 813.88 | J187: 851.68 | K187: 863.02 | L187: 870.58 | M187: 855.45 | N187: 836.55 | O187: 27311200 | P187: -0.03%
A188: 178 | B188: Media | C188: SUNTV | D188: 2022-01-27 | E188: 505.70 | F188: 507.07 | G188: 502.08 | H188: 498.47 | I188: 493.48 | J188: 510.68 | K188: 515.67 | L188: 519.28 | M188: 512.05 | N188: 503.45 | O188: 11880000 | P188: -1.07%
A189: 179 | B189: Pharma | C189: SYNGENE | D189: 2022-01-27 | E189: 619.85 | F189: 617.97 | G189: 611.13 | H189: 602.42 | I189: 595.58 | J189: 626.68 | K189: 633.52 | L189: 642.23 | M189: 624.8 | N189: 609.25 | O189: 842350 | P189: 0.81%
A190: 180 | B190: Chemical | C190: TATACHEM | D190: 2022-01-27 | E190: 912.35 | F190: 914.02 | G190: 900.08 | H190: 887.82 | I190: 873.88 | J190: 926.28 | K190: 940.22 | L190: 952.48 | M190: 927.95 | N190: 901.75 | O190: 6986000 | P190: 1.19%
A191: 181 | B191: Telecom | C191: TATACOMM | D191: 2022-01-27 | E191: 1428.20 | F191: 1434.68 | G191: 1400.37 | H191: 1372.53 | I191: 1338.22 | J191: 1462.52 | K191: 1496.83 | L191: 1524.67 | M191: 1469 | N191: 1406.85 | O191: 1229200 | P191: 42.07%
A192: 182 | B192: FMCG | C192: TATACONSUM | D192: 2022-01-27 | E192: 741.50 | F192: 744.37 | G192: 731.28 | H192: 721.07 | I192: 707.98 | J192: 754.58 | K192: 767.67 | L192: 777.88 | M192: 757.45 | N192: 734.15 | O192: 10043325 | P192: -0.81%
A193: 183 | B193: Automobile | C193: TATAMOTORS | D193: 2022-01-27 | E193: 490.45 | F193: 494.58 | G193: 480.67 | H193: 470.88 | I193: 456.97 | J193: 504.37 | K193: 518.28 | L193: 528.07 | M193: 508.5 | N193: 484.8 | O193: 79087500 | P193: -2.34%
A194: 184 | B194: Power | C194: TATAPOWER | D194: 2022-01-27 | E194: 227.05 | F194: 225.88 | G194: 222.42 | H194: 217.78 | I194: 214.32 | J194: 230.52 | K194: 233.98 | L194: 238.62 | M194: 229.35 | N194: 221.25 | O194: 101547000 | P194: 3.06%
A195: 185 | B195: Metals | C195: TATASTEEL | D195: 2022-01-27 | E195: 1150.75 | F195: 1150.90 | G195: 1138.35 | H195: 1125.95 | I195: 1113.40 | J195: 1163.30 | K195: 1175.85 | L195: 1188.25 | M195: 1163.45 | N195: 1138.5 | O195: 46236600 | P195: -2.52%
A196: 186 | B196: Technology | C196: TCS | D196: 2022-01-27 | E196: 3880.00 | F196: 3857.37 | G196: 3829.03 | H196: 3778.07 | I196: 3749.73 | J196: 3908.33 | K196: 3936.67 | L196: 3987.63 | M196: 3885.7 | N196: 3806.4 | O196: 11353500 | P196: -2.02%
A197: 187 | B197: Technology | C197: TECHM | D197: 2022-01-27 | E197: 1798.65 | F197: 1794.47 | G197: 1776.93 | H197: 1755.22 | I197: 1737.68 | J197: 1816.18 | K197: 1833.72 | L197: 1855.43 | M197: 1812 | N197: 1772.75 | O197: 12687000 | P197: 1.09%
A198: 188 | B198: FMCG | C198: TITAN | D198: 2022-01-27 | E198: 2592.60 | F198: 2576.13 | G198: 2548.47 | H198: 2504.33 | I198: 2476.67 | J198: 2620.27 | K198: 2647.93 | L198: 2692.07 | M198: 2603.8 | N198: 2532 | O198: 4997625 | P198: 1.66%
A199: 189 | B199: Pharma | C199: TORNTPHARM | D199: 2022-01-27 | E199: 3226.50 | F199: 3229.42 | G199: 3199.58 | H199: 3172.67 | I199: 3142.83 | J199: 3256.33 | K199: 3286.17 | L199: 3313.08 | M199: 3259.25 | N199: 3202.5 | O199: 735000 | P199: 0.75%
A200: 190 | B200: Power | C200: TORNTPOWER | D200: 2022-01-27 | E200: 564.75 | F200: 562.53 | G200: 557.87 | H200: 550.98 | I200: 546.32 | J200: 569.42 | K200: 574.08 | L200: 580.97 | M200: 567.2 | N200: 555.65 | O200: 3172500 | P200: 3.22%
A201: 191 | B201: Others | C201: TRENT | D201: 2022-01-27 | E201: 1061.15 | F201: 1062.22 | G201: 1050.93 | H201: 1040.72 | I201: 1029.43 | J201: 1072.43 | K201: 1083.72 | L201: 1093.93 | M201: 1073.5 | N201: 1052 | O201: 2253300 | P201: 1.24%
A202: 192 | B202: Automobile | C202: TVSMOTOR | D202: 2022-01-27 | E202: 629.25 | F202: 628.30 | G202: 624.95 | H202: 620.65 | I202: 617.30 | J202: 632.60 | K202: 635.95 | L202: 640.25 | M202: 631.65 | N202: 624 | O202: 7926800 | P202: -2.26%
A203: 193 | B203: FMCG | C203: UBL | D203: 2022-01-27 | E203: 1580.30 | F203: 1574.72 | G203: 1557.48 | H203: 1534.67 | I203: 1517.43 | J203: 1597.53 | K203: 1614.77 | L203: 1637.58 | M203: 1591.95 | N203: 1551.9 | O203: 1157450 | P203: -0.30%
A204: 194 | B204: Cement | C204: ULTRACEMCO | D204: 2022-01-27 | E204: 7666.00 | F204: 7696.62 | G204: 7604.38 | H204: 7542.77 | I204: 7450.53 | J204: 7758.23 | K204: 7850.47 | L204: 7912.08 | M204: 7788.85 | N204: 7635 | O204: 1457600 | P204: -0.28%
A205: 195 | B205: Chemical | C205: UPL | D205: 2022-01-27 | E205: 765.60 | F205: 765.60 | G205: 759.80 | H205: 754.00 | I205: 748.20 | J205: 771.40 | K205: 777.20 | L205: 783.00 | M205: 771.4 | N205: 759.8 | O205: 25321400 | P205: 0.85%
A206: 196 | B206: Metals | C206: VEDL | D206: 2022-01-27 | E206: 335.55 | F206: 341.30 | G206: 324.40 | H206: 313.25 | I206: 296.35 | J206: 352.45 | K206: 369.35 | L206: 380.50 | M206: 358.2 | N206: 330.15 | O206: 58528000 | P206: 28.51%
... 19 more rows

Sheet Cash Intra
M5: Back to Main Page
A6: FOR INTRA DAY TRADING | K6: =Main!B10 -> 2022-01-05
A8: Sr.no | C8: CLOSE RATE | D8: Pivot Point | E8: Supports | H8: Resistances
E9: S1 | F9: S2 | G9: S3 | H9: R1 | I9: R2 | J9: R3 | K9: HIGH | L9: LOW | M9: Total Trade Quanity in Lakhs
A10: 1 | B10: Nifty 50 | C10: 17805.25 | D10: 17742.13 | E10: 17656.67 | F10: 17508.08 | G10: 17422.62 | H10: 17890.72 | I10: 17976.18 | J10: 18124.77 | K10: 17827.6 | L10: 17593.55
A11: 2 | B11: Nifty Bank | C11: 36840.15 | D11: 36700.78 | E11: 36513.77 | F11: 36187.38 | G11: 36000.37 | H11: 37027.17 | I11: 37214.18 | J11: 37540.57 | K11: 36887.8 | L11: 36374.4
A12: 3 | B12: Nifty CPSE | C12: 2349.1 | D12: 2338.92 | E12: 2316.43 | F12: 2283.77 | G12: 2261.28 | H12: 2371.58 | I12: 2394.07 | J12: 2426.73 | K12: 2361.4 | L12: 2306.25
A13: 4 | B13: Nifty Infra | C13: 5068.7 | D13: 5052.15 | E13: 5031.50 | F13: 4994.30 | G13: 4973.65 | H13: 5089.35 | I13: 5110.00 | J13: 5147.20 | K13: 5072.8 | L13: 5014.95
A14: 5 | B14: Nifty IT | C14: 39370.7 | D14: 39215.33 | E14: 38983.97 | F14: 38597.23 | G14: 38365.87 | H14: 39602.07 | I14: 39833.43 | J14: 40220.17 | K14: 39446.7 | L14: 38828.6
A15: 6 | B15: Nifty PSE | C15: 3952.45 | D15: 3942.98 | E15: 3915.97 | F15: 3879.48 | G15: 3852.47 | H15: 3979.47 | I15: 4006.48 | J15: 4042.97 | K15: 3970 | L15: 3906.5
A16: 7 | B16: Nifty Midcap 50 | C16: 8559.15 | D16: 8546.50 | E16: 8509.65 | F16: 8460.15 | G16: 8423.30 | H16: 8596.00 | I16: 8632.85 | J16: 8682.35 | K16: 8583.35 | L16: 8497
A17: 8 | B17: ACC | C17: 2224.3 | D17: 2235.20 | E17: 2205.60 | F17: 2186.90 | G17: 2157.30 | H17: 2253.90 | I17: 2283.50 | J17: 2302.20 | K17: 2264.8 | L17: 2216.5 | M17: 3.63436
A18: 9 | B18: AUBANK | C18: 1095.9 | D18: 1090.88 | E18: 1076.97 | F18: 1058.03 | G18: 1044.12 | H18: 1109.82 | I18: 1123.73 | J18: 1142.67 | K18: 1104.8 | L18: 1071.95 | M18: 14.32337
A19: 10 | B19: AARTIIND | C19: 992 | D19: 999.93 | E19: 975.22 | F19: 958.43 | G19: 933.72 | H19: 1016.72 | I19: 1041.43 | J19: 1058.22 | K19: 1024.65 | L19: 983.15 | M19: 10.6718
A20: 11 | B20: ADANIENT | C20: 1719 | D20: 1715.67 | E20: 1703.33 | F20: 1687.67 | G20: 1675.33 | H20: 1731.33 | I20: 1743.67 | J20: 1759.33 | K20: 1728 | L20: 1700 | M20: 11.91189
A21: 12 | B21: ADANIGREEN | C21: 1366.7 | D21: 1360.57 | E21: 1346.13 | F21: 1325.57 | G21: 1311.13 | H21: 1381.13 | I21: 1395.57 | J21: 1416.13 | K21: 1375 | L21: 1340 | M21: 1.92988
A22: 13 | B22: ADANIPORTS | C22: 739.25 | D22: 739.63 | E22: 732.27 | F22: 725.28 | G22: 717.92 | H22: 746.62 | I22: 753.98 | J22: 760.97 | K22: 747 | L22: 732.65 | M22: 40.68551
A23: 14 | B23: ATGL | C23: 1753.95 | D23: 1746.28 | E23: 1722.67 | F23: 1691.38 | G23: 1667.77 | H23: 1777.57 | I23: 1801.18 | J23: 1832.47 | K23: 1769.9 | L23: 1715 | M23: 4.31313
A24: 15 | B24: ADANITRANS | C24: 1754.95 | D24: 1743.32 | E24: 1711.63 | F24: 1668.32 | G24: 1636.63 | H24: 1786.63 | I24: 1818.32 | J24: 1861.63 | K24: 1775 | L24: 1700 | M24: 0.42498
A25: 16 | B25: ABCAPITAL | C25: 130.9 | D25: 130.15 | E25: 127.80 | F25: 124.70 | G25: 122.35 | H25: 133.25 | I25: 135.60 | J25: 138.70 | K25: 132.5 | L25: 127.05 | M25: 108.8447
A26: 17 | B26: ABFRL | C26: 286.35 | D26: 282.25 | E26: 276.35 | F26: 266.35 | G26: 260.45 | H26: 292.25 | I26: 298.15 | J26: 308.15 | K26: 288.15 | L26: 272.25 | M26: 52.30203
A27: 18 | B27: AJANTPHARM | C27: 2202.65 | D27: 2209.37 | E27: 2189.78 | F27: 2176.92 | G27: 2157.33 | H27: 2222.23 | I27: 2241.82 | J27: 2254.68 | K27: 2228.95 | L27: 2196.5 | M27: 0.66304
A28: 19 | B28: APLLTD | C28: 841.25 | D28: 830.67 | E28: 812.78 | F28: 784.32 | G28: 766.43 | H28: 859.13 | I28: 877.02 | J28: 905.48 | K28: 848.55 | L28: 802.2 | M28: 14.77317
A29: 20 | B29: ALKEM | C29: 3613.8 | D29: 3652.60 | E29: 3561.20 | F29: 3508.60 | G29: 3417.20 | H29: 3705.20 | I29: 3796.60 | J29: 3849.20 | K29: 3744 | L29: 3600 | M29: 3.17799
A30: 21 | B30: AMARAJABAT | C30: 636.45 | D30: 636.60 | E30: 631.05 | F30: 625.65 | G30: 620.10 | H30: 642.00 | I30: 647.55 | J30: 652.95 | K30: 642.15 | L30: 631.2 | M30: 5.95552
A31: 22 | B31: AMBUJACEM | C31: 390.45 | D31: 388.48 | E31: 385.27 | F31: 380.08 | G31: 376.87 | H31: 393.67 | I31: 396.88 | J31: 402.07 | K31: 391.7 | L31: 383.3 | M31: 30.34913
A32: 23 | B32: APOLLOHOSP | C32: 4964.6 | D32: 4971.53 | E32: 4914.17 | F32: 4863.73 | G32: 4806.37 | H32: 5021.97 | I32: 5079.33 | J32: 5129.77 | K32: 5028.9 | L32: 4921.1 | M32: 3.69814
A33: 24 | B33: APOLLOTYRE | C33: 225.6 | D33: 224.77 | E33: 221.73 | F33: 217.87 | G33: 214.83 | H33: 228.63 | I33: 231.67 | J33: 235.53 | K33: 227.8 | L33: 220.9 | M33: 40.7616
A34: 25 | B34: ASHOKLEY | C34: 127.4 | D34: 127.13 | E34: 126.07 | F34: 124.73 | G34: 123.67 | H34: 128.47 | I34: 129.53 | J34: 130.87 | K34: 128.2 | L34: 125.8 | M34: 127.27476
A35: 26 | B35: ASIANPAINT | C35: 3459.3 | D35: 3448.93 | E35: 3425.42 | F35: 3391.53 | G35: 3368.02 | H35: 3482.82 | I35: 3506.33 | J35: 3540.22 | K35: 3472.45 | L35: 3415.05 | M35: 7.90886
A36: 27 | B36: ASTRAL | C36: 2396.65 | D36: 2380.58 | E36: 2317.17 | F36: 2237.68 | G36: 2174.27 | H36: 2460.07 | I36: 2523.48 | J36: 2602.97 | K36: 2444 | L36: 2301.1 | M36: 8.2715
A37: 28 | B37: AUROPHARMA | C37: 722.25 | D37: 726.73 | E37: 716.52 | F37: 710.78 | G37: 700.57 | H37: 732.47 | I37: 742.68 | J37: 748.42 | K37: 736.95 | L37: 721 | M37: 11.3425
A38: 29 | B38: DMART | C38: 4726.95 | D38: 4723.62 | E38: 4688.33 | F38: 4649.72 | G38: 4614.43 | H38: 4762.23 | I38: 4797.52 | J38: 4836.13 | K38: 4758.9 | L38: 4685 | M38: 2.42287
A39: 30 | B39: AXISBANK | C39: 709.15 | D39: 706.75 | E39: 702.45 | F39: 695.75 | G39: 691.45 | H39: 713.45 | I39: 717.75 | J39: 724.45 | K39: 711.05 | L39: 700.05 | M39: 97.05906
A40: 31 | B40: BAJAJ-AUTO | C40: 3289.15 | D40: 3291.93 | E40: 3267.87 | F40: 3246.58 | G40: 3222.52 | H40: 3313.22 | I40: 3337.28 | J40: 3358.57 | K40: 3316 | L40: 3270.65 | M40: 2.44503
A41: 32 | B41: BAJFINANCE | C41: 7343 | D41: 7317.83 | E41: 7260.67 | F41: 7178.33 | G41: 7121.17 | H41: 7400.17 | I41: 7457.33 | J41: 7539.67 | K41: 7375 | L41: 7235.5 | M41: 9.59173
A42: 33 | B42: BAJAJFINSV | C42: 17135.45 | D42: 17059.18 | E42: 16928.37 | F42: 16721.28 | G42: 16590.47 | H42: 17266.27 | I42: 17397.08 | J42: 17604.17 | K42: 17190 | L42: 16852.1 | M42: 2.30043
A43: 34 | B43: BAJAJHLDNG | C43: 5293.25 | D43: 5303.90 | E43: 5187.80 | F43: 5082.35 | G43: 4966.25 | H43: 5409.35 | I43: 5525.45 | J43: 5630.90 | K43: 5420 | L43: 5198.45 | M43: 0.34151
A44: 35 | B44: BALKRISIND | C44: 2313.05 | D44: 2321.08 | E44: 2282.02 | F44: 2250.98 | G44: 2211.92 | H44: 2352.12 | I44: 2391.18 | J44: 2422.22 | K44: 2360.15 | L44: 2290.05 | M44: 4.5407
A45: 36 | B45: BANDHANBNK | C45: 254.55 | D45: 256.47 | E45: 250.28 | F45: 246.02 | G45: 239.83 | H45: 260.73 | I45: 266.92 | J45: 271.18 | K45: 262.65 | L45: 252.2 | M45: 113.93172
A46: 37 | B46: BANKBARODA | C46: 83.9 | D46: 83.88 | E46: 83.12 | F46: 82.33 | G46: 81.57 | H46: 84.67 | I46: 85.43 | J46: 86.22 | K46: 84.65 | L46: 83.1 | M46: 244.56776
A47: 38 | B47: BANKINDIA | C47: 52.95 | D47: 52.85 | E47: 52.40 | F47: 51.85 | G47: 51.40 | H47: 53.40 | I47: 53.85 | J47: 54.40 | K47: 53.3 | L47: 52.3 | M47: 40.90067
A48: 39 | B48: BATAINDIA | C48: 1845.55 | D48: 1851.27 | E48: 1828.53 | F48: 1811.52 | G48: 1788.78 | H48: 1868.28 | I48: 1891.02 | J48: 1908.03 | K48: 1874 | L48: 1834.25 | M48: 2.25583
A49: 40 | B49: BERGEPAINT | C49: 784.45 | D49: 779.67 | E49: 773.13 | F49: 761.82 | G49: 755.28 | H49: 790.98 | I49: 797.52 | J49: 808.83 | K49: 786.2 | L49: 768.35 | M49: 4.08559
A50: 41 | B50: BEL | C50: 216.15 | D50: 215.47 | E50: 211.88 | F50: 207.62 | G50: 204.03 | H50: 219.73 | I50: 223.32 | J50: 227.58 | K50: 219.05 | L50: 211.2 | M50: 104.45579
A51: 42 | B51: BHARATFORG | C51: 717 | D51: 716.92 | E51: 710.83 | F51: 704.67 | G51: 698.58 | H51: 723.08 | I51: 729.17 | J51: 735.33 | K51: 723 | L51: 710.75 | M51: 11.92385
A52: 43 | B52: BHEL | C52: 60.05 | D52: 60.18 | E52: 59.17 | F52: 58.28 | G52: 57.27 | H52: 61.07 | I52: 62.08 | J52: 62.97 | K52: 61.2 | L52: 59.3 | M52: 236.8478
A53: 44 | B53: BPCL | C53: 385.95 | D53: 388.15 | E53: 382.55 | F53: 379.15 | G53: 373.55 | H53: 391.55 | I53: 397.15 | J53: 400.55 | K53: 393.75 | L53: 384.75 | M53: 58.99648
A54: 45 | B54: BHARTIARTL | C54: 697.45 | D54: 697.03 | E54: 690.82 | F54: 684.18 | G54: 677.97 | H54: 703.67 | I54: 709.88 | J54: 716.52 | K54: 703.25 | L54: 690.4 | M54: 64.73875
A55: 46 | B55: BIOCON | C55: 364.4 | D55: 364.18 | E55: 358.77 | F55: 353.13 | G55: 347.72 | H55: 369.82 | I55: 375.23 | J55: 380.87 | K55: 369.6 | L55: 358.55 | M55: 31.15452
A56: 47 | B56: BOSCHLTD | C56: 17222.6 | D56: 17248.87 | E56: 17078.73 | F56: 16934.87 | G56: 16764.73 | H56: 17392.73 | I56: 17562.87 | J56: 17706.73 | K56: 17419 | L56: 17105 | M56: 0.21725
A57: 48 | B57: BRITANNIA | C57: 3638.45 | D57: 3630.77 | E57: 3617.68 | F57: 3596.92 | G57: 3583.83 | H57: 3651.53 | I57: 3664.62 | J57: 3685.38 | K57: 3643.85 | L57: 3610 | M57: 3.17247
A58: 49 | B58: CADILAHC | C58: 464.65 | D58: 469.37 | E58: 459.33 | F58: 454.02 | G58: 443.98 | H58: 474.68 | I58: 484.72 | J58: 490.03 | K58: 479.4 | L58: 464.05 | M58: 23.79973
A59: 50 | B59: CANBK | C59: 206.55 | D59: 206.63 | E59: 204.27 | F59: 201.98 | G59: 199.62 | H59: 208.92 | I59: 211.28 | J59: 213.57 | K59: 209 | L59: 204.35 | M59: 93.40933
A60: 51 | B60: CASTROLIND | C60: 124.85 | D60: 124.82 | E60: 124.08 | F60: 123.32 | G60: 122.58 | H60: 125.58 | I60: 126.32 | J60: 127.08 | K60: 125.55 | L60: 124.05 | M60: 5.02136
A61: 52 | B61: CHOLAFIN | C61: 546.05 | D61: 543.00 | E61: 538.30 | F61: 530.55 | G61: 525.85 | H61: 550.75 | I61: 555.45 | J61: 563.20 | K61: 547.7 | L61: 535.25 | M61: 18.21625
A62: 53 | B62: CIPLA | C62: 924.25 | D62: 927.32 | E62: 917.18 | F62: 910.12 | G62: 899.98 | H62: 934.38 | I62: 944.52 | J62: 951.58 | K62: 937.45 | L62: 920.25 | M62: 12.38138
A63: 54 | B63: CUB | C63: 141.95 | D63: 140.87 | E63: 139.33 | F63: 136.72 | G63: 135.18 | H63: 143.48 | I63: 145.02 | J63: 147.63 | K63: 142.4 | L63: 138.25 | M63: 25.76588
A64: 55 | B64: COALINDIA | C64: 153 | D64: 154.00 | E64: 151.35 | F64: 149.70 | G64: 147.05 | H64: 155.65 | I64: 158.30 | J64: 159.95 | K64: 156.65 | L64: 152.35 | M64: 137.4444
A65: 56 | B65: COFORGE | C65: 6105.4 | D65: 6076.85 | E65: 6018.70 | F65: 5932.00 | G65: 5873.85 | H65: 6163.55 | I65: 6221.70 | J65: 6308.40 | K65: 6135 | L65: 5990.15 | M65: 6.69217
A66: 57 | B66: COLPAL | C66: 1464.8 | D66: 1465.27 | E66: 1456.58 | F66: 1448.37 | G66: 1439.68 | H66: 1473.48 | I66: 1482.17 | J66: 1490.38 | K66: 1473.95 | L66: 1457.05 | M66: 3.1389
A67: 58 | B67: CONCOR | C67: 627.75 | D67: 626.17 | E67: 617.78 | F67: 607.82 | G67: 599.43 | H67: 636.13 | I67: 644.52 | J67: 654.48 | K67: 634.55 | L67: 616.2 | M67: 8.89836
A68: 59 | B68: COROMANDEL | C68: 769.9 | D68: 769.95 | E68: 756.00 | F68: 742.10 | G68: 728.15 | H68: 783.85 | I68: 797.80 | J68: 811.70 | K68: 783.9 | L68: 756.05 | M68: 8.61764
A69: 60 | B69: CROMPTON | C69: 436.05 | D69: 438.05 | E69: 433.05 | F69: 430.05 | G69: 425.05 | H69: 441.05 | I69: 446.05 | J69: 449.05 | K69: 443.05 | L69: 435.05 | M69: 5.35329
A70: 61 | B70: CUMMINSIND | C70: 949.45 | D70: 947.60 | E70: 937.00 | F70: 924.55 | G70: 913.95 | H70: 960.05 | I70: 970.65 | J70: 983.10 | K70: 958.2 | L70: 935.15 | M70: 2.36996
A71: 62 | B71: DLF | C71: 394.45 | D71: 395.22 | E71: 389.93 | F71: 385.42 | G71: 380.13 | H71: 399.73 | I71: 405.02 | J71: 409.53 | K71: 400.5 | L71: 390.7 | M71: 40.91503
A72: 63 | B72: DABUR | C72: 574.05 | D72: 575.85 | E72: 568.70 | F72: 563.35 | G72: 556.20 | H72: 581.20 | I72: 588.35 | J72: 593.70 | K72: 583 | L72: 570.5 | M72: 30.62561
A73: 64 | B73: DALBHARAT | C73: 1876.6 | D73: 1878.48 | E73: 1858.67 | F73: 1840.73 | G73: 1820.92 | H73: 1896.42 | I73: 1916.23 | J73: 1934.17 | K73: 1898.3 | L73: 1860.55 | M73: 0.84425
A74: 65 | B74: DEEPAKNTR | C74: 2513.55 | D74: 2524.52 | E74: 2491.13 | F74: 2468.72 | G74: 2435.33 | H74: 2546.93 | I74: 2580.32 | J74: 2602.73 | K74: 2557.9 | L74: 2502.1 | M74: 5.14465
A75: 66 | B75: DHANI | C75: 161.35 | D75: 161.90 | E75: 158.45 | F75: 155.55 | G75: 152.10 | H75: 164.80 | I75: 168.25 | J75: 171.15 | K75: 165.35 | L75: 159 | M75: 21.09509
A76: 67 | B76: DIVISLAB | C76: 4621.7 | D76: 4636.88 | E76: 4593.82 | F76: 4565.93 | G76: 4522.87 | H76: 4664.77 | I76: 4707.83 | J76: 4735.72 | K76: 4679.95 | L76: 4609 | M76: 2.59508
A77: 68 | B77: DIXON | C77: 5480.95 | D77: 5492.62 | E77: 5430.53 | F77: 5380.12 | G77: 5318.03 | H77: 5543.03 | I77: 5605.12 | J77: 5655.53 | K77: 5554.7 | L77: 5442.2 | M77: 1.57713
A78: 69 | B78: LALPATHLAB | C78: 3831.2 | D78: 3840.73 | E78: 3801.47 | F78: 3771.73 | G78: 3732.47 | H78: 3870.47 | I78: 3909.73 | J78: 3939.47 | K78: 3880 | L78: 3811 | M78: 1.58295
A79: 70 | B79: DRREDDY | C79: 4835.45 | D79: 4851.12 | E79: 4809.33 | F79: 4783.22 | G79: 4741.43 | H79: 4877.23 | I79: 4919.02 | J79: 4945.13 | K79: 4892.9 | L79: 4825 | M79: 2.53438
A80: 71 | B80: EICHERMOT | C80: 2705 | D80: 2705.13 | E80: 2685.37 | F80: 2665.73 | G80: 2645.97 | H80: 2724.77 | I80: 2744.53 | J80: 2764.17 | K80: 2724.9 | L80: 2685.5 | M80: 7.36616
A81: 72 | B81: EMAMILTD | C81: 514.9 | D81: 517.73 | E81: 511.17 | F81: 507.43 | G81: 500.87 | H81: 521.47 | I81: 528.03 | J81: 531.77 | K81: 524.3 | L81: 514 | M81: 1.48537
A82: 73 | B82: ENDURANCE | C82: 1709.2 | D82: 1707.73 | E82: 1691.47 | F82: 1673.73 | G82: 1657.47 | H82: 1725.47 | I82: 1741.73 | J82: 1759.47 | K82: 1724 | L82: 1690 | M82: 0.61266
A83: 74 | B83: ESCORTS | C83: 1893.35 | D83: 1895.22 | E83: 1882.53 | F83: 1871.72 | G83: 1859.03 | H83: 1906.03 | I83: 1918.72 | J83: 1929.53 | K83: 1907.9 | L83: 1884.4 | M83: 7.512
A84: 75 | B84: EXIDEIND | C84: 170.05 | D84: 170.08 | E84: 168.82 | F84: 167.58 | G84: 166.32 | H84: 171.32 | I84: 172.58 | J84: 173.82 | K84: 171.35 | L84: 168.85 | M84: 13.09625
A85: 76 | B85: FEDERALBNK | C85: 88.5 | D85: 88.10 | E85: 87.30 | F85: 86.10 | G85: 85.30 | H85: 89.30 | I85: 90.10 | J85: 91.30 | K85: 88.9 | L85: 86.9 | M85: 177.03948
A86: 77 | B86: FORTIS | C86: 304.25 | D86: 306.63 | E86: 299.82 | F86: 295.38 | G86: 288.57 | H86: 311.07 | I86: 317.88 | J86: 322.32 | K86: 313.45 | L86: 302.2 | M86: 22.5349
A87: 78 | B87: GAIL | C87: 132.8 | D87: 132.88 | E87: 131.57 | F87: 130.33 | G87: 129.02 | H87: 134.12 | I87: 135.43 | J87: 136.67 | K87: 134.2 | L87: 131.65 | M87: 70.19721
A88: 79 | B88: GMRINFRA | C88: 48.2 | D88: 47.75 | E88: 46.75 | F88: 45.30 | G88: 44.30 | H88: 49.20 | I88: 50.20 | J88: 51.65 | K88: 48.75 | L88: 46.3 | M88: 399.2544
A89: 80 | B89: GLAND | C89: 3885.55 | D89: 3894.57 | E89: 3854.13 | F89: 3822.72 | G89: 3782.28 | H89: 3925.98 | I89: 3966.42 | J89: 3997.83 | K89: 3935 | L89: 3863.15 | M89: 0.6241
A90: 81 | B90: GLENMARK | C90: 517 | D90: 519.98 | E90: 512.67 | F90: 508.33 | G90: 501.02 | H90: 524.32 | I90: 531.63 | J90: 535.97 | K90: 527.3 | L90: 515.65 | M90: 6.1797
A91: 82 | B91: GODREJCP | C91: 949.7 | D91: 947.90 | E91: 935.80 | F91: 921.90 | G91: 909.80 | H91: 961.80 | I91: 973.90 | J91: 987.80 | K91: 960 | L91: 934 | M91: 7.81428
A92: 83 | B92: GODREJIND | C92: 627.8 | D92: 629.33 | E92: 616.67 | F92: 605.53 | G92: 592.87 | H92: 640.47 | I92: 653.13 | J92: 664.27 | K92: 642 | L92: 618.2 | M92: 2.60774
A93: 84 | B93: GODREJPROP | C93: 1890.3 | D93: 1894.03 | E93: 1868.52 | F93: 1846.73 | G93: 1821.22 | H93: 1915.82 | I93: 1941.33 | J93: 1963.12 | K93: 1919.55 | L93: 1872.25 | M93: 4.5851
A94: 85 | B94: GRASIM | C94: 1692 | D94: 1682.17 | E94: 1667.83 | F94: 1643.67 | G94: 1629.33 | H94: 1706.33 | I94: 1720.67 | J94: 1744.83 | K94: 1696.5 | L94: 1658 | M94: 8.91638
A95: 86 | B95: GUJGASLTD | C95: 649.6 | D95: 647.00 | E95: 642.65 | F95: 635.70 | G95: 631.35 | H95: 653.95 | I95: 658.30 | J95: 665.25 | K95: 651.35 | L95: 640.05 | M95: 5.11475
A96: 87 | B96: GSPL | C96: 299.8 | D96: 299.58 | E96: 296.47 | F96: 293.13 | G96: 290.02 | H96: 302.92 | I96: 306.03 | J96: 309.37 | K96: 302.7 | L96: 296.25 | M96: 4.41124
A97: 88 | B97: HCLTECH | C97: 1333.45 | D97: 1325.80 | E97: 1314.90 | F97: 1296.35 | G97: 1285.45 | H97: 1344.35 | I97: 1355.25 | J97: 1373.80 | K97: 1336.7 | L97: 1307.25 | M97: 33.671
A98: 89 | B98: HDFCAMC | C98: 2475.8 | D98: 2469.90 | E98: 2457.90 | F98: 2440.00 | G98: 2428.00 | H98: 2487.80 | I98: 2499.80 | J98: 2517.70 | K98: 2481.9 | L98: 2452 | M98: 1.40925
A99: 90 | B99: HDFCBANK | C99: 1528.55 | D99: 1523.08 | E99: 1513.27 | F99: 1497.98 | G99: 1488.17 | H99: 1538.37 | I99: 1548.18 | J99: 1563.47 | K99: 1532.9 | L99: 1507.8 | M99: 44.28676
A100: 91 | B100: HDFCLIFE | C100: 653.15 | D100: 652.40 | E100: 649.80 | F100: 646.45 | G100: 643.85 | H100: 655.75 | I100: 658.35 | J100: 661.70 | K100: 655 | L100: 649.05 | M100: 22.93391
A101: 92 | B101: HAVELLS | C101: 1401.3 | D101: 1400.87 | E101: 1388.13 | F101: 1374.97 | G101: 1362.23 | H101: 1414.03 | I101: 1426.77 | J101: 1439.93 | K101: 1413.6 | L101: 1387.7 | M101: 3.37682
A102: 93 | B102: HEROMOTOCO | C102: 2484.9 | D102: 2483.30 | E102: 2470.00 | F102: 2455.10 | G102: 2441.80 | H102: 2498.20 | I102: 2511.50 | J102: 2526.40 | K102: 2496.6 | L102: 2468.4 | M102: 1.81575
A103: 94 | B103: HINDALCO | C103: 476.1 | D103: 476.53 | E103: 471.57 | F103: 467.03 | G103: 462.07 | H103: 481.07 | I103: 486.03 | J103: 490.57 | K103: 481.5 | L103: 472 | M103: 50.63834
A104: 95 | B104: HAL | C104: 1248.6 | D104: 1249.58 | E104: 1232.27 | F104: 1215.93 | G104: 1198.62 | H104: 1265.92 | I104: 1283.23 | J104: 1299.57 | K104: 1266.9 | L104: 1233.25 | M104: 10.52122
A105: 96 | B105: HINDCOPPER | C105: 133.45 | D105: 132.40 | E105: 130.05 | F105: 126.65 | G105: 124.30 | H105: 135.80 | I105: 138.15 | J105: 141.55 | K105: 134.75 | L105: 129 | M105: 161.25645
A106: 97 | B106: HINDPETRO | C106: 297.9 | D106: 297.97 | E106: 294.93 | F106: 291.97 | G106: 288.93 | H106: 300.93 | I106: 303.97 | J106: 306.93 | K106: 301 | L106: 295 | M106: 22.76944
A107: 98 | B107: HINDUNILVR | C107: 2401.25 | D107: 2388.23 | E107: 2368.37 | F107: 2335.48 | G107: 2315.62 | H107: 2421.12 | I107: 2440.98 | J107: 2473.87 | K107: 2408.1 | L107: 2355.35 | M107: 14.84275
A108: 99 | B108: HINDZINC | C108: 330.55 | D108: 330.52 | E108: 326.53 | F108: 322.52 | G108: 318.53 | H108: 334.53 | I108: 338.52 | J108: 342.53 | K108: 334.5 | L108: 326.5 | M108: 24.98082
A109: 100 | B109: HDFC | C109: 2675.3 | D109: 2658.12 | E109: 2637.53 | F109: 2599.77 | G109: 2579.18 | H109: 2695.88 | I109: 2716.47 | J109: 2754.23 | K109: 2678.7 | L109: 2620.35 | M109: 18.46249
A110: 101 | B110: ICICIBANK | C110: 772.85 | D110: 771.48 | E110: 764.97 | F110: 757.08 | G110: 750.57 | H110: 779.37 | I110: 785.88 | J110: 793.77 | K110: 778 | L110: 763.6 | M110: 121.14437
A111: 102 | B111: ICICIGI | C111: 1423.6 | D111: 1425.53 | E111: 1413.07 | F111: 1402.53 | G111: 1390.07 | H111: 1436.07 | I111: 1448.53 | J111: 1459.07 | K111: 1438 | L111: 1415 | M111: 3.90918
A112: 103 | B112: ICICIPRULI | C112: 570.95 | D112: 570.07 | E112: 565.13 | F112: 559.32 | G112: 554.38 | H112: 575.88 | I112: 580.82 | J112: 586.63 | K112: 575 | L112: 564.25 | M112: 8.23907
A113: 104 | B113: ISEC | C113: 787.45 | D113: 786.67 | E113: 777.43 | F113: 767.42 | G113: 758.18 | H113: 796.68 | I113: 805.92 | J113: 815.93 | K113: 795.9 | L113: 776.65 | M113: 1.31614
A114: 105 | B114: IDFCFIRSTB | C114: 49.3 | D114: 49.33 | E114: 48.57 | F114: 47.83 | G114: 47.07 | H114: 50.07 | I114: 50.83 | J114: 51.57 | K114: 50.1 | L114: 48.6 | M114: 300.79665
A115: 106 | B115: ITC | C115: 220.25 | D115: 220.33 | E115: 218.97 | F115: 217.68 | G115: 216.32 | H115: 221.62 | I115: 222.98 | J115: 224.27 | K115: 221.7 | L115: 219.05 | M115: 90.50253
A116: 107 | B116: INDIAMART | C116: 6612.7 | D116: 6599.32 | E116: 6504.63 | F116: 6396.57 | G116: 6301.88 | H116: 6707.38 | I116: 6802.07 | J116: 6910.13 | K116: 6694 | L116: 6491.25 | M116: 1.26776
A117: 108 | B117: INDIANB | C117: 143.75 | D117: 144.12 | E117: 141.78 | F117: 139.82 | G117: 137.48 | H117: 146.08 | I117: 148.42 | J117: 150.38 | K117: 146.45 | L117: 142.15 | M117: 23.21248
A118: 109 | B118: INDHOTEL | C118: 184.5 | D118: 184.95 | E118: 182.20 | F118: 179.90 | G118: 177.15 | H118: 187.25 | I118: 190.00 | J118: 192.30 | K118: 187.7 | L118: 182.65 | M118: 46.51684
A119: 110 | B119: IOC | C119: 114.05 | D119: 114.07 | E119: 113.23 | F119: 112.42 | G119: 111.58 | H119: 114.88 | I119: 115.72 | J119: 116.53 | K119: 114.9 | L119: 113.25 | M119: 55.48059
A120: 111 | B120: IRCTC | C120: 848.05 | D120: 848.35 | E120: 843.00 | F120: 837.95 | G120: 832.60 | H120: 853.40 | I120: 858.75 | J120: 863.80 | K120: 853.7 | L120: 843.3 | M120: 24.96924
A121: 112 | B121: IRFC | C121: 23.05 | D121: 23.07 | E121: 22.93 | F121: 22.82 | G121: 22.68 | H121: 23.18 | I121: 23.32 | J121: 23.43 | K121: 23.2 | L121: 22.95 | M121: 64.02243
A122: 113 | B122: IGL | C122: 469.85 | D122: 471.77 | E122: 465.68 | F122: 461.52 | G122: 455.43 | H122: 475.93 | I122: 482.02 | J122: 486.18 | K122: 477.85 | L122: 467.6 | M122: 16.51962
A123: 114 | B123: INDUSTOWER | C123: 255.15 | D123: 252.35 | E123: 247.35 | F123: 239.55 | G123: 234.55 | H123: 260.15 | I123: 265.15 | J123: 272.95 | K123: 257.35 | L123: 244.55 | M123: 61.67759
A124: 115 | B124: INDUSINDBK | C124: 904.4 | D124: 906.15 | E124: 894.35 | F124: 884.30 | G124: 872.50 | H124: 916.20 | I124: 928.00 | J124: 938.05 | K124: 917.95 | L124: 896.1 | M124: 41.0275
A125: 116 | B125: NAUKRI | C125: 5609.15 | D125: 5613.42 | E125: 5546.73 | F125: 5484.32 | G125: 5417.63 | H125: 5675.83 | I125: 5742.52 | J125: 5804.93 | K125: 5680.1 | L125: 5551 | M125: 1.88812
A126: 117 | B126: INFY | C126: 1899.15 | D126: 1894.60 | E126: 1882.55 | F126: 1865.95 | G126: 1853.90 | H126: 1911.20 | I126: 1923.25 | J126: 1939.85 | K126: 1906.65 | L126: 1878 | M126: 39.21999
A127: 118 | B127: INDIGO | C127: 2041.7 | D127: 2034.73 | E127: 2009.47 | F127: 1977.23 | G127: 1951.97 | H127: 2066.97 | I127: 2092.23 | J127: 2124.47 | K127: 2060 | L127: 2002.5 | M127: 7.8791
A128: 119 | B128: IPCALAB | C128: 2171.55 | D128: 2179.90 | E128: 2151.65 | F128: 2131.75 | G128: 2103.50 | H128: 2199.80 | I128: 2228.05 | J128: 2247.95 | K128: 2208.15 | L128: 2160 | M128: 1.80459
A129: 120 | B129: JSWENERGY | C129: 303.2 | D129: 301.03 | E129: 297.27 | F129: 291.33 | G129: 287.57 | H129: 306.97 | I129: 310.73 | J129: 316.67 | K129: 304.8 | L129: 295.1 | M129: 9.82954
A130: 121 | B130: JSWSTEEL | C130: 670.4 | D130: 669.23 | E130: 664.57 | F130: 658.73 | G130: 654.07 | H130: 675.07 | I130: 679.73 | J130: 685.57 | K130: 673.9 | L130: 663.4 | M130: 19.99008
A131: 122 | B131: JINDALSTEL | C131: 388.2 | D131: 386.88 | E131: 383.32 | F131: 378.43 | G131: 374.87 | H131: 391.77 | I131: 395.33 | J131: 400.22 | K131: 390.45 | L131: 382 | M131: 38.47048
A132: 123 | B132: JUBLFOOD | C132: 3604.65 | D132: 3623.15 | E132: 3561.50 | F132: 3518.35 | G132: 3456.70 | H132: 3666.30 | I132: 3727.95 | J132: 3771.10 | K132: 3684.8 | L132: 3580 | M132: 3.72428
A133: 124 | B133: KOTAKBANK | C133: 1852.6 | D133: 1841.63 | E133: 1826.27 | F133: 1799.93 | G133: 1784.57 | H133: 1867.97 | I133: 1883.33 | J133: 1909.67 | K133: 1857 | L133: 1815.3 | M133: 26.35575
A134: 125 | B134: L&TFH | C134: 79.1 | D134: 79.12 | E134: 78.38 | F134: 77.67 | G134: 76.93 | H134: 79.83 | I134: 80.57 | J134: 81.28 | K134: 79.85 | L134: 78.4 | M134: 57.18763
A135: 126 | B135: LTTS | C135: 5916.3 | D135: 5846.10 | E135: 5736.70 | F135: 5557.10 | G135: 5447.70 | H135: 6025.70 | I135: 6135.10 | J135: 6314.70 | K135: 5955.5 | L135: 5666.5 | M135: 4.80593
A136: 127 | B136: LICHSGFIN | C136: 379.2 | D136: 378.43 | E136: 374.12 | F136: 369.03 | G136: 364.72 | H136: 383.52 | I136: 387.83 | J136: 392.92 | K136: 382.75 | L136: 373.35 | M136: 17.79669
A137: 128 | B137: LTI | C137: 7561.75 | D137: 7528.88 | E137: 7468.97 | F137: 7376.18 | G137: 7316.27 | H137: 7621.67 | I137: 7681.58 | J137: 7774.37 | K137: 7588.8 | L137: 7436.1 | M137: 2.73052
A138: 129 | B138: LT | C138: 1937.55 | D138: 1931.70 | E138: 1920.40 | F138: 1903.25 | G138: 1891.95 | H138: 1948.85 | I138: 1960.15 | J138: 1977.30 | K138: 1943 | L138: 1914.55 | M138: 16.4392
A139: 130 | B139: LAURUSLABS | C139: 519.05 | D139: 521.87 | E139: 510.78 | F139: 502.52 | G139: 491.43 | H139: 530.13 | I139: 541.22 | J139: 549.48 | K139: 532.95 | L139: 513.6 | M139: 20.76145
A140: 131 | B140: LUPIN | C140: 932.35 | D140: 937.83 | E140: 924.52 | F140: 916.68 | G140: 903.37 | H140: 945.67 | I140: 958.98 | J140: 966.82 | K140: 951.15 | L140: 930 | M140: 3.82536
A141: 132 | B141: MRF | C141: 73937.2 | D141: 73762.40 | E141: 73524.80 | F141: 73112.40 | G141: 72874.80 | H141: 74174.80 | I141: 74412.40 | J141: 74824.80 | K141: 74000 | L141: 73350 | M141: 0.06005
A142: 133 | B142: MGL | C142: 871.45 | D142: 874.68 | E142: 865.47 | F142: 859.48 | G142: 850.27 | H142: 880.67 | I142: 889.88 | J142: 895.87 | K142: 883.9 | L142: 868.7 | M142: 4.61577
A143: 134 | B143: M&MFIN | C143: 153 | D143: 153.13 | E143: 151.07 | F143: 149.13 | G143: 147.07 | H143: 155.07 | I143: 157.13 | J143: 159.07 | K143: 155.2 | L143: 151.2 | M143: 50.91802
A144: 135 | B144: M&M | C144: 831.85 | D144: 833.17 | E144: 824.33 | F144: 816.82 | G144: 807.98 | H144: 840.68 | I144: 849.52 | J144: 857.03 | K144: 842 | L144: 825.65 | M144: 18.86453
A145: 136 | B145: MANAPPURAM | C145: 164.55 | D145: 165.65 | E145: 161.90 | F145: 159.25 | G145: 155.50 | H145: 168.30 | I145: 172.05 | J145: 174.70 | K145: 169.4 | L145: 163 | M145: 41.53975
A146: 137 | B146: MARICO | C146: 502.05 | D146: 502.40 | E146: 497.65 | F146: 493.25 | G146: 488.50 | H146: 506.80 | I146: 511.55 | J146: 515.95 | K146: 507.15 | L146: 498 | M146: 20.94024
A147: 138 | B147: MARUTI | C147: 7630.1 | D147: 7599.70 | E147: 7550.40 | F147: 7470.70 | G147: 7421.40 | H147: 7679.40 | I147: 7728.70 | J147: 7808.40 | K147: 7649 | L147: 7520 | M147: 4.95182
A148: 139 | B148: MFSL | C148: 1027.15 | D148: 1026.32 | E148: 1010.93 | F148: 994.72 | G148: 979.33 | H148: 1042.53 | I148: 1057.92 | J148: 1074.13 | K148: 1041.7 | L148: 1010.1 | M148: 4.78153
A149: 140 | B149: MINDTREE | C149: 4777.7 | D149: 4794.92 | E149: 4719.83 | F149: 4661.97 | G149: 4586.88 | H149: 4852.78 | I149: 4927.87 | J149: 4985.73 | K149: 4870 | L149: 4737.05 | M149: 5.74468
A150: 141 | B150: MPHASIS | C150: 3395.9 | D150: 3411.97 | E150: 3353.93 | F150: 3311.97 | G150: 3253.93 | H150: 3453.93 | I150: 3511.97 | J150: 3553.93 | K150: 3470 | L150: 3370 | M150: 3.14076
A151: 142 | B151: MUTHOOTFIN | C151: 1533.25 | D151: 1535.70 | E151: 1521.55 | F151: 1509.85 | G151: 1495.70 | H151: 1547.40 | I151: 1561.55 | J151: 1573.25 | K151: 1549.85 | L151: 1524 | M151: 3.03354
A152: 143 | B152: NATCOPHARM | C152: 914.75 | D152: 919.65 | E152: 907.15 | F152: 899.55 | G152: 887.05 | H152: 927.25 | I152: 939.75 | J152: 947.35 | K152: 932.15 | L152: 912.05 | M152: 2.95335
A153: 144 | B153: NMDC | C153: 135.8 | D153: 135.55 | E153: 134.60 | F153: 133.40 | G153: 132.45 | H153: 136.75 | I153: 137.70 | J153: 138.90 | K153: 136.5 | L153: 134.35 | M153: 39.50622
A154: 145 | B154: NTPC | C154: 132.9 | D154: 130.98 | E154: 128.67 | F154: 124.43 | G154: 122.12 | H154: 135.22 | I154: 137.53 | J154: 141.77 | K154: 133.3 | L154: 126.75 | M154: 339.86738
A155: 146 | B155: NATIONALUM | C155: 102.1 | D155: 102.18 | E155: 100.52 | F155: 98.93 | G155: 97.27 | H155: 103.77 | I155: 105.43 | J155: 107.02 | K155: 103.85 | L155: 100.6 | M155: 159.41813
A156: 147 | B156: NAVINFLUOR | C156: 4109.85 | D156: 4151.65 | E156: 4059.40 | F156: 4008.95 | G156: 3916.70 | H156: 4202.10 | I156: 4294.35 | J156: 4344.80 | K156: 4243.9 | L156: 4101.2 | M156: 1.36231
A157: 148 | B157: NESTLEIND | C157: 19889.05 | D157: 19821.63 | E157: 19695.47 | F157: 19501.88 | G157: 19375.72 | H157: 20015.22 | I157: 20141.38 | J157: 20334.97 | K157: 19947.8 | L157: 19628.05 | M157: 0.35034
A158: 149 | B158: NAM-INDIA | C158: 356 | D158: 355.50 | E158: 353.70 | F158: 351.40 | G158: 349.60 | H158: 357.80 | I158: 359.60 | J158: 361.90 | K158: 357.3 | L158: 353.2 | M158: 2.59568
A159: 150 | B159: OBEROIRLTY | C159: 896 | D159: 897.92 | E159: 883.18 | F159: 870.37 | G159: 855.63 | H159: 910.73 | I159: 925.47 | J159: 938.28 | K159: 912.65 | L159: 885.1 | M159: 12.90009
A160: 151 | B160: ONGC | C160: 147.8 | D160: 146.50 | E160: 144.40 | F160: 141.00 | G160: 138.90 | H160: 149.90 | I160: 152.00 | J160: 155.40 | K160: 148.6 | L160: 143.1 | M160: 163.51836
A161: 152 | B161: OIL | C161: 196.95 | D161: 198.13 | E161: 193.77 | F161: 190.58 | G161: 186.22 | H161: 201.32 | I161: 205.68 | J161: 208.87 | K161: 202.5 | L161: 194.95 | M161: 11.69971
A162: 153 | B162: PIIND | C162: 3013.9 | D162: 3024.65 | E162: 2986.90 | F162: 2959.90 | G162: 2922.15 | H162: 3051.65 | I162: 3089.40 | J162: 3116.40 | K162: 3062.4 | L162: 2997.65 | M162: 1.36534
A163: 154 | B163: PAGEIND | C163: 40959.85 | D163: 40990.35 | E163: 40719.50 | F163: 40479.15 | G163: 40208.30 | H163: 41230.70 | I163: 41501.55 | J163: 41741.90 | K163: 41261.2 | L163: 40750 | M163: 0.13843
A164: 155 | B164: PETRONET | C164: 218.3 | D164: 218.47 | E164: 216.73 | F164: 215.17 | G164: 213.43 | H164: 220.03 | I164: 221.77 | J164: 223.33 | K164: 220.2 | L164: 216.9 | M164: 14.09148
A165: 156 | B165: PFIZER | C165: 5064.7 | D165: 5096.57 | E165: 5023.13 | F165: 4981.57 | G165: 4908.13 | H165: 5138.13 | I165: 5211.57 | J165: 5253.13 | K165: 5170 | L165: 5055 | M165: 0.42667
A166: 157 | B166: PIDILITIND | C166: 2599.2 | D166: 2561.57 | E166: 2515.63 | F166: 2432.07 | G166: 2386.13 | H166: 2645.13 | I166: 2691.07 | J166: 2774.63 | K166: 2607.5 | L166: 2478 | M166: 13.68623
A167: 158 | B167: PEL | C167: 2678.45 | D167: 2681.62 | E167: 2656.83 | F167: 2635.22 | G167: 2610.43 | H167: 2703.23 | I167: 2728.02 | J167: 2749.63 | K167: 2706.4 | L167: 2660 | M167: 3.59706
A168: 159 | B168: POLYCAB | C168: 2467.4 | D168: 2473.13 | E168: 2446.27 | F168: 2425.13 | G168: 2398.27 | H168: 2494.27 | I168: 2521.13 | J168: 2542.27 | K168: 2500 | L168: 2452 | M168: 2.58206
A169: 160 | B169: PFC | C169: 123.35 | D169: 123.28 | E169: 122.22 | F169: 121.08 | G169: 120.02 | H169: 124.42 | I169: 125.48 | J169: 126.62 | K169: 124.35 | L169: 122.15 | M169: 38.0461
A170: 161 | B170: POWERGRID | C170: 210.6 | D170: 209.70 | E170: 206.40 | F170: 202.20 | G170: 198.90 | H170: 213.90 | I170: 217.20 | J170: 221.40 | K170: 213 | L170: 205.5 | M170: 110.88068
A171: 162 | B171: PRESTIGE | C171: 472.45 | D171: 476.15 | E171: 466.30 | F171: 460.15 | G171: 450.30 | H171: 482.30 | I171: 492.15 | J171: 498.30 | K171: 486 | L171: 470 | M171: 8.10008
A172: 163 | B172: PGHH | C172: 15484.35 | D172: 15537.17 | E172: 15359.33 | F172: 15234.32 | G172: 15056.48 | H172: 15662.18 | I172: 15840.02 | J172: 15965.03 | K172: 15715 | L172: 15412.15 | M172: 0.08531
A173: 164 | B173: PNB | C173: 38.35 | D173: 38.30 | E173: 37.95 | F173: 37.55 | G173: 37.20 | H173: 38.70 | I173: 39.05 | J173: 39.45 | K173: 38.65 | L173: 37.9 | M173: 409.22358
A174: 165 | B174: RBLBANK | C174: 130.85 | D174: 131.28 | E174: 128.27 | F174: 125.68 | G174: 122.67 | H174: 133.87 | I174: 136.88 | J174: 139.47 | K174: 134.3 | L174: 128.7 | M174: 327.22515
A175: 166 | B175: RECLTD | C175: 136.2 | D175: 136.30 | E175: 135.25 | F175: 134.30 | G175: 133.25 | H175: 137.25 | I175: 138.30 | J175: 139.25 | K175: 137.35 | L175: 135.35 | M175: 36.63874
A176: 167 | B176: RELIANCE | C176: 2458.1 | D176: 2441.03 | E176: 2421.07 | F176: 2384.03 | G176: 2364.07 | H176: 2478.07 | I176: 2498.03 | J176: 2535.07 | K176: 2461 | L176: 2404 | M176: 50.06225
A177: 168 | B177: SBICARD | C177: 934.5 | D177: 932.85 | E177: 928.70 | F177: 922.90 | G177: 918.75 | H177: 938.65 | I177: 942.80 | J177: 948.60 | K177: 937 | L177: 927.05 | M177: 7.78643
A178: 169 | B178: SBILIFE | C178: 1220.6 | D178: 1217.70 | E178: 1208.40 | F178: 1196.20 | G178: 1186.90 | H178: 1229.90 | I178: 1239.20 | J178: 1251.40 | K178: 1227 | L178: 1205.5 | M178: 14.09464
A179: 170 | B179: SRF | C179: 2429.25 | D179: 2411.73 | E179: 2385.52 | F179: 2341.78 | G179: 2315.57 | H179: 2455.47 | I179: 2481.68 | J179: 2525.42 | K179: 2437.95 | L179: 2368 | M179: 4.23163
A180: 171 | B180: SANOFI | C180: 7697.75 | D180: 7722.73 | E180: 7640.02 | F180: 7582.28 | G180: 7499.57 | H180: 7780.47 | I180: 7863.18 | J180: 7920.92 | K180: 7805.45 | L180: 7665 | M180: 0.10379
A181: 172 | B181: SHREECEM | C181: 26954.1 | D181: 26982.72 | E181: 26629.88 | F181: 26305.67 | G181: 25952.83 | H181: 27306.93 | I181: 27659.77 | J181: 27983.98 | K181: 27335.55 | L181: 26658.5 | M181: 0.26215
A182: 173 | B182: SRTRANSFIN | C182: 1252.95 | D182: 1253.47 | E182: 1230.73 | F182: 1208.52 | G182: 1185.78 | H182: 1275.68 | I182: 1298.42 | J182: 1320.63 | K182: 1276.2 | L182: 1231.25 | M182: 12.77478
A183: 174 | B183: SIEMENS | C183: 2357.3 | D183: 2364.47 | E183: 2340.83 | F183: 2324.37 | G183: 2300.73 | H183: 2380.93 | I183: 2404.57 | J183: 2421.03 | K183: 2388.1 | L183: 2348 | M183: 2.96361
A184: 175 | B184: SBIN | C184: 483.5 | D184: 479.75 | E184: 474.80 | F184: 466.10 | G184: 461.15 | H184: 488.45 | I184: 493.40 | J184: 502.10 | K184: 484.7 | L184: 471.05 | M184: 232.96671
A185: 176 | B185: SAIL | C185: 109.85 | D185: 109.92 | E185: 108.58 | F185: 107.32 | G185: 105.98 | H185: 111.18 | I185: 112.52 | J185: 113.78 | K185: 111.25 | L185: 108.65 | M185: 249.52161
A186: 177 | B186: SUNPHARMA | C186: 837.7 | D186: 841.37 | E186: 828.73 | F186: 819.77 | G186: 807.13 | H186: 850.33 | I186: 862.97 | J186: 871.93 | K186: 854 | L186: 832.4 | M186: 30.27262
A187: 178 | B187: SUNTV | C187: 503.35 | D187: 504.60 | E187: 499.75 | F187: 496.15 | G187: 491.30 | H187: 508.20 | I187: 513.05 | J187: 516.65 | K187: 509.45 | L187: 501 | M187: 5.0717
A188: 179 | B188: SYNGENE | C188: 617.8 | D188: 615.93 | E188: 607.87 | F188: 597.93 | G188: 589.87 | H188: 625.87 | I188: 633.93 | J188: 643.87 | K188: 624 | L188: 606 | M188: 3.11943
A189: 180 | B189: TVSMOTOR | C189: 630.45 | D189: 630.83 | E189: 626.12 | F189: 621.78 | G189: 617.07 | H189: 635.17 | I189: 639.88 | J189: 644.22 | K189: 635.55 | L189: 626.5 | M189: 5.74936
A190: 181 | B190: TATACHEM | C190: 909.1 | D190: 909.67 | E190: 899.43 | F190: 889.77 | G190: 879.53 | H190: 919.33 | I190: 929.57 | J190: 939.23 | K190: 919.9 | L190: 900 | M190: 7.02903
A191: 182 | B191: TATACOMM | C191: 1421.2 | D191: 1429.07 | E191: 1393.38 | F191: 1365.57 | G191: 1329.88 | H191: 1456.88 | I191: 1492.57 | J191: 1520.38 | K191: 1464.75 | L191: 1401.25 | M191: 12.25469
A192: 183 | B192: TCS | C192: 3884.75 | D192: 3861.87 | E192: 3834.58 | F192: 3784.42 | G192: 3757.13 | H192: 3912.03 | I192: 3939.32 | J192: 3989.48 | K192: 3889.15 | L192: 3811.7 | M192: 24.88606
A193: 184 | B193: TATACONSUM | C193: 738.85 | D193: 742.20 | E193: 727.70 | F193: 716.55 | G193: 702.05 | H193: 753.35 | I193: 767.85 | J193: 779.00 | K193: 756.7 | L193: 731.05 | M193: 23.52482
A194: 185 | B194: TATAELXSI | C194: 5977.75 | D194: 5954.10 | E194: 5918.70 | F194: 5859.65 | G194: 5824.25 | H194: 6013.15 | I194: 6048.55 | J194: 6107.60 | K194: 5989.5 | L194: 5895.05 | M194: 1.07717
A195: 186 | B195: TATAMOTORS | C195: 489.6 | D195: 490.88 | E195: 482.77 | F195: 475.93 | G195: 467.82 | H195: 497.72 | I195: 505.83 | J195: 512.67 | K195: 499 | L195: 484.05 | M195: 241.00985
A196: 187 | B196: TATAPOWER | C196: 226.3 | D196: 225.18 | E196: 222.12 | F196: 217.93 | G196: 214.87 | H196: 229.37 | I196: 232.43 | J196: 236.62 | K196: 228.25 | L196: 221 | M196: 324.69988
A197: 188 | B197: TATASTEEL | C197: 1148.8 | D197: 1148.33 | E197: 1136.97 | F197: 1125.13 | G197: 1113.77 | H197: 1160.17 | I197: 1171.53 | J197: 1183.37 | K197: 1159.7 | L197: 1136.5 | M197: 59.75731
A198: 189 | B198: TECHM | C198: 1789.8 | D198: 1786.87 | E198: 1769.93 | F198: 1750.07 | G198: 1733.13 | H198: 1806.73 | I198: 1823.67 | J198: 1843.53 | K198: 1803.8 | L198: 1767 | M198: 27.01533
A199: 190 | B199: RAMCOCEM | C199: 1024.4 | D199: 1023.88 | E199: 1017.02 | F199: 1009.63 | G199: 1002.77 | H199: 1031.27 | I199: 1038.13 | J199: 1045.52 | K199: 1030.75 | L199: 1016.5 | M199: 3.02302
A200: 191 | B200: TITAN | C200: 2583 | D200: 2567.45 | E200: 2539.95 | F200: 2496.90 | G200: 2469.40 | H200: 2610.50 | I200: 2638.00 | J200: 2681.05 | K200: 2594.95 | L200: 2524.4 | M200: 10.37293
A201: 192 | B201: TORNTPHARM | C201: 3208.85 | D201: 3223.12 | E201: 3173.73 | F201: 3138.62 | G201: 3089.23 | H201: 3258.23 | I201: 3307.62 | J201: 3342.73 | K201: 3272.5 | L201: 3188 | M201: 1.39846
A202: 193 | B202: TORNTPOWER | C202: 570.6 | D202: 566.57 | E202: 560.03 | F202: 549.47 | G202: 542.93 | H202: 577.13 | I202: 583.67 | J202: 594.23 | K202: 573.1 | L202: 556 | M202: 11.78814
A203: 194 | B203: TRENT | C203: 1055.95 | D203: 1056.32 | E203: 1045.63 | F203: 1035.32 | G203: 1024.63 | H203: 1066.63 | I203: 1077.32 | J203: 1087.63 | K203: 1067 | L203: 1046 | M203: 2.58035
A204: 195 | B204: UPL | C204: 761.75 | D204: 762.13 | E204: 755.12 | F204: 748.48 | G204: 741.47 | H204: 768.77 | I204: 775.78 | J204: 782.42 | K204: 769.15 | L204: 755.5 | M204: 12.47395
A205: 196 | B205: ULTRACEMCO | C205: 7650.35 | D205: 7678.30 | E205: 7583.75 | F205: 7517.15 | G205: 7422.60 | H205: 7744.90 | I205: 7839.45 | J205: 7906.05 | K205: 7772.85 | L205: 7611.7 | M205: 3.15188
... 29 more rows

Sheet MidCap Intra
L5: Back To Main Page
A6: FOR INTRA DAY TRADING | K6: =Main!B10 -> 2022-01-05
A9: Sr.no | B9: Scrip | C9: CLOSE RATE | D9: Pivot Point | E9: Supports | H9: Resistances
E10: S1 | F10: S2 | G10: S3 | H10: R1 | I10: R2 | J10: R3 | K10: HIGH | L10: LOW | M10: Total Trade Quanity in Lakhs
A11: 1 | B11: 3MINDIA | C11: 25612.45 | D11: 25696.77 | E11: 25423.53 | F11: 25234.62 | G11: 24961.38 | H11: 25885.68 | I11: 26158.92 | J11: 26347.83 | K11: 25970 | L11: 25507.85 | M11: 0.05996
A12: 2 | B12: AARTIDRUGS | C12: 538 | D12: 540.23 | E12: 533.77 | F12: 529.53 | G12: 523.07 | H12: 544.47 | I12: 550.93 | J12: 555.17 | K12: 546.7 | L12: 536 | M12: 0.8658
A13: 3 | B13: AARTIIND | C13: 992 | D13: 999.93 | E13: 975.22 | F13: 958.43 | G13: 933.72 | H13: 1016.72 | I13: 1041.43 | J13: 1058.22 | K13: 1024.65 | L13: 983.15 | M13: 10.6718
A14: 4 | B14: AAVAS | C14: 2771 | D14: 2723.55 | E14: 2662.10 | F14: 2553.20 | G14: 2491.75 | H14: 2832.45 | I14: 2893.90 | J14: 3002.80 | K14: 2785 | L14: 2614.65 | M14: 0.8935
A15: 5 | B15: ABB | C15: 2219.75 | D15: 2215.80 | E15: 2193.95 | F15: 2168.15 | G15: 2146.30 | H15: 2241.60 | I15: 2263.45 | J15: 2289.25 | K15: 2237.65 | L15: 2190 | M15: 3.53471
A16: 6 | B16: ABBOTINDIA | C16: 18986.2 | D16: 19097.73 | E16: 18797.52 | F16: 18608.83 | G16: 18308.62 | H16: 19286.42 | I16: 19586.63 | J16: 19775.32 | K16: 19397.95 | L16: 18909.05 | M16: 0.12711
A17: 7 | B17: ABCAPITAL | C17: 130.9 | D17: 130.15 | E17: 127.80 | F17: 124.70 | G17: 122.35 | H17: 133.25 | I17: 135.60 | J17: 138.70 | K17: 132.5 | L17: 127.05 | M17: 108.8447
A18: 8 | B18: ABFRL | C18: 286.35 | D18: 282.25 | E18: 276.35 | F18: 266.35 | G18: 260.45 | H18: 292.25 | I18: 298.15 | J18: 308.15 | K18: 288.15 | L18: 272.25 | M18: 52.30203
A19: 9 | B19: ACC | C19: 2224.3 | D19: 2235.20 | E19: 2205.60 | F19: 2186.90 | G19: 2157.30 | H19: 2253.90 | I19: 2283.50 | J19: 2302.20 | K19: 2264.8 | L19: 2216.5 | M19: 3.63436
A20: 10 | B20: ADANIENT | C20: 1719 | D20: 1715.67 | E20: 1703.33 | F20: 1687.67 | G20: 1675.33 | H20: 1731.33 | I20: 1743.67 | J20: 1759.33 | K20: 1728 | L20: 1700 | M20: 11.91189
A21: 11 | B21: ADANIGREEN | C21: 1366.7 | D21: 1360.57 | E21: 1346.13 | F21: 1325.57 | G21: 1311.13 | H21: 1381.13 | I21: 1395.57 | J21: 1416.13 | K21: 1375 | L21: 1340 | M21: 1.92988
A22: 12 | B22: ADANIPORTS | C22: 739.25 | D22: 739.63 | E22: 732.27 | F22: 725.28 | G22: 717.92 | H22: 746.62 | I22: 753.98 | J22: 760.97 | K22: 747 | L22: 732.65 | M22: 40.68551
A23: 13 | B23: ADANITRANS | C23: 1754.95 | D23: 1743.32 | E23: 1711.63 | F23: 1668.32 | G23: 1636.63 | H23: 1786.63 | I23: 1818.32 | J23: 1861.63 | K23: 1775 | L23: 1700 | M23: 0.42498
A24: 14 | B24: ADVENZYMES | C24: 333.05 | D24: 333.97 | E24: 331.03 | F24: 329.02 | G24: 326.08 | H24: 335.98 | I24: 338.92 | J24: 340.93 | K24: 336.9 | L24: 331.95 | M24: 0.74072
A25: 15 | B25: AEGISCHEM | C25: 217.6 | D25: 219.87 | E25: 214.78 | F25: 211.97 | G25: 206.88 | H25: 222.68 | I25: 227.77 | J25: 230.58 | K25: 224.95 | L25: 217.05 | M25: 4.36916
A26: 16 | B26: AFFLE | C26: 1317.4 | D26: 1296.55 | E26: 1224.30 | F26: 1131.20 | G26: 1058.95 | H26: 1389.65 | I26: 1461.90 | J26: 1555.00 | K26: 1368.8 | L26: 1203.45 | M26: 40.86075
A27: 17 | B27: AIAENG | C27: 1846.6 | D27: 1852.07 | E27: 1825.53 | F27: 1804.47 | G27: 1777.93 | H27: 1873.13 | I27: 1899.67 | J27: 1920.73 | K27: 1878.6 | L27: 1831 | M27: 0.15503
A28: 18 | B28: AJANTPHARM | C28: 2202.65 | D28: 2209.37 | E28: 2189.78 | F28: 2176.92 | G28: 2157.33 | H28: 2222.23 | I28: 2241.82 | J28: 2254.68 | K28: 2228.95 | L28: 2196.5 | M28: 0.66304
A29: 19 | B29: ALEMBICLTD | C29: 110.05 | D29: 110.37 | E29: 106.23 | F29: 102.42 | G29: 98.28 | H29: 114.18 | I29: 118.32 | J29: 122.13 | K29: 114.5 | L29: 106.55 | M29: 17.41321
A30: 20 | B30: ALKEM | C30: 3613.8 | D30: 3652.60 | E30: 3561.20 | F30: 3508.60 | G30: 3417.20 | H30: 3705.20 | I30: 3796.60 | J30: 3849.20 | K30: 3744 | L30: 3600 | M30: 3.17799
A31: 21 | B31: ALKYLAMINE | C31: 3728.35 | D31: 3751.03 | E31: 3637.32 | F31: 3546.28 | G31: 3432.57 | H31: 3842.07 | I31: 3955.78 | J31: 4046.82 | K31: 3864.75 | L31: 3660 | M31: 1.60288
A32: 22 | B32: ALOKINDS | C32: 25.35 | D32: 25.57 | E32: 24.98 | F32: 24.62 | G32: 24.03 | H32: 25.93 | I32: 26.52 | J32: 26.88 | K32: 26.15 | L32: 25.2 | M32: 157.09063
A33: 23 | B33: AMARAJABAT | C33: 636.45 | D33: 636.60 | E33: 631.05 | F33: 625.65 | G33: 620.10 | H33: 642.00 | I33: 647.55 | J33: 652.95 | K33: 642.15 | L33: 631.2 | M33: 5.95552
A34: 24 | B34: AMBER | C34: 3307.35 | D34: 3320.78 | E34: 3287.57 | F34: 3267.78 | G34: 3234.57 | H34: 3340.57 | I34: 3373.78 | J34: 3393.57 | K34: 3354 | L34: 3301 | M34: 0.16772
A35: 25 | B35: AMBUJACEM | C35: 390.45 | D35: 388.48 | E35: 385.27 | F35: 380.08 | G35: 376.87 | H35: 393.67 | I35: 396.88 | J35: 402.07 | K35: 391.7 | L35: 383.3 | M35: 30.34913
A36: 26 | B36: ANGELONE | C36: 1219.35 | D36: 1228.95 | E36: 1198.40 | F36: 1177.45 | G36: 1146.90 | H36: 1249.90 | I36: 1280.45 | J36: 1301.40 | K36: 1259.5 | L36: 1208 | M36: 9.36612
A37: 27 | B37: ANURAS | C37: 1035.05 | D37: 1039.45 | E37: 1007.40 | F37: 979.75 | G37: 947.70 | H37: 1067.10 | I37: 1099.15 | J37: 1126.80 | K37: 1071.5 | L37: 1011.8 | M37: 3.0005
A38: 28 | B38: APLAPOLLO | C38: 948.2 | D38: 957.53 | E38: 935.67 | F38: 923.13 | G38: 901.27 | H38: 970.07 | I38: 991.93 | J38: 1004.47 | K38: 979.4 | L38: 945 | M38: 5.4702
A39: 29 | B39: APLLTD | C39: 841.25 | D39: 830.67 | E39: 812.78 | F39: 784.32 | G39: 766.43 | H39: 859.13 | I39: 877.02 | J39: 905.48 | K39: 848.55 | L39: 802.2 | M39: 14.77317
A40: 30 | B40: APOLLOHOSP | C40: 4964.6 | D40: 4971.53 | E40: 4914.17 | F40: 4863.73 | G40: 4806.37 | H40: 5021.97 | I40: 5079.33 | J40: 5129.77 | K40: 5028.9 | L40: 4921.1 | M40: 3.69814
A41: 31 | B41: APOLLOTYRE | C41: 225.6 | D41: 224.77 | E41: 221.73 | F41: 217.87 | G41: 214.83 | H41: 228.63 | I41: 231.67 | J41: 235.53 | K41: 227.8 | L41: 220.9 | M41: 40.7616
A42: 32 | B42: ASAHIINDIA | C42: 490.2 | D42: 495.13 | E42: 481.27 | F42: 472.33 | G42: 458.47 | H42: 504.07 | I42: 517.93 | J42: 526.87 | K42: 509 | L42: 486.2 | M42: 2.33518
A43: 33 | B43: ASHOKA | C43: 104.9 | D43: 103.93 | E43: 102.47 | F43: 100.03 | G43: 98.57 | H43: 106.37 | I43: 107.83 | J43: 110.27 | K43: 105.4 | L43: 101.5 | M43: 27.23054
A44: 34 | B44: ASHOKLEY | C44: 127.4 | D44: 127.13 | E44: 126.07 | F44: 124.73 | G44: 123.67 | H44: 128.47 | I44: 129.53 | J44: 130.87 | K44: 128.2 | L44: 125.8 | M44: 127.27476
A45: 35 | B45: ASIANPAINT | C45: 3459.3 | D45: 3448.93 | E45: 3425.42 | F45: 3391.53 | G45: 3368.02 | H45: 3482.82 | I45: 3506.33 | J45: 3540.22 | K45: 3472.45 | L45: 3415.05 | M45: 7.90886
A46: 36 | B46: ASTERDM | C46: 179.25 | D46: 180.20 | E46: 177.25 | F46: 175.25 | G46: 172.30 | H46: 182.20 | I46: 185.15 | J46: 187.15 | K46: 183.15 | L46: 178.2 | M46: 5.49429
A47: 37 | B47: ASTRAL | C47: 2396.65 | D47: 2380.58 | E47: 2317.17 | F47: 2237.68 | G47: 2174.27 | H47: 2460.07 | I47: 2523.48 | J47: 2602.97 | K47: 2444 | L47: 2301.1 | M47: 8.2715
A48: 38 | B48: ASTRAZEN | C48: 3052.3 | D48: 3060.08 | E48: 3022.22 | F48: 2992.13 | G48: 2954.27 | H48: 3090.17 | I48: 3128.03 | J48: 3158.12 | K48: 3097.95 | L48: 3030 | M48: 0.12251
A49: 39 | B49: ATGL | C49: 1753.95 | D49: 1746.28 | E49: 1722.67 | F49: 1691.38 | G49: 1667.77 | H49: 1777.57 | I49: 1801.18 | J49: 1832.47 | K49: 1769.9 | L49: 1715 | M49: 4.31313
A50: 40 | B50: ATUL | C50: 9301.9 | D50: 9207.67 | E50: 9085.53 | F50: 8869.17 | G50: 8747.03 | H50: 9424.03 | I50: 9546.17 | J50: 9762.53 | K50: 9329.8 | L50: 8991.3 | M50: 0.63289
A51: 41 | B51: AUBANK | C51: 1095.9 | D51: 1090.88 | E51: 1076.97 | F51: 1058.03 | G51: 1044.12 | H51: 1109.82 | I51: 1123.73 | J51: 1142.67 | K51: 1104.8 | L51: 1071.95 | M51: 14.32337
A52: 42 | B52: AUROPHARMA | C52: 722.25 | D52: 726.73 | E52: 716.52 | F52: 710.78 | G52: 700.57 | H52: 732.47 | I52: 742.68 | J52: 748.42 | K52: 736.95 | L52: 721 | M52: 11.3425
A53: 43 | B53: AVANTIFEED | C53: 580.6 | D53: 579.42 | E53: 574.78 | F53: 568.97 | G53: 564.33 | H53: 585.23 | I53: 589.87 | J53: 595.68 | K53: 584.05 | L53: 573.6 | M53: 1.30599
A54: 44 | B54: AXISBANK | C54: 709.15 | D54: 706.75 | E54: 702.45 | F54: 695.75 | G54: 691.45 | H54: 713.45 | I54: 717.75 | J54: 724.45 | K54: 711.05 | L54: 700.05 | M54: 97.05906
A55: 45 | B55: BAJAJ-AUTO | C55: 3289.15 | D55: 3291.93 | E55: 3267.87 | F55: 3246.58 | G55: 3222.52 | H55: 3313.22 | I55: 3337.28 | J55: 3358.57 | K55: 3316 | L55: 3270.65 | M55: 2.44503
A56: 46 | B56: BAJAJCON | C56: 198 | D56: 198.85 | E56: 196.70 | F56: 195.40 | G56: 193.25 | H56: 200.15 | I56: 202.30 | J56: 203.60 | K56: 201 | L56: 197.55 | M56: 4.73299
A57: 47 | B57: BAJAJELEC | C57: 1291.1 | D57: 1291.25 | E57: 1272.50 | F57: 1253.90 | G57: 1235.15 | H57: 1309.85 | I57: 1328.60 | J57: 1347.20 | K57: 1310 | L57: 1272.65 | M57: 1.54459
A58: 48 | B58: BAJAJFINSV | C58: 17135.45 | D58: 17059.18 | E58: 16928.37 | F58: 16721.28 | G58: 16590.47 | H58: 17266.27 | I58: 17397.08 | J58: 17604.17 | K58: 17190 | L58: 16852.1 | M58: 2.30043
A59: 49 | B59: BAJAJHLDNG | C59: 5293.25 | D59: 5303.90 | E59: 5187.80 | F59: 5082.35 | G59: 4966.25 | H59: 5409.35 | I59: 5525.45 | J59: 5630.90 | K59: 5420 | L59: 5198.45 | M59: 0.34151
A60: 50 | B60: BAJFINANCE | C60: 7343 | D60: 7317.83 | E60: 7260.67 | F60: 7178.33 | G60: 7121.17 | H60: 7400.17 | I60: 7457.33 | J60: 7539.67 | K60: 7375 | L60: 7235.5 | M60: 9.59173
A61: 51 | B61: BALAMINES | C61: 3783.9 | D61: 3823.15 | E61: 3711.30 | F61: 3638.70 | G61: 3526.85 | H61: 3895.75 | I61: 4007.60 | J61: 4080.20 | K61: 3935 | L61: 3750.55 | M61: 2.69195
A62: 52 | B62: BALKRISIND | C62: 2313.05 | D62: 2321.08 | E62: 2282.02 | F62: 2250.98 | G62: 2211.92 | H62: 2352.12 | I62: 2391.18 | J62: 2422.22 | K62: 2360.15 | L62: 2290.05 | M62: 4.5407
A63: 53 | B63: BALRAMCHIN | C63: 427.3 | D63: 409.05 | E63: 388.25 | F63: 349.20 | G63: 328.40 | H63: 448.10 | I63: 468.90 | J63: 507.95 | K63: 429.85 | L63: 370 | M63: 189.50113
A64: 54 | B64: BANDHANBNK | C64: 254.55 | D64: 256.47 | E64: 250.28 | F64: 246.02 | G64: 239.83 | H64: 260.73 | I64: 266.92 | J64: 271.18 | K64: 262.65 | L64: 252.2 | M64: 113.93172
A65: 55 | B65: BANKBARODA | C65: 83.9 | D65: 83.88 | E65: 83.12 | F65: 82.33 | G65: 81.57 | H65: 84.67 | I65: 85.43 | J65: 86.22 | K65: 84.65 | L65: 83.1 | M65: 244.56776
A66: 56 | B66: BANKINDIA | C66: 52.95 | D66: 52.85 | E66: 52.40 | F66: 51.85 | G66: 51.40 | H66: 53.40 | I66: 53.85 | J66: 54.40 | K66: 53.3 | L66: 52.3 | M66: 40.90067
A67: 57 | B67: BASF | C67: 2980.75 | D67: 2992.57 | E67: 2953.18 | F67: 2925.62 | G67: 2886.23 | H67: 3020.13 | I67: 3059.52 | J67: 3087.08 | K67: 3031.95 | L67: 2965 | M67: 0.21122
A68: 58 | B68: BATAINDIA | C68: 1845.55 | D68: 1851.27 | E68: 1828.53 | F68: 1811.52 | G68: 1788.78 | H68: 1868.28 | I68: 1891.02 | J68: 1908.03 | K68: 1874 | L68: 1834.25 | M68: 2.25583
A69: 59 | B69: BAYERCROP | C69: 4973.2 | D69: 4949.67 | E69: 4899.33 | F69: 4825.47 | G69: 4775.13 | H69: 5023.53 | I69: 5073.87 | J69: 5147.73 | K69: 5000 | L69: 4875.8 | M69: 0.06771
A70: 60 | B70: BBTC | C70: 1097.8 | D70: 1103.00 | E70: 1088.80 | F70: 1079.80 | G70: 1065.60 | H70: 1112.00 | I70: 1126.20 | J70: 1135.20 | K70: 1117.2 | L70: 1094 | M70: 0.22835
A71: 61 | B71: BDL | C71: 394 | D71: 395.57 | E71: 390.23 | F71: 386.47 | G71: 381.13 | H71: 399.33 | I71: 404.67 | J71: 408.43 | K71: 400.9 | L71: 391.8 | M71: 1.04349
A72: 62 | B72: BEL | C72: 216.15 | D72: 215.47 | E72: 211.88 | F72: 207.62 | G72: 204.03 | H72: 219.73 | I72: 223.32 | J72: 227.58 | K72: 219.05 | L72: 211.2 | M72: 104.45579
A73: 63 | B73: BEML | C73: 1730.1 | D73: 1699.77 | E73: 1651.13 | F73: 1572.17 | G73: 1523.53 | H73: 1778.73 | I73: 1827.37 | J73: 1906.33 | K73: 1748.4 | L73: 1620.8 | M73: 8.3508
A74: 64 | B74: BERGEPAINT | C74: 784.45 | D74: 779.67 | E74: 773.13 | F74: 761.82 | G74: 755.28 | H74: 790.98 | I74: 797.52 | J74: 808.83 | K74: 786.2 | L74: 768.35 | M74: 4.08559
A75: 65 | B75: BHARATFORG | C75: 717 | D75: 716.92 | E75: 710.83 | F75: 704.67 | G75: 698.58 | H75: 723.08 | I75: 729.17 | J75: 735.33 | K75: 723 | L75: 710.75 | M75: 11.92385
A76: 66 | B76: BHARATRAS | C76: 11793.55 | D76: 11859.08 | E76: 11657.57 | F76: 11521.58 | G76: 11320.07 | H76: 11995.07 | I76: 12196.58 | J76: 12332.57 | K76: 12060.6 | L76: 11723.1 | M76: 0.02718
A77: 67 | B77: BHARTIARTL | C77: 697.45 | D77: 697.03 | E77: 690.82 | F77: 684.18 | G77: 677.97 | H77: 703.67 | I77: 709.88 | J77: 716.52 | K77: 703.25 | L77: 690.4 | M77: 64.73875
A78: 68 | B78: BHEL | C78: 60.05 | D78: 60.18 | E78: 59.17 | F78: 58.28 | G78: 57.27 | H78: 61.07 | I78: 62.08 | J78: 62.97 | K78: 61.2 | L78: 59.3 | M78: 236.8478
A79: 69 | B79: BIOCON | C79: 364.4 | D79: 364.18 | E79: 358.77 | F79: 353.13 | G79: 347.72 | H79: 369.82 | I79: 375.23 | J79: 380.87 | K79: 369.6 | L79: 358.55 | M79: 31.15452
A80: 70 | B80: BIRLACORPN | C80: 1479.3 | D80: 1469.72 | E80: 1437.43 | F80: 1395.57 | G80: 1363.28 | H80: 1511.58 | I80: 1543.87 | J80: 1585.73 | K80: 1502 | L80: 1427.85 | M80: 2.74301
A81: 71 | B81: BLUEDART | C81: 6575.85 | D81: 6541.62 | E81: 6484.23 | F81: 6392.62 | G81: 6335.23 | H81: 6633.23 | I81: 6690.62 | J81: 6782.23 | K81: 6599 | L81: 6450 | M81: 0.18489
A82: 72 | B82: BLUESTARCO | C82: 1027.5 | D82: 1022.50 | E82: 1016.00 | F82: 1004.50 | G82: 998.00 | H82: 1034.00 | I82: 1040.50 | J82: 1052.00 | K82: 1029 | L82: 1011 | M82: 0.25546
A83: 73 | B83: BOSCHLTD | C83: 17222.6 | D83: 17248.87 | E83: 17078.73 | F83: 16934.87 | G83: 16764.73 | H83: 17392.73 | I83: 17562.87 | J83: 17706.73 | K83: 17419 | L83: 17105 | M83: 0.21725
A84: 74 | B84: BPCL | C84: 385.95 | D84: 388.15 | E84: 382.55 | F84: 379.15 | G84: 373.55 | H84: 391.55 | I84: 397.15 | J84: 400.55 | K84: 393.75 | L84: 384.75 | M84: 58.99648
A85: 75 | B85: BRIGADE | C85: 475.05 | D85: 481.63 | E85: 465.82 | F85: 456.58 | G85: 440.77 | H85: 490.87 | I85: 506.68 | J85: 515.92 | K85: 497.45 | L85: 472.4 | M85: 5.44224
A86: 76 | B86: BRITANNIA | C86: 3638.45 | D86: 3630.77 | E86: 3617.68 | F86: 3596.92 | G86: 3583.83 | H86: 3651.53 | I86: 3664.62 | J86: 3685.38 | K86: 3643.85 | L86: 3610 | M86: 3.17247
A87: 77 | B87: BSE | C87: 1910.15 | D87: 1908.72 | E87: 1889.43 | F87: 1868.72 | G87: 1849.43 | H87: 1929.43 | I87: 1948.72 | J87: 1969.43 | K87: 1928 | L87: 1888 | M87: 3.51805
A88: 78 | B88: BSOFT | C88: 559.6 | D88: 562.52 | E88: 552.63 | F88: 545.67 | G88: 535.78 | H88: 569.48 | I88: 579.37 | J88: 586.33 | K88: 572.4 | L88: 555.55 | M88: 25.53963
A89: 79 | B89: BURGERKING | C89: 140.8 | D89: 141.33 | E89: 139.72 | F89: 138.63 | G89: 137.02 | H89: 142.42 | I89: 144.03 | J89: 145.12 | K89: 142.95 | L89: 140.25 | M89: 12.37229
A90: 80 | B90: CADILAHC | C90: 464.65 | D90: 469.37 | E90: 459.33 | F90: 454.02 | G90: 443.98 | H90: 474.68 | I90: 484.72 | J90: 490.03 | K90: 479.4 | L90: 464.05 | M90: 23.79973
A91: 81 | B91: CAMS | C91: 2738.9 | D91: 2740.32 | E91: 2715.78 | F91: 2692.67 | G91: 2668.13 | H91: 2763.43 | I91: 2787.97 | J91: 2811.08 | K91: 2764.85 | L91: 2717.2 | M91: 1.03358
A92: 82 | B92: CANBK | C92: 206.55 | D92: 206.63 | E92: 204.27 | F92: 201.98 | G92: 199.62 | H92: 208.92 | I92: 211.28 | J92: 213.57 | K92: 209 | L92: 204.35 | M92: 93.40933
A93: 83 | B93: CANFINHOME | C93: 581.05 | D93: 577.48 | E93: 571.77 | F93: 562.48 | G93: 556.77 | H93: 586.77 | I93: 592.48 | J93: 601.77 | K93: 583.2 | L93: 568.2 | M93: 5.34568
A94: 84 | B94: CAPLIPOINT | C94: 864.2 | D94: 865.80 | E94: 852.05 | F94: 839.90 | G94: 826.15 | H94: 877.95 | I94: 891.70 | J94: 903.85 | K94: 879.55 | L94: 853.65 | M94: 0.85913
A95: 85 | B95: CARBORUNIV | C95: 985.45 | D95: 985.95 | E95: 959.50 | F95: 933.55 | G95: 907.10 | H95: 1011.90 | I95: 1038.35 | J95: 1064.30 | K95: 1012.4 | L95: 960 | M95: 3.3459
A96: 86 | B96: CASTROLIND | C96: 124.85 | D96: 124.82 | E96: 124.08 | F96: 123.32 | G96: 122.58 | H96: 125.58 | I96: 126.32 | J96: 127.08 | K96: 125.55 | L96: 124.05 | M96: 5.02136
A97: 87 | B97: CCL | C97: 425.3 | D97: 425.78 | E97: 419.32 | F97: 413.33 | G97: 406.87 | H97: 431.77 | I97: 438.23 | J97: 444.22 | K97: 432.25 | L97: 419.8 | M97: 3.33209
A98: 88 | B98: CDSL | C98: 1534.9 | D98: 1536.60 | E98: 1515.30 | F98: 1495.70 | G98: 1474.40 | H98: 1556.20 | I98: 1577.50 | J98: 1597.10 | K98: 1557.9 | L98: 1517 | M98: 5.40844
A99: 89 | B99: CEATLTD | C99: 1186.05 | D99: 1194.15 | E99: 1168.35 | F99: 1150.65 | G99: 1124.85 | H99: 1211.85 | I99: 1237.65 | J99: 1255.35 | K99: 1219.95 | L99: 1176.45 | M99: 0.92223
A100: 90 | B100: CENTRALBK | C100: 21.5 | D100: 21.53 | E100: 21.37 | F100: 21.23 | G100: 21.07 | H100: 21.67 | I100: 21.83 | J100: 21.97 | K100: 21.7 | L100: 21.4 | M100: 28.37091
A101: 91 | B101: CENTURYPLY | C101: 621.3 | D101: 620.62 | E101: 611.23 | F101: 601.17 | G101: 591.78 | H101: 630.68 | I101: 640.07 | J101: 650.13 | K101: 630 | L101: 610.55 | M101: 5.7024
A102: 92 | B102: CENTURYTEX | C102: 915.4 | D102: 917.72 | E102: 906.68 | F102: 897.97 | G102: 886.93 | H102: 926.43 | I102: 937.47 | J102: 946.18 | K102: 928.75 | L102: 909 | M102: 3.15786
A103: 93 | B103: CERA | C103: 4963.95 | D103: 4969.00 | E103: 4920.00 | F103: 4876.05 | G103: 4827.05 | H103: 5012.95 | I103: 5061.95 | J103: 5105.90 | K103: 5018 | L103: 4925.05 | M103: 0.05124
A104: 94 | B104: CESC | C104: 89.5 | D104: 89.08 | E104: 87.97 | F104: 86.43 | G104: 85.32 | H104: 90.62 | I104: 91.73 | J104: 93.27 | K104: 90.2 | L104: 87.55 | M104: 27.37744
A105: 95 | B105: CGCL | C105: 515.4 | D105: 513.47 | E105: 508.98 | F105: 502.57 | G105: 498.08 | H105: 519.88 | I105: 524.37 | J105: 530.78 | K105: 517.95 | L105: 507.05 | M105: 0.3107
A106: 96 | B106: CGPOWER | C106: 204.6 | D106: 202.50 | E106: 199.10 | F106: 193.60 | G106: 190.20 | H106: 208.00 | I106: 211.40 | J106: 216.90 | K106: 205.9 | L106: 197 | M106: 38.75697
A107: 97 | B107: CHALET | C107: 220.15 | D107: 221.32 | E107: 216.88 | F107: 213.62 | G107: 209.18 | H107: 224.58 | I107: 229.02 | J107: 232.28 | K107: 225.75 | L107: 218.05 | M107: 2.0567
A108: 98 | B108: CHAMBLFERT | C108: 407.25 | D108: 405.18 | E108: 400.37 | F108: 393.48 | G108: 388.67 | H108: 412.07 | I108: 416.88 | J108: 423.77 | K108: 410 | L108: 398.3 | M108: 12.60145
A109: 99 | B109: CHOLAFIN | C109: 546.05 | D109: 543.00 | E109: 538.30 | F109: 530.55 | G109: 525.85 | H109: 550.75 | I109: 555.45 | J109: 563.20 | K109: 547.7 | L109: 535.25 | M109: 18.21625
A110: 100 | B110: CHOLAHLDNG | C110: 645.65 | D110: 648.57 | E110: 637.13 | F110: 628.62 | G110: 617.18 | H110: 657.08 | I110: 668.52 | J110: 677.03 | K110: 660 | L110: 640.05 | M110: 0.33714
A111: 101 | B111: CIPLA | C111: 924.25 | D111: 927.32 | E111: 917.18 | F111: 910.12 | G111: 899.98 | H111: 934.38 | I111: 944.52 | J111: 951.58 | K111: 937.45 | L111: 920.25 | M111: 12.38138
A112: 102 | B112: COALINDIA | C112: 153 | D112: 154.00 | E112: 151.35 | F112: 149.70 | G112: 147.05 | H112: 155.65 | I112: 158.30 | J112: 159.95 | K112: 156.65 | L112: 152.35 | M112: 137.4444
A113: 103 | B113: COCHINSHIP | C113: 346.85 | D113: 349.98 | E113: 342.87 | F113: 338.88 | G113: 331.77 | H113: 353.97 | I113: 361.08 | J113: 365.07 | K113: 357.1 | L113: 346 | M113: 1.71055
A114: 104 | B114: COFORGE | C114: 6105.4 | D114: 6076.85 | E114: 6018.70 | F114: 5932.00 | G114: 5873.85 | H114: 6163.55 | I114: 6221.70 | J114: 6308.40 | K114: 6135 | L114: 5990.15 | M114: 6.69217
A115: 105 | B115: COLPAL | C115: 1464.8 | D115: 1465.27 | E115: 1456.58 | F115: 1448.37 | G115: 1439.68 | H115: 1473.48 | I115: 1482.17 | J115: 1490.38 | K115: 1473.95 | L115: 1457.05 | M115: 3.1389
A116: 106 | B116: CONCOR | C116: 627.75 | D116: 626.17 | E116: 617.78 | F116: 607.82 | G116: 599.43 | H116: 636.13 | I116: 644.52 | J116: 654.48 | K116: 634.55 | L116: 616.2 | M116: 8.89836
A117: 107 | B117: COROMANDEL | C117: 769.9 | D117: 769.95 | E117: 756.00 | F117: 742.10 | G117: 728.15 | H117: 783.85 | I117: 797.80 | J117: 811.70 | K117: 783.9 | L117: 756.05 | M117: 8.61764
A118: 108 | B118: CREDITACC | C118: 596.3 | D118: 600.25 | E118: 590.65 | F118: 585.00 | G118: 575.40 | H118: 605.90 | I118: 615.50 | J118: 621.15 | K118: 609.85 | L118: 594.6 | M118: 0.485
A119: 109 | B119: CRISIL | C119: 2880.3 | D119: 2885.97 | E119: 2851.93 | F119: 2823.57 | G119: 2789.53 | H119: 2914.33 | I119: 2948.37 | J119: 2976.73 | K119: 2920 | L119: 2857.6 | M119: 1.68434
A120: 110 | B120: CROMPTON | C120: 436.05 | D120: 438.05 | E120: 433.05 | F120: 430.05 | G120: 425.05 | H120: 441.05 | I120: 446.05 | J120: 449.05 | K120: 443.05 | L120: 435.05 | M120: 5.35329
A121: 111 | B121: CSBBANK | C121: 251.75 | D121: 250.17 | E121: 240.43 | F121: 229.12 | G121: 219.38 | H121: 261.48 | I121: 271.22 | J121: 282.53 | K121: 259.9 | L121: 238.85 | M121: 19.12902
A122: 112 | B122: CUB | C122: 141.95 | D122: 140.87 | E122: 139.33 | F122: 136.72 | G122: 135.18 | H122: 143.48 | I122: 145.02 | J122: 147.63 | K122: 142.4 | L122: 138.25 | M122: 25.76588
A123: 113 | B123: CUMMINSIND | C123: 949.45 | D123: 947.60 | E123: 937.00 | F123: 924.55 | G123: 913.95 | H123: 960.05 | I123: 970.65 | J123: 983.10 | K123: 958.2 | L123: 935.15 | M123: 2.36996
A124: 114 | B124: CYIENT | C124: 1080.85 | D124: 1068.83 | E124: 1053.67 | F124: 1026.48 | G124: 1011.32 | H124: 1096.02 | I124: 1111.18 | J124: 1138.37 | K124: 1084 | L124: 1041.65 | M124: 5.17996
A125: 115 | B125: DABUR | C125: 574.05 | D125: 575.85 | E125: 568.70 | F125: 563.35 | G125: 556.20 | H125: 581.20 | I125: 588.35 | J125: 593.70 | K125: 583 | L125: 570.5 | M125: 30.62561
A126: 116 | B126: DALBHARAT | C126: 1876.6 | D126: 1878.48 | E126: 1858.67 | F126: 1840.73 | G126: 1820.92 | H126: 1896.42 | I126: 1916.23 | J126: 1934.17 | K126: 1898.3 | L126: 1860.55 | M126: 0.84425
A127: 117 | B127: DBL | C127: 434.85 | D127: 442.55 | E127: 426.30 | F127: 417.75 | G127: 401.50 | H127: 451.10 | I127: 467.35 | J127: 475.90 | K127: 458.8 | L127: 434 | M127: 9.70993
A128: 118 | B128: DCBBANK | C128: 80.5 | D128: 80.93 | E128: 79.57 | F128: 78.63 | G128: 77.27 | H128: 81.87 | I128: 83.23 | J128: 84.17 | K128: 82.3 | L128: 80 | M128: 26.61925
A129: 119 | B129: DCMSHRIRAM | C129: 1058.85 | D129: 1031.32 | E129: 992.53 | F129: 926.22 | G129: 887.43 | H129: 1097.63 | I129: 1136.42 | J129: 1202.73 | K129: 1070.1 | L129: 965 | M129: 2.41366
A130: 120 | B130: DEEPAKNTR | C130: 2513.55 | D130: 2524.52 | E130: 2491.13 | F130: 2468.72 | G130: 2435.33 | H130: 2546.93 | I130: 2580.32 | J130: 2602.73 | K130: 2557.9 | L130: 2502.1 | M130: 5.14465
A131: 121 | B131: DELTACORP | C131: 258.05 | D131: 257.68 | E131: 251.37 | F131: 244.68 | G131: 238.37 | H131: 264.37 | I131: 270.68 | J131: 277.37 | K131: 264 | L131: 251 | M131: 42.91446
A132: 122 | B132: DHANI | C132: 161.35 | D132: 161.90 | E132: 158.45 | F132: 155.55 | G132: 152.10 | H132: 164.80 | I132: 168.25 | J132: 171.15 | K132: 165.35 | L132: 159 | M132: 21.09509
A133: 123 | B133: DHANUKA | C133: 761.3 | D133: 769.10 | E133: 752.20 | F133: 743.10 | G133: 726.20 | H133: 778.20 | I133: 795.10 | J133: 804.20 | K133: 786 | L133: 760 | M133: 2.00073
A134: 124 | B134: DIVISLAB | C134: 4621.7 | D134: 4636.88 | E134: 4593.82 | F134: 4565.93 | G134: 4522.87 | H134: 4664.77 | I134: 4707.83 | J134: 4735.72 | K134: 4679.95 | L134: 4609 | M134: 2.59508
A135: 125 | B135: DIXON | C135: 5480.95 | D135: 5492.62 | E135: 5430.53 | F135: 5380.12 | G135: 5318.03 | H135: 5543.03 | I135: 5605.12 | J135: 5655.53 | K135: 5554.7 | L135: 5442.2 | M135: 1.57713
A136: 126 | B136: DLF | C136: 394.45 | D136: 395.22 | E136: 389.93 | F136: 385.42 | G136: 380.13 | H136: 399.73 | I136: 405.02 | J136: 409.53 | K136: 400.5 | L136: 390.7 | M136: 40.91503
A137: 127 | B137: DMART | C137: 4726.95 | D137: 4723.62 | E137: 4688.33 | F137: 4649.72 | G137: 4614.43 | H137: 4762.23 | I137: 4797.52 | J137: 4836.13 | K137: 4758.9 | L137: 4685 | M137: 2.42287
A138: 128 | B138: DRREDDY | C138: 4835.45 | D138: 4851.12 | E138: 4809.33 | F138: 4783.22 | G138: 4741.43 | H138: 4877.23 | I138: 4919.02 | J138: 4945.13 | K138: 4892.9 | L138: 4825 | M138: 2.53438
A139: 129 | B139: ECLERX | C139: 2780.4 | D139: 2787.48 | E139: 2724.97 | F139: 2669.53 | G139: 2607.02 | H139: 2842.92 | I139: 2905.43 | J139: 2960.87 | K139: 2850 | L139: 2732.05 | M139: 2.14055
A140: 130 | B140: EDELWEISS | C140: 75 | D140: 75.33 | E140: 73.87 | F140: 72.73 | G140: 71.27 | H140: 76.47 | I140: 77.93 | J140: 79.07 | K140: 76.8 | L140: 74.2 | M140: 13.47111
A141: 131 | B141: EICHERMOT | C141: 2705 | D141: 2705.13 | E141: 2685.37 | F141: 2665.73 | G141: 2645.97 | H141: 2724.77 | I141: 2744.53 | J141: 2764.17 | K141: 2724.9 | L141: 2685.5 | M141: 7.36616
A142: 132 | B142: EIDPARRY | C142: 500.75 | D142: 488.72 | E142: 468.03 | F142: 435.32 | G142: 414.63 | H142: 521.43 | I142: 542.12 | J142: 574.83 | K142: 509.4 | L142: 456 | M142: 24.2095
A143: 133 | B143: EIHOTEL | C143: 127.05 | D143: 126.97 | E143: 125.63 | F143: 124.22 | G143: 122.88 | H143: 128.38 | I143: 129.72 | J143: 131.13 | K143: 128.3 | L143: 125.55 | M143: 2.86339
A144: 134 | B144: ELGIEQUIP | C144: 309.5 | D144: 308.03 | E144: 301.77 | F144: 294.03 | G144: 287.77 | H144: 315.77 | I144: 322.03 | J144: 329.77 | K144: 314.3 | L144: 300.3 | M144: 3.16933
A145: 135 | B145: EMAMILTD | C145: 514.9 | D145: 517.73 | E145: 511.17 | F145: 507.43 | G145: 500.87 | H145: 521.47 | I145: 528.03 | J145: 531.77 | K145: 524.3 | L145: 514 | M145: 1.48537
A146: 136 | B146: ENDURANCE | C146: 1709.2 | D146: 1707.73 | E146: 1691.47 | F146: 1673.73 | G146: 1657.47 | H146: 1725.47 | I146: 1741.73 | J146: 1759.47 | K146: 1724 | L146: 1690 | M146: 0.61266
A147: 137 | B147: ENGINERSIN | C147: 70.2 | D147: 70.40 | E147: 69.70 | F147: 69.20 | G147: 68.50 | H147: 70.90 | I147: 71.60 | J147: 72.10 | K147: 71.1 | L147: 69.9 | M147: 7.62248
A148: 138 | B148: EPL | C148: 206.45 | D148: 208.12 | E148: 203.83 | F148: 201.22 | G148: 196.93 | H148: 210.73 | I148: 215.02 | J148: 217.63 | K148: 212.4 | L148: 205.5 | M148: 1.2793
A149: 139 | B149: EQUITAS | C149: 114.75 | D149: 113.90 | E149: 112.30 | F149: 109.85 | G149: 108.25 | H149: 116.35 | I149: 117.95 | J149: 120.40 | K149: 115.5 | L149: 111.45 | M149: 17.60878
A150: 140 | B150: EQUITASBNK | C150: 59.3 | D150: 59.50 | E150: 58.80 | F150: 58.30 | G150: 57.60 | H150: 60.00 | I150: 60.70 | J150: 61.20 | K150: 60.2 | L150: 59 | M150: 4.45507
A151: 141 | B151: ERIS | C151: 756.7 | D151: 761.02 | E151: 748.03 | F151: 739.37 | G151: 726.38 | H151: 769.68 | I151: 782.67 | J151: 791.33 | K151: 774 | L151: 752.35 | M151: 0.94588
A152: 142 | B152: ESCORTS | C152: 1893.35 | D152: 1895.22 | E152: 1882.53 | F152: 1871.72 | G152: 1859.03 | H152: 1906.03 | I152: 1918.72 | J152: 1929.53 | K152: 1907.9 | L152: 1884.4 | M152: 7.512
A153: 143 | B153: EXIDEIND | C153: 170.05 | D153: 170.08 | E153: 168.82 | F153: 167.58 | G153: 166.32 | H153: 171.32 | I153: 172.58 | J153: 173.82 | K153: 171.35 | L153: 168.85 | M153: 13.09625
A154: 144 | B154: FACT | C154: 136.5 | D154: 135.63 | E154: 128.42 | F154: 120.33 | G154: 113.12 | H154: 143.72 | I154: 150.93 | J154: 159.02 | K154: 142.85 | L154: 127.55 | M154: 23.77337
A155: 145 | B155: FDC | C155: 302.65 | D155: 303.48 | E155: 300.02 | F155: 297.38 | G155: 293.92 | H155: 306.12 | I155: 309.58 | J155: 312.22 | K155: 306.95 | L155: 300.85 | M155: 0.99657
A156: 146 | B156: FEDERALBNK | C156: 88.5 | D156: 88.10 | E156: 87.30 | F156: 86.10 | G156: 85.30 | H156: 89.30 | I156: 90.10 | J156: 91.30 | K156: 88.9 | L156: 86.9 | M156: 177.03948
A157: 147 | B157: FINCABLES | C157: 542.85 | D157: 541.85 | E157: 538.10 | F157: 533.35 | G157: 529.60 | H157: 546.60 | I157: 550.35 | J157: 555.10 | K157: 545.6 | L157: 537.1 | M157: 1.21591
A158: 148 | B158: FINEORG | C158: 3830.85 | D158: 3840.95 | E158: 3769.90 | F158: 3708.95 | G158: 3637.90 | H158: 3901.90 | I158: 3972.95 | J158: 4033.90 | K158: 3912 | L158: 3780 | M158: 0.22146
A159: 149 | B159: FINPIPE | C159: 207.45 | D159: 207.48 | E159: 205.97 | F159: 204.48 | G159: 202.97 | H159: 208.97 | I159: 210.48 | J159: 211.97 | K159: 209 | L159: 206 | M159: 2.98534
A160: 150 | B160: FLUOROCHEM | C160: 2575.7 | D160: 2551.92 | E160: 2503.83 | F160: 2431.97 | G160: 2383.88 | H160: 2623.78 | I160: 2671.87 | J160: 2743.73 | K160: 2600 | L160: 2480.05 | M160: 1.53725
A161: 151 | B161: FORTIS | C161: 304.25 | D161: 306.63 | E161: 299.82 | F161: 295.38 | G161: 288.57 | H161: 311.07 | I161: 317.88 | J161: 322.32 | K161: 313.45 | L161: 302.2 | M161: 22.5349
A162: 152 | B162: FRETAIL | C162: 51.65 | D162: 52.00 | E162: 50.65 | F162: 49.65 | G162: 48.30 | H162: 53.00 | I162: 54.35 | J162: 55.35 | K162: 53.35 | L162: 51 | M162: 67.02493
A163: 153 | B163: FSL | C163: 185.85 | D163: 186.37 | E163: 183.13 | F163: 180.42 | G163: 177.18 | H163: 189.08 | I163: 192.32 | J163: 195.03 | K163: 189.6 | L163: 183.65 | M163: 29.491
A164: 154 | B164: GAEL | C164: 165.15 | D164: 165.82 | E164: 163.33 | F164: 161.52 | G164: 159.03 | H164: 167.63 | I164: 170.12 | J164: 171.93 | K164: 168.3 | L164: 164 | M164: 1.21237
A165: 155 | B165: GAIL | C165: 132.8 | D165: 132.88 | E165: 131.57 | F165: 130.33 | G165: 129.02 | H165: 134.12 | I165: 135.43 | J165: 136.67 | K165: 134.2 | L165: 131.65 | M165: 70.19721
A166: 156 | B166: GALAXYSURF | C166: 3135.95 | D166: 3127.47 | E166: 3101.33 | F166: 3066.72 | G166: 3040.58 | H166: 3162.08 | I166: 3188.22 | J166: 3222.83 | K166: 3153.6 | L166: 3092.85 | M166: 0.3557
A167: 157 | B167: GARFIBRES | C167: 3263.05 | D167: 3266.35 | E167: 3227.70 | F167: 3192.35 | G167: 3153.70 | H167: 3301.70 | I167: 3340.35 | J167: 3375.70 | K167: 3305 | L167: 3231 | M167: 0.08563
A168: 158 | B168: GESHIP | C168: 300 | D168: 300.22 | E168: 295.78 | F168: 291.57 | G168: 287.13 | H168: 304.43 | I168: 308.87 | J168: 313.08 | K168: 304.65 | L168: 296 | M168: 7.34554
A169: 159 | B169: GICRE | C169: 139.3 | D169: 139.63 | E169: 138.47 | F169: 137.63 | G169: 136.47 | H169: 140.47 | I169: 141.63 | J169: 142.47 | K169: 140.8 | L169: 138.8 | M169: 2.73282
A170: 160 | B170: GILLETTE | C170: 5274.25 | D170: 5285.77 | E170: 5238.48 | F170: 5202.72 | G170: 5155.43 | H170: 5321.53 | I170: 5368.82 | J170: 5404.58 | K170: 5333.05 | L170: 5250 | M170: 0.05467
A171: 161 | B171: GLAND | C171: 3885.55 | D171: 3894.57 | E171: 3854.13 | F171: 3822.72 | G171: 3782.28 | H171: 3925.98 | I171: 3966.42 | J171: 3997.83 | K171: 3935 | L171: 3863.15 | M171: 0.6241
A172: 162 | B172: GLAXO | C172: 1734.05 | D172: 1737.37 | E172: 1718.03 | F172: 1702.02 | G172: 1682.68 | H172: 1753.38 | I172: 1772.72 | J172: 1788.73 | K172: 1756.7 | L172: 1721.35 | M172: 0.25204
A173: 163 | B173: GLENMARK | C173: 517 | D173: 519.98 | E173: 512.67 | F173: 508.33 | G173: 501.02 | H173: 524.32 | I173: 531.63 | J173: 535.97 | K173: 527.3 | L173: 515.65 | M173: 6.1797
A174: 164 | B174: GMMPFAUDLR | C174: 5113.1 | D174: 5096.03 | E174: 4897.07 | F174: 4681.03 | G174: 4482.07 | H174: 5312.07 | I174: 5511.03 | J174: 5727.07 | K174: 5295 | L174: 4880 | M174: 3.69669
A175: 165 | B175: GMRINFRA | C175: 48.2 | D175: 47.75 | E175: 46.75 | F175: 45.30 | G175: 44.30 | H175: 49.20 | I175: 50.20 | J175: 51.65 | K175: 48.75 | L175: 46.3 | M175: 399.2544
A176: 166 | B176: GNFC | C176: 467.2 | D176: 459.83 | E176: 444.67 | F176: 422.13 | G176: 406.97 | H176: 482.37 | I176: 497.53 | J176: 520.07 | K176: 475 | L176: 437.3 | M176: 31.86515
A177: 167 | B177: GODFRYPHLP | C177: 1141 | D177: 1143.08 | E177: 1128.22 | F177: 1115.43 | G177: 1100.57 | H177: 1155.87 | I177: 1170.73 | J177: 1183.52 | K177: 1157.95 | L177: 1130.3 | M177: 0.19843
A178: 168 | B178: GODREJAGRO | C178: 531.7 | D178: 529.98 | E178: 525.97 | F178: 520.23 | G178: 516.22 | H178: 535.72 | I178: 539.73 | J178: 545.47 | K178: 534 | L178: 524.25 | M178: 0.86272
A179: 169 | B179: GODREJCP | C179: 949.7 | D179: 947.90 | E179: 935.80 | F179: 921.90 | G179: 909.80 | H179: 961.80 | I179: 973.90 | J179: 987.80 | K179: 960 | L179: 934 | M179: 7.81428
A180: 170 | B180: GODREJIND | C180: 627.8 | D180: 629.33 | E180: 616.67 | F180: 605.53 | G180: 592.87 | H180: 640.47 | I180: 653.13 | J180: 664.27 | K180: 642 | L180: 618.2 | M180: 2.60774
A181: 171 | B181: GODREJPROP | C181: 1890.3 | D181: 1894.03 | E181: 1868.52 | F181: 1846.73 | G181: 1821.22 | H181: 1915.82 | I181: 1941.33 | J181: 1963.12 | K181: 1919.55 | L181: 1872.25 | M181: 4.5851
A182: 172 | B182: GPPL | C182: 98.85 | D182: 98.85 | E182: 98.25 | F182: 97.65 | G182: 97.05 | H182: 99.45 | I182: 100.05 | J182: 100.65 | K182: 99.45 | L182: 98.25 | M182: 3.36528
A183: 173 | B183: GRANULES | C183: 325.6 | D183: 330.27 | E183: 317.88 | F183: 310.17 | G183: 297.78 | H183: 337.98 | I183: 350.37 | J183: 358.08 | K183: 342.65 | L183: 322.55 | M183: 20.86156
A184: 174 | B184: GRAPHITE | C184: 508.5 | D184: 519.12 | E184: 495.23 | F184: 481.97 | G184: 458.08 | H184: 532.38 | I184: 556.27 | J184: 569.53 | K184: 543 | L184: 505.85 | M184: 37.35024
A185: 175 | B185: GRASIM | C185: 1692 | D185: 1682.17 | E185: 1667.83 | F185: 1643.67 | G185: 1629.33 | H185: 1706.33 | I185: 1720.67 | J185: 1744.83 | K185: 1696.5 | L185: 1658 | M185: 8.91638
A186: 176 | B186: GREAVESCOT | C186: 154.35 | D186: 154.42 | E186: 150.93 | F186: 147.52 | G186: 144.03 | H186: 157.83 | I186: 161.32 | J186: 164.73 | K186: 157.9 | L186: 151 | M186: 37.52982
A187: 177 | B187: GRINDWELL | C187: 1937.6 | D187: 1941.93 | E187: 1916.62 | F187: 1895.63 | G187: 1870.32 | H187: 1962.92 | I187: 1988.23 | J187: 2009.22 | K187: 1967.25 | L187: 1920.95 | M187: 0.53632
A188: 178 | B188: GSFC | C188: 124.95 | D188: 123.98 | E188: 121.97 | F188: 118.98 | G188: 116.97 | H188: 126.97 | I188: 128.98 | J188: 131.97 | K188: 126 | L188: 121 | M188: 21.10682
A189: 179 | B189: GSPL | C189: 299.8 | D189: 299.58 | E189: 296.47 | F189: 293.13 | G189: 290.02 | H189: 302.92 | I189: 306.03 | J189: 309.37 | K189: 302.7 | L189: 296.25 | M189: 4.41124
A190: 180 | B190: GUJALKALI | C190: 667.95 | D190: 666.07 | E190: 650.13 | F190: 632.32 | G190: 616.38 | H190: 683.88 | I190: 699.82 | J190: 717.63 | K190: 682 | L190: 648.25 | M190: 4.20925
A191: 181 | B191: GUJGASLTD | C191: 649.6 | D191: 647.00 | E191: 642.65 | F191: 635.70 | G191: 631.35 | H191: 653.95 | I191: 658.30 | J191: 665.25 | K191: 651.35 | L191: 640.05 | M191: 5.11475
A192: 182 | B192: HAL | C192: 1248.6 | D192: 1249.58 | E192: 1232.27 | F192: 1215.93 | G192: 1198.62 | H192: 1265.92 | I192: 1283.23 | J192: 1299.57 | K192: 1266.9 | L192: 1233.25 | M192: 10.52122
A193: 183 | B193: HAPPSTMNDS | C193: 1340.4 | D193: 1341.47 | E193: 1322.93 | F193: 1305.47 | G193: 1286.93 | H193: 1358.93 | I193: 1377.47 | J193: 1394.93 | K193: 1360 | L193: 1324 | M193: 2.86548
A194: 184 | B194: HATHWAY | C194: 21.95 | D194: 22.03 | E194: 21.77 | F194: 21.58 | G194: 21.32 | H194: 22.22 | I194: 22.48 | J194: 22.67 | K194: 22.3 | L194: 21.85 | M194: 27.24438
A195: 185 | B195: HATSUN | C195: 1256 | D195: 1258.65 | E195: 1247.35 | F195: 1238.70 | G195: 1227.40 | H195: 1267.30 | I195: 1278.60 | J195: 1287.25 | K195: 1269.95 | L195: 1250 | M195: 0.17472
A196: 186 | B196: HAVELLS | C196: 1401.3 | D196: 1400.87 | E196: 1388.13 | F196: 1374.97 | G196: 1362.23 | H196: 1414.03 | I196: 1426.77 | J196: 1439.93 | K196: 1413.6 | L196: 1387.7 | M196: 3.37682
A197: 187 | B197: HCLTECH | C197: 1333.45 | D197: 1325.80 | E197: 1314.90 | F197: 1296.35 | G197: 1285.45 | H197: 1344.35 | I197: 1355.25 | J197: 1373.80 | K197: 1336.7 | L197: 1307.25 | M197: 33.671
A198: 188 | B198: HDFC | C198: 2675.3 | D198: 2658.12 | E198: 2637.53 | F198: 2599.77 | G198: 2579.18 | H198: 2695.88 | I198: 2716.47 | J198: 2754.23 | K198: 2678.7 | L198: 2620.35 | M198: 18.46249
A199: 189 | B199: HDFCAMC | C199: 2475.8 | D199: 2469.90 | E199: 2457.90 | F199: 2440.00 | G199: 2428.00 | H199: 2487.80 | I199: 2499.80 | J199: 2517.70 | K199: 2481.9 | L199: 2452 | M199: 1.40925
A200: 190 | B200: HDFCBANK | C200: 1528.55 | D200: 1523.08 | E200: 1513.27 | F200: 1497.98 | G200: 1488.17 | H200: 1538.37 | I200: 1548.18 | J200: 1563.47 | K200: 1532.9 | L200: 1507.8 | M200: 44.28676
A201: 191 | B201: HDFCLIFE | C201: 653.15 | D201: 652.40 | E201: 649.80 | F201: 646.45 | G201: 643.85 | H201: 655.75 | I201: 658.35 | J201: 661.70 | K201: 655 | L201: 649.05 | M201: 22.93391
A202: 192 | B202: HEG | C202: 1804.05 | D202: 1829.72 | E202: 1729.43 | F202: 1654.82 | G202: 1554.53 | H202: 1904.33 | I202: 2004.62 | J202: 2079.23 | K202: 1930 | L202: 1755.1 | M202: 15.76441
A203: 193 | B203: HEIDELBERG | C203: 227.25 | D203: 227.27 | E203: 225.93 | F203: 224.62 | G203: 223.28 | H203: 228.58 | I203: 229.92 | J203: 231.23 | K203: 228.6 | L203: 225.95 | M203: 0.96543
A204: 194 | B204: HEMIPROP | C204: 130.35 | D204: 131.63 | E204: 128.42 | F204: 126.48 | G204: 123.27 | H204: 133.57 | I204: 136.78 | J204: 138.72 | K204: 134.85 | L204: 129.7 | M204: 4.00744
A205: 195 | B205: HEROMOTOCO | C205: 2484.9 | D205: 2483.30 | E205: 2470.00 | F205: 2455.10 | G205: 2441.80 | H205: 2498.20 | I205: 2511.50 | J205: 2526.40 | K205: 2496.6 | L205: 2468.4 | M205: 1.81575
A206: 196 | B206: HFCL | C206: 79.15 | D206: 79.70 | E206: 77.85 | F206: 76.55 | G206: 74.70 | H206: 81.00 | I206: 82.85 | J206: 84.15 | K206: 81.55 | L206: 78.4 | M206: 94.7115
... 320 more rows

Sheet Bulk Deals
E6: Back To Main Page
A7: Subject : | B7: BULK DEAL | D7: =Main!B10 -> 2022-01-05
A9: Date | B9: Scrip code | C9: Scrip Name | D9: Client Name | E9: Buy / Sell | F9: Quantity Traded | G9: Trade Price / Wt.Avg.trade price | H9: Exchange
A10: 2022-01-04 | B10: 540615 | C10: 7NR | D10: S N TRADEX | E10: BUY | F10: 93,072 | G10: 18.5 | H10: BSE
A11: 2022-01-04 | B11: 530043 | C11: ACKNIT | D11: VED PRAKASH AGARWAL | E11: BUY | F11: 28,000 | G11: 152.76 | H11: BSE
A12: 2022-01-04 | B12: 539506 | C12: ADCON | D12: KANCHANBHAI THAKORBHAI JAIN | E12: SELL | F12: 100,000 | G12: 11 | H12: BSE
A13: 2022-01-04 | B13: 539506 | C13: ADCON | D13: GEETA MONDAL | E13: BUY | F13: 50,000 | G13: 11 | H13: BSE
A14: 2022-01-04 | B14: 539506 | C14: ADCON | D14: ANITA ROY | E14: BUY | F14: 50,000 | G14: 11 | H14: BSE
A15: 2022-01-04 | B15: 539506 | C15: ADCON | D15: JYOTI CHANDAK | E15: BUY | F15: 20,000 | G15: 11 | H15: BSE
A16: 2022-01-04 | B16: 539506 | C16: ADCON | D16: BSAS SECURITIES LTD | E16: SELL | F16: 20,016 | G16: 11.06 | H16: BSE
A17: 2022-01-04 | B17: 543377 | C17: ADISHAKTI | D17: PRAVINKUMAR MEHTA | E17: SELL | F17: 30,000 | G17: 9.59 | H17: BSE
A18: 2022-01-04 | B18: 543377 | C18: ADISHAKTI | D18: NNM SECURITIES PVT LTD | E18: BUY | F18: 40,000 | G18: 9.59 | H18: BSE
A19: 2022-01-04 | B19: 543377 | C19: ADISHAKTI | D19: NNM SECURITIES PVT LTD | E19: SELL | F19: 20,000 | G19: 9.59 | H19: BSE
A20: 2022-01-04 | B20: 530889 | C20: ALKA | D20: ALPHA LEON ENTERPRISES LLP | E20: BUY | F20: 4 | G20: 3.47 | H20: BSE
A21: 2022-01-04 | B21: 530889 | C21: ALKA | D21: ALPHA LEON ENTERPRISES LLP | E21: SELL | F21: 4,600,004 | G21: 3.47 | H21: BSE
A22: 2022-01-04 | B22: 531991 | C22: AMRAAGRI | D22: PARESH DHIRAJLAL SHAH | E22: SELL | F22: 746,000 | G22: 1.94 | H22: BSE
A23: 2022-01-04 | B23: 531991 | C23: AMRAAGRI | D23: EPITOME TRADING AND INVESTMENTS | E23: BUY | F23: 1,200,000 | G23: 1.94 | H23: BSE
A24: 2022-01-04 | B24: 531991 | C24: AMRAAGRI | D24: DIPAN MEHTA COMMODITIES PRIVATE LIMITED | E24: BUY | F24: 755,000 | G24: 1.94 | H24: BSE
A25: 2022-01-04 | B25: 542865 | C25: ANUROOP | D25: SHERWOOD SECURITIES PVT LTD | E25: BUY | F25: 30,000 | G25: 17.37 | H25: BSE
A26: 2022-01-04 | B26: 542865 | C26: ANUROOP | D26: SHERWOOD SECURITIES PVT LTD | E26: SELL | F26: 300,000 | G26: 16.95 | H26: BSE
A27: 2022-01-04 | B27: 542865 | C27: ANUROOP | D27: MANGALDHAM ENTERPRISES PVT LTD | E27: BUY | F27: 100,000 | G27: 16.25 | H27: BSE
A28: 2022-01-04 | B28: 540135 | C28: ARCFIN | D28: OVERALL LOGISTICS PRIVATE LIMITED | E28: SELL | F28: 411,000 | G28: 11.9 | H28: BSE
A29: 2022-01-04 | B29: 540135 | C29: ARCFIN | D29: UMEDBHAI GABHRUBHAI BASIYA | E29: BUY | F29: 415,000 | G29: 11.9 | H29: BSE
A30: 2022-01-04 | B30: 540135 | C30: ARCFIN | D30: RAVIODAY REALTORS PRIVATE LIMITED | E30: SELL | F30: 252,885 | G30: 11.9 | H30: BSE
A31: 2022-01-04 | B31: 540135 | C31: ARCFIN | D31: EMRALD COMMERCIAL LIMITED | E31: SELL | F31: 843,054 | G31: 11.9 | H31: BSE
A32: 2022-01-04 | B32: 540135 | C32: ARCFIN | D32: MUKESH COMMERCIAL PRIVATE LIMITED | E32: SELL | F32: 1,100,000 | G32: 11.9 | H32: BSE
A33: 2022-01-04 | B33: 512247 | C33: ASHCAP | D33: ALPHA LEON ENTERPRISES LLP | E33: BUY | F33: 228,380 | G33: 12.95 | H33: BSE
A34: 2022-01-04 | B34: 512247 | C34: ASHCAP | D34: ALPHA LEON ENTERPRISES LLP | E34: SELL | F34: 187,963 | G34: 13.24 | H34: BSE
A35: 2022-01-04 | B35: 541865 | C35: ASRL | D35: ROHAN GUPTA | E35: BUY | F35: 100,000 | G35: 222 | H35: BSE
A36: 2022-01-04 | B36: 539288 | C36: AVI | D36: ALPHA LEON ENTERPRISES LLP | E36: BUY | F36: 150,000 | G36: 41.55 | H36: BSE
A37: 2022-01-04 | B37: 539288 | C37: AVI | D37: ALPHA LEON ENTERPRISES LLP | E37: SELL | F37: 28,501 | G37: 41.55 | H37: BSE
A38: 2022-01-04 | B38: 539288 | C38: AVI | D38: KAPIL KUMAR SHARMA | E38: BUY | F38: 25,000 | G38: 41.55 | H38: BSE
A39: 2022-01-04 | B39: 539288 | C39: AVI | D39: ANCHAL KUMAR TIWARI | E39: BUY | F39: 30,373 | G39: 41.55 | H39: BSE
A40: 2022-01-04 | B40: 539288 | C40: AVI | D40: DINKAR ARJUNDEV UPPAL HUF | E40: SELL | F40: 20,459 | G40: 41.55 | H40: BSE
A41: 2022-01-04 | B41: 539288 | C41: AVI | D41: MUKESH AHUJA | E41: SELL | F41: 70,000 | G41: 41.56 | H41: BSE
A42: 2022-01-04 | B42: 509053 | C42: BANASFN | D42: PURAV BHARATBHAI PATEL | E42: BUY | F42: 502 | G42: 77.78 | H42: BSE
A43: 2022-01-04 | B43: 509053 | C43: BANASFN | D43: HANSABEN BHARATKUMAR PATEL | E43: BUY | F43: 162,855 | G43: 77.66 | H43: BSE
A44: 2022-01-04 | B44: 509053 | C44: BANASFN | D44: PURAV BHARATBHAI PATEL | E44: SELL | F44: 193,215 | G44: 77.8 | H44: BSE
A45: 2022-01-04 | B45: 509053 | C45: BANASFN | D45: DINESHSINH | E45: BUY | F45: 159,316 | G45: 77.55 | H45: BSE
A46: 2022-01-04 | B46: 509053 | C46: BANASFN | D46: DINESHSINH | E46: SELL | F46: 87,454 | G46: 77.8 | H46: BSE
A47: 2022-01-04 | B47: 537766 | C47: BCP | D47: ADROIT FINANCIAL SERVICES PRIVATE LIMITED | E47: BUY | F47: 603,077 | G47: 7.02 | H47: BSE
A48: 2022-01-04 | B48: 537766 | C48: BCP | D48: ADROIT FINANCIAL SERVICES PRIVATE LIMITED | E48: SELL | F48: 486,486 | G48: 7.07 | H48: BSE
A49: 2022-01-04 | B49: 543439 | C49: BRANDBUCKT | D49: SIRAZALI SHABBIRALI NAYANI | E49: SELL | F49: 26,000 | G49: 50.4 | H49: BSE
A50: 2022-01-04 | B50: 543439 | C50: BRANDBUCKT | D50: ESPEON CONSULTING PRIVATE LIMITED. | E50: BUY | F50: 56,000 | G50: 50.54 | H50: BSE
A51: 2022-01-04 | B51: 543439 | C51: BRANDBUCKT | D51: MINIBOSS CONSULTANCY PRIVATE LIMITED | E51: BUY | F51: 92,000 | G51: 50.4 | H51: BSE
A52: 2022-01-04 | B52: 543439 | C52: BRANDBUCKT | D52: GULAMHAIDER YUSUFALI VARTEJI | E52: SELL | F52: 32,000 | G52: 50.8 | H52: BSE
A53: 2022-01-04 | B53: 530249 | C53: BRIDGESE | D53: KISHAN PATEL | E53: SELL | F53: 18,700 | G53: 26.14 | H53: BSE
A54: 2022-01-04 | B54: 530249 | C54: BRIDGESE | D54: MITTALBEN RAJENDRASINH DABHI | E54: SELL | F54: 20,000 | G54: 28.8 | H54: BSE
A55: 2022-01-04 | B55: 534796 | C55: CDG | D55: ALLURI SAHADEVA RAJU | E55: SELL | F55: 28,279 | G55: 18.06 | H55: BSE
A56: 2022-01-04 | B56: 534796 | C56: CDG | D56: ALLURI BHARATHI | E56: SELL | F56: 41,695 | G56: 18.1 | H56: BSE
A57: 2022-01-04 | B57: 532456 | C57: COMPUAGE | D57: QNANCE RESEARCH CAPITAL LLP | E57: BUY | F57: 286,053 | G57: 38.08 | H57: BSE
A58: 2022-01-04 | B58: 532456 | C58: COMPUAGE | D58: QNANCE RESEARCH CAPITAL LLP | E58: SELL | F58: 345,150 | G58: 38.62 | H58: BSE
A59: 2022-01-04 | B59: 531909 | C59: CROISSANCE | D59: ANUPAM GUPTA | E59: SELL | F59: 399,752 | G59: 9.7 | H59: BSE
A60: 2022-01-04 | B60: 531909 | C60: CROISSANCE | D60: BHOGILALMAVJIVORA | E60: BUY | F60: 370,000 | G60: 9.7 | H60: BSE
A61: 2022-01-04 | B61: 543378 | C61: CWD | D61: SANJAY POPATLAL JAIN | E61: SELL | F61: 48,000 | G61: 230 | H61: BSE
A62: 2022-01-04 | B62: 543378 | C62: CWD | D62: SANJAY POPATLAL JAIN HUF | E62: SELL | F62: 37,600 | G62: 230 | H62: BSE
A63: 2022-01-04 | B63: 543378 | C63: CWD | D63: POPATLAL TARACHAND JAIN HUF | E63: SELL | F63: 69,600 | G63: 230 | H63: BSE
A64: 2022-01-04 | B64: 543378 | C64: CWD | D64: VENKATESHWARA INDUSTRIAL PROMOTION CO LIMITED | E64: BUY | F64: 24,800 | G64: 230 | H64: BSE
A65: 2022-01-04 | B65: 543378 | C65: CWD | D65: SK GROWTH FUND PRIVATE LIMITED | E65: BUY | F65: 145,600 | G65: 230 | H65: BSE
A66: 2022-01-04 | B66: 541778 | C66: DEEP | D66: NNM SECURITIES PVT LTD | E66: BUY | F66: 263,539 | G66: 756.25 | H66: BSE
A67: 2022-01-04 | B67: 541778 | C67: DEEP | D67: NNM SECURITIES PVT LTD | E67: SELL | F67: 118,228 | G67: 762.96 | H67: BSE
A68: 2022-01-04 | B68: 542724 | C68: EARUM | D68: NEETUBAFNA | E68: BUY | F68: 600,000 | G68: 10.4 | H68: BSE
A69: 2022-01-04 | B69: 542724 | C69: EARUM | D69: NEETUBAFNA | E69: SELL | F69: 600,000 | G69: 10.1 | H69: BSE
A70: 2022-01-04 | B70: 542724 | C70: EARUM | D70: KALPESH JAVERILAL OSWAL | E70: BUY | F70: 1,114,998 | G70: 10.17 | H70: BSE
A71: 2022-01-04 | B71: 542724 | C71: EARUM | D71: KALPESH JAVERILAL OSWAL | E71: SELL | F71: 1,114,998 | G71: 10.23 | H71: BSE
A72: 2022-01-04 | B72: 542724 | C72: EARUM | D72: MEGHKUMAR MAHENDRAKUMAR SHAH | E72: BUY | F72: 340,000 | G72: 10.7 | H72: BSE
A73: 2022-01-04 | B73: 542724 | C73: EARUM | D73: MEGHKUMAR MAHENDRAKUMAR SHAH | E73: SELL | F73: 340,000 | G73: 10.79 | H73: BSE
A74: 2022-01-04 | B74: 542724 | C74: EARUM | D74: KAMALABEN GUNVANTLAL PATEL | E74: SELL | F74: 571,000 | G74: 10.3 | H74: BSE
A75: 2022-01-04 | B75: 542724 | C75: EARUM | D75: VEDANT TARUNBHAI PATEL | E75: SELL | F75: 864,000 | G75: 10.02 | H75: BSE
A76: 2022-01-04 | B76: 524444 | C76: EVEXIA | D76: OLGA TRADING PRIVATE LIMITED | E76: BUY | F76: 1,797,468 | G76: 10.15 | H76: BSE
A77: 2022-01-04 | B77: 524444 | C77: EVEXIA | D77: OLGA TRADING PRIVATE LIMITED | E77: SELL | F77: 1,806,111 | G77: 10.2 | H77: BSE
A78: 2022-01-04 | B78: 539032 | C78: FRASER | D78: NIKUNJ VINAYCHANDRA VORA | E78: BUY | F78: 45,500 | G78: 10.76 | H78: BSE
A79: 2022-01-04 | B79: 531592 | C79: GENPHARMA | D79: TOPGAIN FINANCE PRIVATE LIMITED | E79: BUY | F79: 447,441 | G79: 6.61 | H79: BSE
A80: 2022-01-04 | B80: 531592 | C80: GENPHARMA | D80: TOPGAIN FINANCE PRIVATE LIMITED | E80: SELL | F80: 1,459,344 | G80: 6.38 | H80: BSE
A81: 2022-01-04 | B81: 540614 | C81: GGENG | D81: ALANKIT IMAGINATIONS LIMITED | E81: SELL | F81: 274,000 | G81: 13.45 | H81: BSE
A82: 2022-01-04 | B82: 540614 | C82: GGENG | D82: SUNGLOW LEASING AND FINANCE LTD | E82: BUY | F82: 270,263 | G82: 13.69 | H82: BSE
A83: 2022-01-04 | B83: 540614 | C83: GGENG | D83: SUNGLOW LEASING AND FINANCE LTD | E83: SELL | F83: 339,639 | G83: 13.52 | H83: BSE
A84: 2022-01-04 | B84: 540936 | C84: GGL | D84: SETU SECURITIES PVT LTD | E84: SELL | F84: 100,000 | G84: 14.79 | H84: BSE
A85: 2022-01-04 | B85: 540936 | C85: GGL | D85: ALPHA LEON ENTERPRISES LLP | E85: SELL | F85: 100,000 | G85: 14.8 | H85: BSE
A86: 2022-01-04 | B86: 531360 | C86: GOLECHA | D86: TINA GOYAL | E86: BUY | F86: 30,000 | G86: 10.01 | H86: BSE
A87: 2022-01-04 | B87: 531360 | C87: GOLECHA | D87: SAVITA KEDIA | E87: SELL | F87: 40,000 | G87: 10.01 | H87: BSE
A88: 2022-01-04 | B88: 539222 | C88: GROWINGTON | D88: RAJESH RAMANLAL KAPADIA | E88: BUY | F88: 105,000 | G88: 14.84 | H88: BSE
A89: 2022-01-04 | B89: 539222 | C89: GROWINGTON | D89: SREEVISAKH RAVEENDRAN NAIR | E89: SELL | F89: 100,000 | G89: 14.85 | H89: BSE
A90: 2022-01-04 | B90: 523277 | C90: GVFILM | D90: DEEPTHI BALAGIRI | E90: SELL | F90: 25,000,000 | G90: 1.05 | H90: BSE
A91: 2022-01-04 | B91: 523277 | C91: GVFILM | D91: TOPGAIN FINANCE PRIVATE LIMITED | E91: BUY | F91: 5,000,000 | G91: 1.04 | H91: BSE
A92: 2022-01-04 | B92: 523277 | C92: GVFILM | D92: TOPGAIN FINANCE PRIVATE LIMITED | E92: SELL | F92: 5,000,000 | G92: 1.03 | H92: BSE
A93: 2022-01-04 | B93: 523277 | C93: GVFILM | D93: CARE WEALTH ADVISORS LLP | E93: SELL | F93: 18,374,000 | G93: 1.04 | H93: BSE
A94: 2022-01-04 | B94: 523277 | C94: GVFILM | D94: R SATHIAMURTHI | E94: SELL | F94: 10,000,000 | G94: 1.05 | H94: BSE
A95: 2022-01-04 | B95: 523277 | C95: GVFILM | D95: ALGOQUANT FINANCIALS LLP | E95: BUY | F95: 8,600,000 | G95: 1.05 | H95: BSE
A96: 2022-01-04 | B96: 523277 | C96: GVFILM | D96: ALGOQUANT FINANCIALS LLP | E96: SELL | F96: 4,800,000 | G96: 1.05 | H96: BSE
A97: 2022-01-04 | B97: 523277 | C97: GVFILM | D97: ALPHA LEON ENTERPRISES LLP | E97: BUY | F97: 3,250,004 | G97: 1.05 | H97: BSE
A98: 2022-01-04 | B98: 523277 | C98: GVFILM | D98: ALPHA LEON ENTERPRISES LLP | E98: SELL | F98: 9,346,010 | G98: 1.04 | H98: BSE
A99: 2022-01-04 | B99: 532359 | C99: HITKITGLO | D99: ALPHA LEON ENTERPRISES LLP | E99: BUY | F99: 500,000 | G99: 0.82 | H99: BSE
A100: 2022-01-04 | B100: 532359 | C100: HITKITGLO | D100: PURSHOTTAM AGARWAL | E100: SELL | F100: 505,692 | G100: 0.82 | H100: BSE
A101: 2022-01-04 | B101: 540377 | C101: IFL | D101: VISHAL MANOJBHAI SHAH | E101: BUY | F101: 24,000 | G101: 23.1 | H101: BSE
A102: 2022-01-04 | B102: 540377 | C102: IFL | D102: HIRWANI JAYANTIBHAI VAGHELA | E102: SELL | F102: 18,000 | G102: 23.2 | H102: BSE
A103: 2022-01-04 | B103: 541983 | C103: INNOVATIVE | D103: MAQSOOD DABIR SHAIKH | E103: SELL | F103: 225,000 | G103: 5 | H103: BSE
A104: 2022-01-04 | B104: 541983 | C104: INNOVATIVE | D104: VISHWAMURTE TRAD INVEST PE LTD | E104: BUY | F104: 139,000 | G104: 5 | H104: BSE
A105: 2022-01-04 | B105: 541983 | C105: INNOVATIVE | D105: VISHWAMURTE TRAD INVEST PE LTD | E105: SELL | F105: 139,000 | G105: 5.05 | H105: BSE
A106: 2022-01-04 | B106: 541983 | C106: INNOVATIVE | D106: ASHOK KUMAR JAIN HUF | E106: BUY | F106: 100,000 | G106: 5.02 | H106: BSE
A107: 2022-01-04 | B107: 533506 | C107: INVENTURE | D107: SHARE INDIA SECURITIES LIMITED | E107: BUY | F107: 4,921,471 | G107: 4.18 | H107: BSE
A108: 2022-01-04 | B108: 533506 | C108: INVENTURE | D108: SHARE INDIA SECURITIES LIMITED | E108: SELL | F108: 4,411,200 | G108: 4.14 | H108: BSE
A109: 2022-01-04 | B109: 533506 | C109: INVENTURE | D109: ADROIT FINANCIAL SERVICES PRIVATE LIMITED | E109: BUY | F109: 6,121,397 | G109: 4.32 | H109: BSE
A110: 2022-01-04 | B110: 533506 | C110: INVENTURE | D110: ADROIT FINANCIAL SERVICES PRIVATE LIMITED | E110: SELL | F110: 10,081,772 | G110: 4.31 | H110: BSE
A111: 2022-01-04 | B111: 533506 | C111: INVENTURE | D111: MULTIPLIER SHARE & STOCK ADVISORS PRIVATE LIMITED | E111: BUY | F111: 1,540,500 | G111: 4.63 | H111: BSE
A112: 2022-01-04 | B112: 533506 | C112: INVENTURE | D112: MULTIPLIER SHARE & STOCK ADVISORS PRIVATE LIMITED | E112: SELL | F112: 8,578,242 | G112: 4.64 | H112: BSE
A113: 2022-01-04 | B113: 533506 | C113: INVENTURE | D113: TOPGAIN FINANCE PRIVATE LIMITED | E113: BUY | F113: 6,251,500 | G113: 4.64 | H113: BSE
A114: 2022-01-04 | B114: 533506 | C114: INVENTURE | D114: TOPGAIN FINANCE PRIVATE LIMITED | E114: SELL | F114: 2,137,959 | G114: 4.24 | H114: BSE
A115: 2022-01-04 | B115: 533506 | C115: INVENTURE | D115: ALPHA LEON ENTERPRISES LLP | E115: BUY | F115: 8,923,414 | G115: 4.61 | H115: BSE
A116: 2022-01-04 | B116: 533506 | C116: INVENTURE | D116: ALPHA LEON ENTERPRISES LLP | E116: SELL | F116: 3,228,215 | G116: 4.58 | H116: BSE
A117: 2022-01-04 | B117: 532154 | C117: JOHNPHARMA | D117: ALPHA LEON ENTERPRISES LLP | E117: BUY | F117: 500,021 | G117: 7.14 | H117: BSE
A118: 2022-01-04 | B118: 532154 | C118: JOHNPHARMA | D118: ALPHA LEON ENTERPRISES LLP | E118: SELL | F118: 315,012 | G118: 7.14 | H118: BSE
A119: 2022-01-04 | B119: 532154 | C119: JOHNPHARMA | D119: TOPGAIN FINANCE PRIVATE LIMITED | E119: BUY | F119: 311,802 | G119: 7.14 | H119: BSE
A120: 2022-01-04 | B120: 532154 | C120: JOHNPHARMA | D120: EPITOME TRADING AND INVESTMENTS | E120: BUY | F120: 470,000 | G120: 7.14 | H120: BSE
A121: 2022-01-04 | B121: 532154 | C121: JOHNPHARMA | D121: EPITOME TRADING AND INVESTMENTS | E121: SELL | F121: 182,443 | G121: 7.13 | H121: BSE
A122: 2022-01-04 | B122: 532154 | C122: JOHNPHARMA | D122: TOPGAIN FINANCE PRIVATE LIMITED | E122: SELL | F122: 611,802 | G122: 7.13 | H122: BSE
A123: 2022-01-04 | B123: 526622 | C123: MFLINDIA | D123: PARESH DHIRAJLAL SHAH | E123: SELL | F123: 5,550,000 | G123: 1.52 | H123: BSE
A124: 2022-01-04 | B124: 526622 | C124: MFLINDIA | D124: MANSI SHARE & STOCK ADVISORS PRIVATE LIMITED | E124: BUY | F124: 2,500,001 | G124: 1.52 | H124: BSE
A125: 2022-01-04 | B125: 526622 | C125: MFLINDIA | D125: VISHAL BIPINCHANDRA DOSHI | E125: SELL | F125: 6,306,000 | G125: 1.52 | H125: BSE
A126: 2022-01-04 | B126: 526622 | C126: MFLINDIA | D126: SAAGAR THUKRAL | E126: SELL | F126: 3,575,000 | G126: 1.52 | H126: BSE
A127: 2022-01-04 | B127: 526622 | C127: MFLINDIA | D127: SAAHIL THUKRAL | E127: SELL | F127: 3,575,000 | G127: 1.52 | H127: BSE
A128: 2022-01-04 | B128: 526622 | C128: MFLINDIA | D128: CHANDER PARKASH THAKRAL | E128: SELL | F128: 5,600,000 | G128: 1.52 | H128: BSE
A129: 2022-01-04 | B129: 526622 | C129: MFLINDIA | D129: PRIYA THAKRAL | E129: SELL | F129: 5,600,000 | G129: 1.52 | H129: BSE
A130: 2022-01-04 | B130: 526622 | C130: MFLINDIA | D130: SHIVANI KHOSLA | E130: SELL | F130: 5,600,000 | G130: 1.52 | H130: BSE
A131: 2022-01-04 | B131: 526622 | C131: MFLINDIA | D131: SHARMILA BHALLA | E131: SELL | F131: 5,600,000 | G131: 1.52 | H131: BSE
A132: 2022-01-04 | B132: 526622 | C132: MFLINDIA | D132: PACE STOCK BROKING SERVICES PVT LTD | E132: SELL | F132: 3,500,000 | G132: 1.52 | H132: BSE
A133: 2022-01-04 | B133: 526622 | C133: MFLINDIA | D133: ALPHA LEON ENTERPRISES LLP | E133: BUY | F133: 2,300,008 | G133: 1.52 | H133: BSE
A134: 2022-01-04 | B134: 526622 | C134: MFLINDIA | D134: ALPHA LEON ENTERPRISES LLP | E134: SELL | F134: 8 | G134: 1.51 | H134: BSE
A135: 2022-01-04 | B135: 526622 | C135: MFLINDIA | D135: CHANDARANA INTERMEDIARIES BROKERS PRIVATE LIMITED | E135: SELL | F135: 2,000,000 | G135: 1.52 | H135: BSE
A136: 2022-01-04 | B136: 532850 | C136: MIC | D136: ALPHA LEON ENTERPRISES LLP | E136: BUY | F136: 91,760 | G136: 23.49 | H136: BSE
A137: 2022-01-04 | B137: 532850 | C137: MIC | D137: ALPHA LEON ENTERPRISES LLP | E137: SELL | F137: 481,760 | G137: 27.99 | H137: BSE
A138: 2022-01-04 | B138: 531456 | C138: MINAXI | D138: ALPHA LEON ENTERPRISES LLP | E138: BUY | F138: 200,004 | G138: 3.6 | H138: BSE
A139: 2022-01-04 | B139: 531456 | C139: MINAXI | D139: ALPHA LEON ENTERPRISES LLP | E139: SELL | F139: 570,004 | G139: 3.6 | H139: BSE
A140: 2022-01-04 | B140: 530167 | C140: MONGIPA | D140: BLACK FOX FINANCIAL PVT LTD | E140: SELL | F140: 25,000 | G140: 20.6 | H140: BSE
A141: 2022-01-04 | B141: 540809 | C141: MRCEXIM | D141: ESPS FINSERVE PRIVATE LIMITED. | E141: SELL | F141: 88,000 | G141: 20.25 | H141: BSE
A142: 2022-01-04 | B142: 535204 | C142: MUKTA | D142: NARESHAGRAWAL | E142: SELL | F142: 151,183 | G142: 10.61 | H142: BSE
A143: 2022-01-04 | B143: 530557 | C143: NCLRESE | D143: TOPGAIN FINANCE PRIVATE LIMITED | E143: SELL | F143: 6,400,000 | G143: 1.72 | H143: BSE
A144: 2022-01-04 | B144: 530557 | C144: NCLRESE | D144: PRITESH PRAVIN VORA | E144: SELL | F144: 4,000,000 | G144: 1.78 | H144: BSE
A145: 2022-01-04 | B145: 530557 | C145: NCLRESE | D145: MULTIPLIER SHARE & STOCK ADVISORS PRIVATE LIMITED | E145: SELL | F145: 7,000,000 | G145: 1.76 | H145: BSE
A146: 2022-01-04 | B146: 530557 | C146: NCLRESE | D146: ALPHA LEON ENTERPRISES LLP | E146: BUY | F146: 3,276,320 | G146: 1.78 | H146: BSE
A147: 2022-01-04 | B147: 530557 | C147: NCLRESE | D147: ALPHA LEON ENTERPRISES LLP | E147: SELL | F147: 5,092,523 | G147: 1.72 | H147: BSE
A148: 2022-01-04 | B148: 540243 | C148: NEWLIGHT | D148: MANISH NITIN THAKUR | E148: BUY | F148: 22,377 | G148: 33.59 | H148: BSE
A149: 2022-01-04 | B149: 540243 | C149: NEWLIGHT | D149: MANISH NITIN THAKUR | E149: SELL | F149: 11,477 | G149: 32.31 | H149: BSE
A150: 2022-01-04 | B150: 540243 | C150: NEWLIGHT | D150: ACME FINVEST PRIVATE LIMITED | E150: SELL | F150: 229,582 | G150: 31.56 | H150: BSE
A151: 2022-01-04 | B151: 540243 | C151: NEWLIGHT | D151: PADAM LOONCHAND CHOPRA | E151: BUY | F151: 15,000 | G151: 32.3 | H151: BSE
A152: 2022-01-04 | B152: 540243 | C152: NEWLIGHT | D152: NITIN VYAS | E152: BUY | F152: 11,100 | G152: 34.3 | H152: BSE
A153: 2022-01-04 | B153: 540243 | C153: NEWLIGHT | D153: MONIKA RAJPUT | E153: BUY | F153: 79,042 | G153: 31.1 | H153: BSE
A154: 2022-01-04 | B154: 540243 | C154: NEWLIGHT | D154: MONIKA RAJPUT | E154: SELL | F154: 19,042 | G154: 34.2 | H154: BSE
A155: 2022-01-04 | B155: 540243 | C155: NEWLIGHT | D155: GAURANG JITENDRA PAREKH | E155: BUY | F155: 111,000 | G155: 31.1 | H155: BSE
A156: 2022-01-04 | B156: 538537 | C156: OMANSH | D156: MANJUDEVIMEENA | E156: SELL | F156: 190,991 | G156: 1.85 | H156: BSE
A157: 2022-01-04 | B157: 543400 | C157: OMNIPOTENT | D157: CYRIACMERCY | E157: BUY | F157: 22,000 | G157: 42.41 | H157: BSE
A158: 2022-01-04 | B158: 543400 | C158: OMNIPOTENT | D158: CYRIACMERCY | E158: SELL | F158: 48,000 | G158: 46.7 | H158: BSE
A159: 2022-01-04 | B159: 543400 | C159: OMNIPOTENT | D159: ALPHA LEON ENTERPRISES LLP | E159: BUY | F159: 24,000 | G159: 46.75 | H159: BSE
A160: 2022-01-04 | B160: 543400 | C160: OMNIPOTENT | D160: ALPHA LEON ENTERPRISES LLP | E160: SELL | F160: 40,000 | G160: 46.75 | H160: BSE
A161: 2022-01-04 | B161: 539598 | C161: ORACLECR | D161: DHANIBEN CHUNILAL MUDETHIYA | E161: BUY | F161: 46,241 | G161: 38.97 | H161: BSE
A162: 2022-01-04 | B162: 539598 | C162: ORACLECR | D162: DHANIBEN CHUNILAL MUDETHIYA | E162: SELL | F162: 25,000 | G162: 39.01 | H162: BSE
A163: 2022-01-04 | B163: 539598 | C163: ORACLECR | D163: SANJAY KANUNGO VIRAT HUF | E163: BUY | F163: 100,000 | G163: 38.5 | H163: BSE
A164: 2022-01-04 | B164: 532271 | C164: ORCHASP | D164: PARESH DHIRAJLAL SHAH | E164: SELL | F164: 500,000 | G164: 8.91 | H164: BSE
A165: 2022-01-04 | B165: 532271 | C165: ORCHASP | D165: ALPHA LEON ENTERPRISES LLP | E165: BUY | F165: 6 | G165: 8.73 | H165: BSE
A166: 2022-01-04 | B166: 532271 | C166: ORCHASP | D166: ALPHA LEON ENTERPRISES LLP | E166: SELL | F166: 1,000,006 | G166: 8.91 | H166: BSE
A167: 2022-01-04 | B167: 531626 | C167: OROSMITHS | D167: CAPITAL FINVEST LIMITED | E167: SELL | F167: 250,000 | G167: 5.55 | H167: BSE
A168: 2022-01-04 | B168: 531626 | C168: OROSMITHS | D168: PAWANSUT SECURITIES PRIVATE LTD | E168: SELL | F168: 400,000 | G168: 5.55 | H168: BSE
A169: 2022-01-04 | B169: 538860 | C169: PANAFIC | D169: ALPHA LEON ENTERPRISES LLP | E169: BUY | F169: 500,000 | G169: 2.92 | H169: BSE
A170: 2022-01-04 | B170: 531726 | C170: PANCHSHEEL | D170: NAYNA RAJESH PAREKH | E170: SELL | F170: 51,000 | G170: 134 | H170: BSE
A171: 2022-01-04 | B171: 532911 | C171: PARLEIND | D171: MANSI SHARE & STOCK ADVISORS PRIVATE LIMITED | E171: SELL | F171: 100,919 | G171: 11.29 | H171: BSE
A172: 2022-01-04 | B172: 536659 | C172: PVVINFRA | D172: BHARAT KISHANCHAND SERAI | E172: SELL | F172: 51,850 | G172: 24.55 | H172: BSE
A173: 2022-01-04 | B173: 536659 | C173: PVVINFRA | D173: DHIREN HARESH LAKHWANI | E173: SELL | F173: 50,000 | G173: 22.43 | H173: BSE
A174: 2022-01-04 | B174: 541601 | C174: RAJNISH | D174: KOHINOOR INFRA PROJECTS PRIVATE LIMITED | E174: SELL | F174: 56,700 | G174: 20.37 | H174: BSE
A175: 2022-01-04 | B175: 541601 | C175: RAJNISH | D175: CASTLE DISTRIBUTORS PRIVATE LIMITED | E175: SELL | F175: 89,100 | G175: 19.48 | H175: BSE
A176: 2022-01-04 | B176: 542383 | C176: RITCO | D176: VINEY PARKASH AGARWAL | E176: SELL | F176: 264,000 | G176: 54.26 | H176: BSE
A177: 2022-01-04 | B177: 539526 | C177: SCTL | D177: TOPGAIN FINANCE PRIVATE LIMITED | E177: SELL | F177: 1,000,000 | G177: 2.62 | H177: BSE
A178: 2022-01-04 | B178: 539526 | C178: SCTL | D178: ALPHA LEON ENTERPRISES LLP | E178: BUY | F178: 650,005 | G178: 2.62 | H178: BSE
A179: 2022-01-04 | B179: 539526 | C179: SCTL | D179: ALPHA LEON ENTERPRISES LLP | E179: SELL | F179: 1,335,184 | G179: 2.62 | H179: BSE
A180: 2022-01-04 | B180: 530525 | C180: SHEETAL | D180: ANAND KUMAR SARAOGI | E180: SELL | F180: 66,561 | G180: 13.69 | H180: BSE
A181: 2022-01-04 | B181: 530525 | C181: SHEETAL | D181: MAHESHCHANDRA KANTILAL SHETH | E181: BUY | F181: 52,000 | G181: 13.69 | H181: BSE
A182: 2022-01-04 | B182: 502742 | C182: SINTEX | D182: MANSI SHARE & STOCK ADVISORS PRIVATE LIMITED | E182: SELL | F182: 3,799,393 | G182: 20.22 | H182: BSE
A183: 2022-01-04 | B183: 539584 | C183: SIPTL | D183: KEVINASHOKBHAIKAKADIYA | E183: BUY | F183: 572,326 | G183: 1.81 | H183: BSE
A184: 2022-01-04 | B184: 539584 | C184: SIPTL | D184: KEVINASHOKBHAIKAKADIYA | E184: SELL | F184: 82,702 | G184: 1.81 | H184: BSE
A185: 2022-01-04 | B185: 539584 | C185: SIPTL | D185: ALPHA LEON ENTERPRISES LLP | E185: BUY | F185: 7 | G185: 1.78 | H185: BSE
A186: 2022-01-04 | B186: 539584 | C186: SIPTL | D186: ALPHA LEON ENTERPRISES LLP | E186: SELL | F186: 1,000,007 | G186: 1.81 | H186: BSE
A187: 2022-01-04 | B187: 539584 | C187: SIPTL | D187: CHANDARANA INTERMEDIARIES BROKERS PRIVATE LIMITED | E187: SELL | F187: 300,000 | G187: 1.81 | H187: BSE
A188: 2022-01-04 | B188: 530419 | C188: SUMEDHA | D188: WESSEL CONSULTANCY PRIVATE LIMITED | E188: BUY | F188: 103,855 | G188: 38.08 | H188: BSE
A189: 2022-01-04 | B189: 530419 | C189: SUMEDHA | D189: WESSEL CONSULTANCY PRIVATE LIMITED | E189: SELL | F189: 30,078 | G189: 39.37 | H189: BSE
A190: 2022-01-04 | B190: 530419 | C190: SUMEDHA | D190: PARTH INFIN BROKERS PVT LTD | E190: BUY | F190: 2,825 | G190: 38.35 | H190: BSE
A191: 2022-01-04 | B191: 530419 | C191: SUMEDHA | D191: PARTH INFIN BROKERS PVT LTD | E191: SELL | F191: 230,868 | G191: 36.76 | H191: BSE
A192: 2022-01-04 | B192: 530419 | C192: SUMEDHA | D192: PURUSHOTTAM LAL | E192: BUY | F192: 49,000 | G192: 34.53 | H192: BSE
A193: 2022-01-04 | B193: 530419 | C193: SUMEDHA | D193: KALPANA MADHANI SECURITIES PRIVATE LIMITED | E193: BUY | F193: 50,000 | G193: 39.95 | H193: BSE
A194: 2022-01-04 | B194: 532070 | C194: SUPRBPA | D194: VISHALVIPINBHAIBHATT | E194: BUY | F194: 27,700 | G194: 20.31 | H194: BSE
A195: 2022-01-04 | B195: 534733 | C195: SUPREMEX | D195: N K WEALTH SOLUTIONS LLP | E195: SELL | F195: 404,178 | G195: 11.21 | H195: BSE
A196: 2022-01-04 | B196: 523722 | C196: SVAMSOF | D196: CHANDARANA INTERMEDIARIES BROKERS PRIVATE LIMITED | E196: SELL | F196: 100,000 | G196: 12.82 | H196: BSE
A197: 2022-01-04 | B197: 512257 | C197: SVARTCORP | D197: ALPHA LEON ENTERPRISES LLP | E197: BUY | F197: 293,203 | G197: 8.37 | H197: BSE
A198: 2022-01-04 | B198: 512257 | C198: SVARTCORP | D198: ALPHA LEON ENTERPRISES LLP | E198: SELL | F198: 236,913 | G198: 8.37 | H198: BSE
A199: 2022-01-04 | B199: 512257 | C199: SVARTCORP | D199: MANSI SHARE & STOCK ADVISORS PRIVATE LIMITED | E199: BUY | F199: 200,001 | G199: 9.25 | H199: BSE
A200: 2022-01-04 | B200: 512257 | C200: SVARTCORP | D200: MANSI SHARE & STOCK ADVISORS PRIVATE LIMITED | E200: SELL | F200: 200,001 | G200: 9.25 | H200: BSE
A201: 2022-01-04 | B201: 510245 | C201: SWASTIVI | D201: ALPHA LEON ENTERPRISES LLP | E201: BUY | F201: 838,267 | G201: 12.53 | H201: BSE
A202: 2022-01-04 | B202: 510245 | C202: SWASTIVI | D202: ALPHA LEON ENTERPRISES LLP | E202: SELL | F202: 1,163,267 | G202: 13.36 | H202: BSE
A203: 2022-01-04 | B203: 524470 | C203: SYNCOMF | D203: PRITESH PRAVIN VORA | E203: BUY | F203: 4,213,970 | G203: 13.48 | H203: BSE
A204: 2022-01-04 | B204: 524470 | C204: SYNCOMF | D204: PRITESH PRAVIN VORA | E204: SELL | F204: 4,213,970 | G204: 14.46 | H204: BSE
A205: 2022-01-04 | B205: 513305 | C205: TERRASCOPE | D205: PURSHOTTAM AGARWAL | E205: SELL | F205: 142,746 | G205: 3.46 | H205: BSE
A206: 2022-01-04 | B206: 500426 | C206: UTLINDS | D206: RAMA KRISNA BELLAM | E206: SELL | F206: 171,241 | G206: 7.53 | H206: BSE
... 149 more rows

Sheet Call Tracker (Equity & F&O)
M5: Back To Main Page
A6: Retail Research Technical Calls & Fundamental Performance Report for the month of Jan-2022
M7: =Main!B10 -> 2022-01-05
B8: Positional Call
A9: Sr.no | B9: Date | D9: Company | E9: Rec | F9: Rec Price | G9: Stop Loss*** | H9: Call Closed At | I9: Target | J9: Remark | K9: Profit / Loss per Share | L9: All charges | M9: Net Gain / Loss % | N9: Status | O9: Closed Date | P9: Market Closing Price
A10: 1 | B10: 2021-12-02 | D10: CROMPTON | E10: Buy | F10: 435-440 | G10: 414 | I10: 465-475 | J10: Open | P10: =VLOOKUP(D10,'MidCap Intra'!B42:C535,2,0) -> 436.05 | R10: H
A11: 2 | B11: 2021-12-02 | D11: IOC | E11: Buy | F11: 118-120 | G11: 109 | I11: 130-135 | J11: Open | P11: =VLOOKUP(D11,'MidCap Intra'!B43:C536,2,0) -> 114.05 | R11: H
A12: 3 | B12: 2021-12-14 | D12: HDFCLIFE | E12: Buy | F12: 663-668 | G12: 635 | I12: 700-730 | J12: Open | P12: =VLOOKUP(D12,'MidCap Intra'!B45:C538,2,0) -> 653.15 | R12: H
A13: 4 | B13: 2021-12-17 | D13: BEL | E13: Buy | F13: 201.5 | G13: 188 | H13: 214.50 | I13: 220-230 | J13: Profit of Rs.13/- | K13: =H13-F13 -> 13 | L13: =(F13*-0.7)/100 -> -1.41 | M13: =(K13+L13)/F13 -> 5.75% | N13: Successful | O13: 2021-01-04 | R13: H
A14: 5 | B14: 2021-12-17 | D14: ICICIBANK | E14: Buy | F14: 730 | G14: 687 | H14: 774.00 | I14: 780-820 | J14: Profit of Rs.44/- | K14: 44 | L14: -5.11 | M14: 5.33% | N14: Successful | O14: 2021-01-04 | R14: H
A15: 6 | B15: 2021-12-22 | D15: ACC | E15: Buy | F15: 2140 | G15: 1995 | H15: 2,234.00 | I15: 2350-2450 | J15: Part Profit of Rs.94/- | K15: =H15-F15 -> 94 | L15: =(F15*-0.7)/100 -> -14.98 | M15: =(K15+L15)/F15 -> 3.69% | N15: Successful | O15: 2021-12-31 | P15: =VLOOKUP(D15,'MidCap Intra'!B2:C541,2,0) -> 2224.3 | R15: H
A16: 7 | B16: 2021-12-27 | D16: SUPREMEIND | E16: Buy | F16: 2200-2230 | G16: 2035 | I16: 2400-2500 | J16: Open | P16: =VLOOKUP(D16,'MidCap Intra'!B12:M512,2,0) -> 2226.25 | R16: H
A17: 8 | B17: 2021-12-29 | D17: ROUTE | E17: Buy | F17: 1730 | G17: 1640 | H17: 1,810.00 | I17: 1900-2000 | J17: Part Profit of Rs.80/- | K17: =H17-F17 -> 80 | L17: =(F17*-0.7)/100 -> -12.11 | M17: =(K17+L17)/F17 -> 3.92% | N17: Successful | O17: 2021-12-31 | P17: =VLOOKUP(D17,'MidCap Intra'!B50:C543,2,0) -> 1821.85 | R17: H
A18: 9 | B18: 2021-12-31 | D18: PIIND | E18: Buy | F18: 2980 | G18: 2790 | H18: 3,105.00 | I18: 3200-3400 | J18: Part Profit of Rs.125/- | K18: =H18-F18 -> 125 | L18: =(F18*-0.7)/100 -> -20.86 | M18: =(K18+L18)/F18 -> 3.49% | N18: Successful | O18: 2022-01-03 | P18: =VLOOKUP(D18,'MidCap Intra'!B51:C544,2,0) -> 3013.9 | R18: H
A22: CLBS = Closing Basis ***
A23: Dividend adjusted <> | F23: Reinitiated $
A24: Part book {} | F24: Revised stoploss #
B26: Momentum Call
A27: Sr.no | B27: Date | D27: Company | E27: Rec | F27: Rec Price | G27: Stop Loss | H27: Call Closed At | I27: Target | J27: Remark | K27: Profit / Loss per Share/Lot | L27: All charges | M27: Net Gain / Loss % | N27: Status | O27: Closed Date
A28: 1 | B28: 2021-12-29 | D28: TATAMOTORS | E28: Buy | F28: 476 | G28: 463 | H28: 496 | I28: 490-500 | J28: Profit of Rs.20/- | K28: =H28-F28 -> 20 | L28: =(F28*-0.7)/100 -> -3.33 | M28: =(K28+L28)/F28 -> 3.50% | N28: Successful | O28: 2022-01-03 | R28: H
A29: 2 | B29: 2021-12-29 | D29: MASTEK | E29: Buy | F29: 3000-3020 | G29: 2930 | I29: 3140-3200 | J29: Open | R29: H
A30: 3 | B30: 2021-12-29 | D30: HINDCOPPER | E30: Buy | F30: 126 | G30: 122 | H30: 131.5 | I30: 130-134 | J30: Profit of Rs.5.5/- | K30: =H30-F30 -> 5.5 | L30: =(F30*-0.7)/100 -> -0.88 | M30: =(K30+L30)/F30 -> 3.67% | N30: Successful | O30: 2022-01-04 | R30: N
A31: 4 | B31: 2021-12-31 | D31: GNFC | E31: Buy | F31: 443.5 | G31: 430 | H31: 459 | I31: 460-475 | J31: Profit of Rs.15.5/- | K31: =H31-F31 -> 15.5 | L31: =(F31*-0.7)/100 -> -3.10 | M31: =(K31+L31)/F31 -> 2.79% | N31: Successful | O31: 2022-01-04 | R31: N
A32: 5 | B32: 2021-12-31 | D32: AXISBANK | E32: Buy | F32: 677.5 | G32: 659 | H32: 696 | I32: 700-720 | J32: Profit of Rs.18.5/- | K32: =H32-F32 -> 18.5 | L32: =(F32*-0.7)/100 -> -4.74 | M32: =(K32+L32)/F32 -> 2.03% | N32: Successful | O32: 2022-01-03
R33: H
A35: CLBS = Closing Basis *** | H35: *
A36: Dividend adjusted <> | F36: Reinitiated $
F37: Revised stoploss #
A39: Master Trade High Risk
A40: Sr.no | B40: Date | D40: Company | E40: Rec | F40: Rec Price | G40: Stop Loss | H40: Call Closed At | I40: Target | J40: Remark | K40: Profit / Loss per share | L40: All charges | M40: Gain / Loss per Lot | N40: Lot | O40: Status | P40: Closed Date
A41: 1 | B41: 2021-12-31 | D41: SRF JAN FUT | E41: Buy | F41: 2432.5 | G41: 2398 | H41: 2398 | I41: 2470-2490 | J41: Loss of Rs.34.5/- | K41: =H41-F41 -> -34.5 | L41: =(H41*N41)*0.07% -> 629.48 | M41: =(K41*N41)-L41 -> -13567.0 | N41: 375 | O41: Unsuccessful | P41: 2021-01-04 | R41: N
A42: 2 | B42: 2022-01-04 | D42: NIFTY JAN FUT | E42: Sell | F42: 17760-17780 | G42: 17875 | I42: 17650-17550 | J42: Open
A49: Master Trade Medium Risk
A50: Sr.no | B50: Date | D50: Company | E50: Rec | F50: Rec Price | G50: Stop Loss | H50: Call Closed At | I50: Target | J50: Remark | K50: Profit/ Loss per lot | L50: All charges | M50: Gain / Loss per Lot | N50: Lot | O50: Status | P50: Closed Date
A51: 1 | B51: 2021-12-31 | D51: NIFTY 17200 PE 06-JAN | E51: Buy | F51: 81.5 | G51: 40 | H51: 40 | I51: 120-150 | J51: Loss of Rs.41.50/- | K51: =H51-F51 -> -41.50 | L51: 100.00 | M51: =(K51*N51)-100 -> -2175 | N51: 50 | O51: Unsuccessful | P51: 2022-01-03 | R51: N
A52: 2 | B52: 2022-01-04 | D52: NIFTY 17600 PE 06-JAN | E52: Buy | F52: 65.5 | G52: 20 | H52: 24.5 | I52: 120 | J52: Loss of Rs.41/- | K52: =H52-F52 -> -41.00 | L52: 100.00 | M52: =(K52*N52)-100 -> -2150 | N52: 50 | O52: Unsuccessful | P52: 2022-01-04
A55: Techno -Funda (positional)
A56: Sr.no | B56: Date | D56: Company | E56: Rec | F56: Rec Price | G56: Stop Loss*** | H56: Call Closed At | I56: Target | J56: Remark | K56: Profit / Loss per Share/Lot | L56: All charges | M56: Net Gain / Loss % | N56: Status | O56: Closed Date | P56: Market Closing Price
A57: 1 | B57: 2021-10-19 | D57: ITC | E57: Buy | F57: 230-251 | G57: 198 | I57: 320-340 | J57: Open | R57: H
A58: 2 | B58: 2021-10-21 | D58: OFSS | E58: Buy | F58: 4150-4550 | G58: 3700 | I58: 5400-6000 | J58: Open | R58: H
A59: 3 | B59: 2021-12-21 | D59: HEIDELBERG | E59: Buy | F59: 213-217 | G59: 198 | I59: 240-250 | J59: Open | R59: H
A62: CLBS = Closing Basis *** | F62: Reinitiated $
A63: Dividend adjusted <> | F63: Revised stoploss # | H63: .................
B68: Investment Idea
A69: Sr.no | B69: Date | D69: Company | E69: Rec | F69: Rec Price | G69: Point of Review | H69: Close Rate | I69: Target | J69: Remark | K69: Profit / Loss per Share | L69: Gain / Loss % | M69: Status | N69: Closed Date
A70: 1 | B70: 2013-11-01 | D70: L&T Finance Holding | E70: Accu | F70: 82.00 | G70: - | H70: 100 | I70: 100.00 | J70: Target Achieved | K70: =H70-F70 -> 18.00 | L70: =K70/F70 -> 21.95% | M70: Successful | N70: 2016-10-14
A71: 2 | B71: 2014-06-04 | D71: Finolex Inds | E71: Buy | F71: 257.00 | G71: - | H71: 300 | I71: 300.00 | J71: Target Achieved | K71: 43.00 | L71: 16.73% | M71: Successful | N71: 2014-07-02
A72: 3 | B72: 2014-07-08 | D72: JK Cement | E72: Buy | F72: 393.00 | G72: - | H72: 468 | I72: 468.00 | J72: Target Achieved | K72: 75.00 | L72: 19.08% | M72: Successful | N72: 2014-08-12
A73: 4 | B73: 2014-08-06 | D73: Finolex Cables | E73: Buy | F73: 205.00 | G73: - | H73: 275 | I73: 250.00 | J73: Target Achieved | K73: 70.00 | L73: 34.15% | M73: Successful | N73: 2014-11-19
A74: 5 | B74: 2014-09-04 | D74: Exide Inds | E74: Buy | F74: 162.00 | G74: - | H74: 190 | I74: 190.00 | J74: Target Achieved | K74: 28.00 | L74: 17.28% | M74: Successful | N74: 2015-01-02
A75: 6 | B75: 2014-09-04 | D75: Deepak Nitrite | E75: Buy | F75: 75.00 | G75: - | H75: 91.5 | I75: 95-100 | J75: Profit of Rs.16.50/- | K75: 16.50 | L75: 22.00% | M75: Successful | N75: 2014-11-11
A76: 7 | B76: 2014-10-01 | D76: Mercks | E76: Buy | F76: 850.00 | G76: - | H76: 982.5 | I76: 1050.00 | J76: Profit of Rs.132.50/- | K76: 132.50 | L76: 15.59% | M76: Successful | N76: 2015-02-04
A77: 8 | B77: 2014-10-01 | D77: Grindwell Norton | E77: Buy | F77: 475.00 | G77: - | H77: 515 | I77: 600.00 | J77: Profit of Rs.40/- | K77: 40.00 | L77: 8.42% | M77: Successful | N77: 2014-10-27
A78: 9 | B78: 2014-10-01 | D78: Snowman Logistics | E78: Buy | F78: 86.00 | G78: - | H78: 99 | I78: 140.00 | J78: Profit of Rs.13.00/- | K78: 13.00 | L78: 15.12% | M78: Successful | N78: 2014-10-27
A79: 10 | B79: 2014-10-14 | D79: Birla Corp | E79: Buy | F79: 496.60 | G79: - | H79: 621 | I79: 580.00 | J79: Target Achieved | K79: 124.40 | L79: 25.05% | M79: Successful | N79: 2016-08-23
A80: 11 | B80: 2014-10-14 | D80: Ultratech Cem | E80: Buy | F80: 2481.90 | G80: - | H80: 2840 | I80: 2870.00 | J80: Profit of Rs.358.10/- | K80: 358.10 | L80: 14.43% | M80: Successful | N80: 2015-01-13
A81: 12 | B81: 2014-10-16 | D81: Sintex Inds | E81: Buy | F81: 84.50 | G81: - | H81: 93 | I81: 110.00 | J81: Profit of Rs.8.50/- | K81: 8.50 | L81: 10.06% | M81: Successful | N81: 2014-10-27
A82: 13 | B82: 2014-10-16 | D82: HSIL | E82: Buy | F82: 401.00 | G82: - | H82: 428 | I82: 450.00 | J82: Profit of Rs.27.00/- | K82: 27.00 | L82: 6.73% | M82: Successful | N82: 2015-01-16
A83: 14 | B83: 2014-10-16 | D83: Eveready Inds | E83: Buy | F83: 101.00 | G83: - | H83: 112 | I83: 120.00 | J83: Profit of Rs.11.00/- | K83: 11.00 | L83: 10.89% | M83: Successful | N83: 2014-10-27
A84: 15 | B84: 2014-11-11 | D84: Pennar Inds | E84: Buy | F84: 59.00 | G84: - | H84: 76 | I84: 76.00 | J84: Target Achieved | K84: 17.00 | L84: 28.81% | M84: Successful | N84: 2017-10-24
A85: 16 | B85: 2014-11-11 | D85: Snowman Logistics | E85: Buy | F85: 99.00 | G85: - | H85: 120 | I85: 120.00 | J85: Profit of Rs.21/- | K85: 21.00 | L85: 21.21% | M85: Successful | N85: 2014-11-17
A86: 17 | B86: 2014-11-13 | D86: Dharamsi Morarji Chem | E86: Buy | F86: 22.00 | G86: - | H86: 33.55 | I86: 32.00 | J86: Profit of Rs 11.55/- | K86: 11.55 | L86: 52.50% | M86: Successful | N86: 2015-07-03
A87: 18 | B87: 2014-12-03 | D87: Tatachem | E87: Buy | F87: 440.00 | G87: - | H87: 520 | I87: 520.00 | J87: Profit of Rs 80.00/- | K87: 80.00 | L87: 18.18% | M87: Successful | N87: 2015-07-23
A88: 19 | B88: 2014-12-03 | D88: Advanta | E88: Buy | F88: 360.00 | G88: - | H88: 427 | I88: 425.00 | J88: Profit of Rs.67.00/- | K88: 67.00 | L88: 18.61% | M88: Successful | N88: 2015-02-23
A89: 20 | B89: 2015-01-08 | D89: GDL | E89: Buy | F89: 360.00 | G89: - | H89: 455 | I89: 420.00 | J89: Profit of Rs.95.00/- | K89: 95.00 | L89: 26.39% | M89: Successful | N89: 2015-01-20
A90: 21 | B90: 2015-01-08 | D90: NRB Bearing | E90: Buy | F90: 130.00 | H90: 175.5 | I90: 165.00 | J90: Profit of Rs 45.50/- | K90: 45.50 | L90: 35.00% | M90: Successful | N90: 2017-12-19
A91: 22 | B91: 2015-02-05 | D91: GSFC | E91: Accu | F91: 98.00 | H91: 120 | I91: 120.00 | J91: Target Achieved | K91: 22.00 | L91: 22.45% | M91: Successful | N91: 2017-01-18
A92: 23 | B92: 2015-02-05 | D92: Sundrmfast | E92: Accu | F92: 196.00 | H92: 262 | I92: 255.00 | J92: Target Achieved | K92: 66.00 | L92: 33.67% | M92: Successful | N92: 2016-08-17
A93: 24 | B93: 2015-03-04 | D93: GPPL | E93: Accu | F93: 235 | H93: 77.00 | I93: 280-285 | J93: Loss of Rs.158/- | K93: -158.00 | L93: -67.23% | M93: Unsuccessful | N93: 2019-02-26
A94: 25 | B94: 2015-03-04 | D94: ORIENTCEM | E94: Accu | F94: 185.00 | H94: 224 | I94: 220-225 | J94: Target Achieved | K94: 39.00 | L94: 21.08% | M94: Successful | N94: 2016-10-04
A95: 26 | B95: 2015-03-27 | D95: PFS | E95: Accu | F95: 49.5 | H95: 15.85 | I95: 67.00 | J95: Loss of Rs.33.65/- | K95: -33.65 | L95: -68% | M95: Unsuccessful | N95: 2019-06-11
A96: 27 | B96: 2015-03-30 | D96: Walchandnagar Ind Ltd | E96: Accu | F96: 183.50 | H96: 219 | I96: 218.00 | J96: Profit of Rs.35.50/- | K96: 35.50 | L96: 19.35% | M96: Successful | N96: 2015-04-09
A97: 28 | B97: 2015-04-20 | D97: Kalpataru Power Transmission Ltd | E97: Accu | F97: =(227+237)/2 -> 232.00 | H97: 298 | I97: 298.00 | J97: Target Achieved | K97: 66.00 | L97: 28.45% | M97: Successful | N97: 2017-03-29
A98: 29 | B98: 2015-05-04 | D98: Mastek Ltd | E98: Buy | F98: 385.00 | H98: =212.5+331 -> 543.5 | I98: 510.00 | J98: Profit of Rs 158.50/- | K98: 158.50 | L98: 41.17% | M98: Successful | N98: 2015-08-19
A99: 30 | B99: 2015-05-04 | D99: Suprajit Eng | E99: Buy | F99: 115.50 | H99: 146 | I99: 142.00 | J99: Profit of Rs 30.50/- | K99: 30.50 | L99: 26.41% | M99: Successful | N99: 2015-07-17
A100: 31 | B100: 2015-05-27 | D100: TCI | E100: Buy | F100: 237.50 | H100: 279.5 | I100: 278.00 | J100: Target Achieved | K100: 42.00 | L100: 17.68% | M100: Successful | N100: 2015-08-06
A101: 32 | B101: 2015-06-19 | D101: HSIL | E101: Accu | F101: 340.00 | H101: 448 | I101: 448.00 | J101: Target Achieved | K101: 108.00 | L101: 31.76% | M101: Successful | N101: 2017-10-10
A102: 33 | B102: 2015-07-06 | D102: Capital First | E102: Accu | F102: 390.00 | H102: 460 | I102: 460.00 | J102: Target Achieved | K102: 70.00 | L102: 17.95% | M102: Successful | N102: 2016-04-18
A103: 34 | B103: 2015-07-10 | D103: Dolphin OffShore | E103: Accu | F103: 122.5 | H103: 61.00 | I103: 172.00 | J103: Loss of Rs.61.50/- | K103: -61.50 | L103: -50.20% | M103: Unsuccessful | N103: 2018-08-21
A104: 35 | B104: 2015-08-03 | D104: Allcargo logistics | E104: Accu | F104: 297.50 | H104: 350 | I104: 360.00 | J104: Profit of Rs 52.50/- | K104: 52.50 | L104: 17.65% | M104: Successful | N104: 2015-08-16
A105: 36 | B105: 2015-08-03 | D105: Camline Fine | E105: Accu | F105: 115.50 | H105: 149 | I105: 140.00 | J105: Profit of Rs 33.50/- | K105: 33.50 | L105: 29.00% | M105: Successful | N105: 2017-01-05
A106: 37 | B106: 2015-09-04 | D106: TCI | E106: Accu | F106: 226.00 | H106: 292 | I106: 292.00 | J106: Target Achieved | K106: 66.00 | L106: 29.20% | M106: Successful | N106: 2015-10-09
A107: 38 | B107: 2015-09-07 | D107: Kalpataru Power Transmission Ltd | E107: Accu | F107: 232.50 | H107: 312.5 | I107: 310.00 | J107: Target Achieved | K107: 80.00 | L107: 34.41% | M107: Successful | N107: 2017-03-29
A108: 39 | B108: 2015-09-21 | D108: LLOYD ELECTRIC & ENG LTD | E108: Accu | F108: 196.50 | H108: 238 | I108: 238.00 | J108: Target Achieved | K108: 41.50 | L108: 21.12% | M108: Successful | N108: 2015-10-14
A109: 40 | B109: 2015-09-24 | D109: L&T Finance Holding | E109: Accu | F109: 65.00 | H109: 82 | I109: 82.00 | J109: Target Achieved | K109: 17.00 | L109: 26.15% | M109: Successful | N109: 2016-07-27
A110: 41 | B110: 2015-10-14 | D110: KEC International ltd | E110: Accu | F110: 144.00 | H110: 182.5 | I110: 181.00 | J110: Target Achieved | K110: 38.50 | L110: 26.74% | M110: Successful | N110: 2017-03-23
A111: 42 | B111: 2015-10-14 | D111: Gruh Finance | E111: Accu | F111: 264.00 | H111: 311 | I111: 311.00 | J111: Target Achieved | K111: 47.00 | L111: 17.80% | M111: Successful | N111: 2016-08-22
A112: 43 | B112: 2015-11-10 | D112: Pidilitind | E112: Buy | F112: 549.50 | H112: 630 | I112: 630.00 | J112: Target Achieved | K112: 80.50 | L112: 14.65% | M112: Successful | N112: 2016-02-19
A113: 44 | B113: 2015-12-04 | D113: Zensar Technology | E113: Accu | F113: 1027.50 | H113: 1315 | I113: 1250.00 | J113: Target Achieved | K113: 287.50 | L113: 27.98% | M113: Successful | N113: 2018-05-24
A114: 45 | B114: 2015-12-29 | D114: Vinati Organics Ltd | E114: Accu | F114: 465.00 | H114: 540 | I114: 540.00 | J114: Target Achieved | K114: 75.00 | L114: 16.13% | M114: Successful | N114: 2016-06-09
A115: 46 | B115: 2016-01-11 | D115: GSFC | E115: Buy | F115: 81.00 | H115: 110 | I115: 110.00 | J115: Target Achieved | K115: 29.00 | L115: 35.80% | M115: Successful | N115: 2017-01-10
A116: 47 | B116: 2016-01-13 | D116: SSWL | E116: Buy | F116: 417.50 | H116: 547 | I116: 535.00 | J116: Target Achieved | K116: 129.50 | L116: 31.02% | M116: Successful | N116: 2016-07-27
A117: 48 | B117: 2016-02-08 | D117: Persistent System Ltd | E117: Accu | F117: 650.00 | H117: 800 | I117: 800.00 | J117: Target Achieved | K117: 150.00 | L117: 23.08% | M117: Successful | N117: 2018-02-23
A118: 49 | B118: 2016-03-04 | D118: UPL | E118: Accu | F118: 437.50 | H118: 504.5 | I118: 522.00 | J118: Profit of Rs.67/- | K118: 67.00 | L118: 15.31% | M118: Successful | N118: 2016-04-20
A119: 50 | B119: 2016-03-09 | D119: Ashoka Buildcon Ltd | E119: Accu | F119: 189.50 | H119: 218 | I119: 218.00 | J119: Target Achieved | K119: 28.50 | L119: 15.04% | M119: Successful | N119: 2017-10-26
A120: 51 | B120: 2016-04-11 | D120: PTC INDIA FIN SERV LTD | E120: Accu | F120: 36.5 | H120: 15.85 | I120: 60.00 | J120: Loss of Rs.20.65/- | K120: -20.65 | L120: -56.58% | M120: Unsuccessful | N120: 2019-06-11
A121: 52 | B121: 2016-04-12 | D121: CAMLINFINE $ | E121: Accu | F121: 93.00 | H121: 149 | I121: 140.00 | J121: Profit of Rs 56/- | K121: 56.00 | L121: 60.22% | M121: Successful | N121: 2017-01-05
A122: 53 | B122: 2016-04-12 | D122: Greaves Cotton Ltd. | E122: Accu | F122: 130.00 | H122: 150 | I122: 150-155 | J122: Target Achieved | K122: 20.00 | L122: 15.38% | M122: Successful | N122: 2016-07-13
A123: 54 | B123: 2016-04-13 | D123: DHFL | E123: Accu | F123: 196.00 | H123: 299 | I123: 299.00 | J123: Target Achieved | K123: 103.00 | L123: 52.55% | M123: Successful | N123: 2016-09-07
A124: 55 | B124: 2016-04-13 | D124: Magma | E124: Accu | F124: 88.00 | H124: 103 | I124: 103.00 | J124: Target Achieved | K124: 15.00 | L124: 17.05% | M124: Successful | N124: 2016-06-09
A125: 56 | B125: 2016-05-02 | D125: KEC International ltd $ | E125: Accu | F125: 127.50 | H125: 148 | I125: 148-150 | J125: Target Achieved | K125: =H125-F125 -> 20.50 | L125: =K125/F125 -> 16.08% | M125: Successful | N125: 2016-07-13
A126: 57 | B126: 2016-05-03 | D126: Mindtree | E126: Accu | F126: 675.00 | H126: 815 | I126: 790-800 | J126: Target Achieved | K126: 140.00 | L126: 20.74% | M126: Successful | N126: 2018-02-23
A127: 58 | B127: 2016-06-01 | D127: Atulauto | E127: Accu | F127: 500 | H127: 232.50 | I127: 565-570 | J127: Loss of Rs.267.50 /- | K127: -267.50 | L127: -53.50% | M127: Unsuccessful | N127: 2019-09-27
A128: 59 | B128: 2016-06-06 | D128: TRITURBINE | E128: Accu | F128: 110.00 | H128: 126.5 | I128: 125.00 | J128: Profit of Rs.16.50/- | K128: 16.50 | L128: 15.00% | M128: Successful | N128: 2016-07-01
A129: 60 | B129: 2016-06-17 | D129: Pennar Industries Ltd | E129: Accu | F129: 44.00 | H129: 69.5 | I129: 69.50 | J129: Profit of Rs.25.50/- | K129: 25.50 | L129: 57.95% | M129: Successful | N129: 2017-08-30
A130: 61 | B130: 2016-06-28 | D130: EVEREADY | E130: Accu | F130: 262.50 | H130: 340 | I130: 333.00 | J130: Profit of Rs.77.50/- | K130: 77.50 | L130: 29.52% | M130: Successful | N130: 2017-10-09
A131: 62 | B131: 2016-06-28 | D131: FIEMIND | E131: Accu | F131: 840.00 | H131: 1230 | I131: 1230.00 | J131: Target Achieved | K131: 390.00 | L131: 46.43% | M131: Successful | N131: 2016-10-06
A132: 63 | B132: 2016-07-05 | D132: Bajaj Corp Ltd | E132: Accu | F132: 395 | H132: =(468.5+342.5)/2 -> 405.50 | I132: 510.00 | J132: Profit of Rs.10.50/- | K132: =H132-F132 -> 10.50 | L132: =K132/F132 -> 3% | M132: Neutral | N132: 2019-05-21
A133: 64 | B133: 2016-08-02 | D133: GPPL $ | E133: Buy | F133: =169.5-12.8 -> 156.7 | H133: 77.00 | I133: 198-200 | J133: Loss of Rs.79.7/- | K133: -79.70 | L133: -50.86% | M133: Unsuccessful | N133: 2019-02-26
A134: 65 | B134: 2016-08-04 | D134: WONDERLA HOLIDAYS LTD | E134: Accu | F134: 400 | H134: 305.00 | I134: 475.00 | J134: Loss of Rs.95/- | K134: -95.00 | L134: -23.75% | M134: Unsuccessful | N134: 2019-05-21
A135: 66 | B135: 2016-08-11 | D135: CAMLINFINE | E135: Accu | F135: 86.50 | H135: 130 | I135: 130.00 | J135: Profit of Rs.43.50/- | K135: 43.50 | L135: 50.29% | M135: Successful | N135: 2017-12-22
A136: 67 | B136: 2016-08-18 | D136: GRANULES | E136: Accu | F136: 133.5 | H136: 126.50 | I136: 178.00 | J136: Exit | K136: -7.00 | L136: -5.24% | M136: Unsuccessful | N136: 2016-09-02
A137: 68 | B137: 2016-08-31 | D137: VA TECH WABAG | E137: Accu | F137: 560.00 | H137: 725 | I137: 725.00 | J137: Target Achieved | K137: 165.00 | L137: 29.46% | M137: Successful | N137: 2016-03-27
A138: 69 | B138: 2016-09-01 | D138: SKIPPER LIMITED | E138: Accu | F138: 160.50 | H138: 210 | I138: 210.00 | J138: Target Achieved | K138: 49.50 | L138: 30.84% | M138: Successful | N138: 2017-05-16
A139: 70 | B139: 2016-10-03 | D139: IFBIND | E139: Accu | F139: 430.00 | H139: 596 | I139: 575.00 | J139: Profit of Rs.166/- | K139: 166.00 | L139: 38.60% | M139: Successful | N139: 2017-02-03
A140: 71 | B140: 2016-10-14 | D140: ASIANTILES | E140: Accu | F140: 280.00 | H140: 345 | I140: 345.00 | J140: Target Achieved | K140: =H140-F140 -> 65.00 | L140: =K140/F140 -> 23.21% | M140: Successful | N140: 2017-03-20
A141: 72 | B141: 2016-10-14 | D141: DEEPIND | E141: Accu | F141: 245.00 | H141: 325.5 | I141: 330.00 | J141: Profit of Rs.80.5/- | K141: 80.50 | L141: 32.86% | M141: Successful | N141: 2017-02-03
A142: 73 | B142: 2016-10-17 | D142: DCBBANK | E142: Accu | F142: 125.00 | H142: 160 | I142: 160.00 | J142: Target Achieved | K142: 35.00 | L142: 28.00% | M142: Successful | N142: 2017-03-09
A143: 74 | B143: 2016-10-17 | D143: ORIENTREF | E143: Accu | F143: 114.00 | H143: 145 | I143: 145.00 | J143: Target Achieved | K143: 31.00 | L143: =K143/F143 -> 27.19% | M143: Successful | N143: 2017-05-04
A144: 75 | B144: 2016-10-17 | D144: GANECOS | E144: Accu | F144: 212.00 | H144: 280 | I144: 276.00 | J144: Profit of Rs.68/- | K144: 68.00 | L144: 32.08% | M144: Successful | N144: 2017-05-03
A145: 76 | B145: 2016-11-04 | D145: NBCC | E145: Accu | F145: 155.00 | H145: 210 | I145: 210.00 | J145: Profit of Rs.55/- | K145: 55.00 | L145: 35.48% | M145: Successful | N145: 2017-07-28
A146: 77 | B146: 2016-12-06 | D146: PRECAM | E146: Accu | F146: 150.5 | H146: 72.50 | I146: 174.00 | J146: Loss of Rs.78/- | K146: -78.00 | L146: -51.83% | M146: Unsuccessful | N146: 2018-08-21
A147: 78 | B147: 2016-12-08 | D147: INFRATEL | E147: Accu | F147: 380.00 | H147: 478 | I147: 468.00 | J147: Target Achieved | K147: =H147-F147 -> 98.00 | L147: =K147/F147 -> 25.79% | M147: Successful | N147: 2017-10-17
A148: 79 | B148: 2016-12-30 | D148: GODREJPROP | E148: Accu | F148: 305.00 | H148: 375 | I148: 375.00 | J148: Target Achieved | K148: 70.00 | L148: 22.95% | M148: Successful | N148: 2017-02-02
A149: 80 | B149: 2017-01-04 | D149: DEEPAKNTR | E149: Accu | F149: 99.50 | H149: 158 | I149: 158.00 | J149: Target Achieved | K149: 58.50 | L149: 58.79% | M149: Successful | N149: 2017-06-12
A150: 81 | B150: 2017-01-04 | D150: DEEPAKNTR | E150: Accu | F150: 99.50 | H150: 158 | I150: 158.00 | J150: Target Achieved | K150: 58.50 | L150: 58.79% | M150: Successful | N150: 2017-06-12
A151: 82 | B151: 2017-02-20 | D151: RECLTD | E151: Accu | F151: 140.50 | H151: 220 | I151: 220.00 | J151: Target Achieved | K151: =H151-F151 -> 79.50 | L151: =K151/F151 -> 56.58% | M151: Successful | N151: 2017-05-09
A152: 83 | B152: 2017-02-20 | D152: SUBROS | E152: Accu | F152: 202.50 | H152: 234 | I152: 234.00 | J152: Target Achieved | K152: 31.50 | L152: 15.56% | M152: Successful | N152: 2017-04-11
A153: 84 | B153: 2017-03-24 | D153: VRLLOG | E153: Accu | F153: 300.50 | H153: 417.5 | I153: 420.00 | J153: Profit of Rs.117/- | K153: =H153-F153 -> 117.00 | L153: =K153/F153 -> 38.94% | M153: Successful | N153: 2017-12-01
A154: 85 | B154: 2017-03-24 | D154: FIEMIND | E154: Accu | F154: 850.00 | H154: 1042.5 | I154: 1023.00 | J154: Profit of Rs 192.50/- | K154: 192.50 | L154: 22.65% | M154: Successful | N154: 2017-04-05
A155: 86 | B155: 2017-04-05 | D155: RATNAMANI | E155: Accu | F155: 785.00 | H155: 930 | I155: 920.00 | J155: Profit of Rs.145/- | K155: =H155-F155 -> 145.00 | L155: =K155/F155 -> 18.47% | M155: Successful | N155: 2017-08-29
A156: 87 | B156: 2017-04-06 | D156: ZEEMEDIA | E156: Accu | F156: 40 | H156: 13.10 | I156: 60.00 | J156: Loss of Rs.26.9/- | K156: -26.90 | L156: -67.25% | M156: Unsuccessful | N156: 2018-02-07
A157: 88 | B157: 2017-04-12 | D157: DABUR | E157: Accu | F157: 289.50 | H157: 354 | I157: 360.00 | J157: Profit of Rs.64.5/- | K157: =H157-F157 -> 64.50 | L157: =K157/F157 -> 22.28% | M157: Successful | N157: 2017-11-01
A158: 89 | B158: 2017-04-20 | D158: KPRMILL | E158: Accu | F158: 700.00 | H158: 840 | I158: 840.00 | J158: Profit of Rs.140/- | K158: 140.00 | L158: 20.00% | M158: Successful | N158: 2017-06-07
A159: 90 | B159: 2017-06-01 | D159: ESSELPACK | E159: Accu | F159: 130.00 | H159: 144.25 | I159: 170.00 | J159: Profit of Rs.14.25/- | K159: 14.25 | L159: 10.96% | M159: Successful | N159: 2019-07-29
A160: 91 | B160: 2017-06-15 | D160: KEI | E160: Accu | F160: 214.50 | H160: 262 | I160: 262.00 | J160: Profit of Rs.47.5/- | K160: 47.50 | L160: 22.14% | M160: Successful | N160: 2017-08-30
A161: 92 | B161: 2017-07-17 | D161: MAYURUNIQ | E161: Accu | F161: 370.00 | H161: 447.5 | I161: 450.00 | J161: Target Achieved | K161: 77.50 | L161: 20.95% | M161: Successful | N161: 2017-10-27
A162: 93 | B162: 2017-07-27 | D162: RAMCOCEM | E162: Accu | F162: 657.50 | H162: 825 | I162: 820.00 | J162: Target Achieved | K162: 167.50 | L162: 25.48% | M162: Successful | N162: 2017-12-21
A163: 94 | B163: 2017-08-17 | D163: FINPIPE | E163: Accu | F163: 605.00 | H163: 750 | I163: 750.00 | J163: Profit of Rs.145/- | K163: 145.00 | L163: 23.97% | M163: Successful | N163: 2017-10-19
A164: 95 | B164: 2017-09-01 | D164: SHK | E164: Accu | F164: 255 | H164: 217.25 | I164: 320.00 | J164: Loss of Rs.37.75/- | K164: -37.75 | L164: -15% | M164: Unsuccessful | N164: 2019-07-15
A165: 96 | B165: 2017-09-19 | D165: SKIPPER | E165: Accu | F165: 215.00 | H165: 258 | I165: 258.00 | J165: Target Achieved | K165: 43.00 | L165: 20.00% | M165: Successful | N165: 2017-11-01
A166: 97 | B166: 2017-09-19 | D166: SKIPPER | E166: Accu | F166: 215.00 | H166: 258 | I166: 258.00 | J166: Target Achieved | K166: 43.00 | L166: 20.00% | M166: Successful | N166: 2017-11-01
A167: 98 | B167: 2017-09-20 | D167: CAMLINFINE$ | E167: Accu | F167: 75.00 | H167: 90 | I167: 90.00 | J167: Profit of Rs.15.00/- | K167: =H167-F167 -> 15.00 | L167: =K167/F167 -> 20.00% | M167: Successful | N167: 2017-10-11
A168: 99 | B168: 2017-10-03 | D168: GNA | E168: Accu | F168: 315.00 | H168: 392 | I168: 384.00 | J168: Profit of Rs.77/- | K168: 77.00 | L168: 24.44% | M168: Successful | N168: 2017-10-09
A169: 100 | B169: 2017-10-05 | D169: NOCIL | E169: Accu | F169: 145.00 | H169: 179 | I169: 180.00 | J169: Profit of Rs.34/- | K169: 34.00 | L169: 23.45% | M169: Successful | N169: 2017-10-17
A170: 101 | B170: 2017-10-06 | D170: CENTURYPLY | E170: Accu | F170: 256.00 | H170: 323 | I170: 320.00 | J170: Target Achieved | K170: 67.00 | L170: 26.17% | M170: Successful | N170: 2017-11-28
A171: 102 | B171: 2017-10-09 | D171: EIHOTEL | E171: Accu | F171: 137.50 | H171: 184 | I171: 183.00 | J171: Profit of Rs.46.5/- | K171: 46.50 | L171: 33.82% | M171: Successful | N171: 2018-01-08
A172: 103 | B172: 2017-10-10 | D172: NRBBEARING | E172: Accu | F172: 125.50 | H172: 158 | I172: 155.00 | J172: Profit of Rs.32.5/- | K172: 32.50 | L172: 25.90% | M172: Successful | N172: 2017-11-28
A173: 104 | B173: 2017-10-10 | D173: BOROSIL | E173: Accu | F173: 895.00 | H173: 1122.5 | I173: 1078.00 | J173: Profit of Rs.227.5/- | K173: 227.50 | L173: 25.42% | M173: Successful | N173: 2018-01-17
A174: 105 | B174: 2017-10-12 | D174: CYIENT | E174: Accu | F174: 525.00 | H174: 629 | I174: 629.00 | J174: Target Achieved | K174: 104.00 | L174: 19.81% | M174: Successful | N174: 2018-01-19
A175: 106 | B175: 2017-11-07 | D175: HATSUN | E175: Accu | F175: 740.00 | H175: 892.5 | I175: 900.00 | J175: Profit of Rs.152.5/- | K175: =H175-F175 -> 152.50 | L175: =K175/F175 -> 20.61% | M175: Successful | N175: 2017-11-13
A176: 107 | B176: 2017-12-04 | D176: SANGHIIND | E176: Accu | F176: 118.50 | H176: 143.5 | I176: 145.00 | J176: Profit of Rs.25/- | K176: 25.00 | L176: 21.10% | M176: Successful | N176: 2017-12-28
A177: 108 | B177: 2017-12-21 | D177: KAJARIACER | E177: Accu | F177: 715 | H177: 500.00 | I177: 872.00 | J177: Loss of Rs.215/- | K177: -215.00 | L177: -30.07% | M177: Unsuccessful | N177: 2019-07-24
A178: 109 | B178: 2017-12-29 | D178: GNA | E178: Accu | F178: 435.00 | H178: 542.5 | I178: 539.00 | J178: Target Achieved | K178: 107.50 | L178: 24.71% | M178: Successful | N178: 2018-04-16
A179: 110 | B179: 2017-12-29 | D179: ZENSARTECH | E179: Accu | F179: 885.00 | H179: 1090 | I179: 1084.00 | J179: Target Achieved | K179: 205.00 | L179: 23.16% | M179: Successful | N179: 2018-04-23
A180: 111 | B180: 2018-04-02 | D180: EVERESTIND | E180: Accu | F180: 478.50 | H180: 442 | I180: 613.00 | J180: Loss of Rs.36.50 /- | K180: =H180-F180 -> -36.50 | L180: =K180/F180 -> -7.63% | M180: Unsuccessful | N180: 2019-10-24
A181: 112 | B181: 2018-04-04 | D181: GPPL$ | E181: Accu | F181: =141.5-7.3 -> 134.2 | H181: 77.00 | I181: 180.00 | J181: Loss of Rs.57.2/- | K181: -57.20 | L181: -42.62% | M181: Unsuccessful | N181: 2019-02-26
A182: 113 | B182: 2018-04-19 | D182: MANPASAND | E182: Accu | F182: 430 | H182: 220.00 | I182: 537.00 | J182: Loss of Rs.210/- | K182: -210.00 | L182: -48.84% | M182: Unsuccessful | N182: 2018-06-01
A183: 114 | B183: 2018-04-30 | D183: HEIDELBERG | E183: Accu | F183: 153.5 | H183: 196 | I183: 196.00 | J183: Profit of Rs.42.50/- | K183: 42.50 | L183: 27.69% | M183: Successful | N183: 2019-05-20
A184: 115 | B184: 2018-07-25 | D184: ZEEMEDIA | E184: Accu | F184: 27.5 | H184: 13.10 | I184: 60.00 | J184: Loss of Rs.14.40/- | K184: -14.40 | L184: -52.36% | M184: Unsuccessful | N184: 2018-02-07
A185: 116 | B185: 2018-08-06 | D185: GABRIEL | E185: Accu | F185: 148.5 | H185: 102 | I185: 182.00 | J185: Loss of Rs.46.50/- | K185: =H185-F185 -> -46.50 | L185: =K185/F185 -> -31.31% | M185: Unsuccessful | N185: 2019-07-15
A186: 117 | B186: 2018-08-23 | D186: INDIANHUME | E186: Accu | F186: 285 | H186: 355 | I186: 364.00 | J186: Profit of Rs.70/- | K186: 70.00 | L186: 24.56% | M186: Successful | N186: 2018-12-21
A187: 118 | B187: 2018-08-29 | D187: GRINDWELL | E187: Accu | F187: 525 | H187: 585 | I187: 635.00 | J187: Profit of Rs.60- | K187: =H187-F187 -> 60.00 | L187: =K187/F187 -> 11.43% | M187: Successful | N187: 2019-07-16
A188: 119 | B188: 2018-10-22 | D188: FINPIPE | E188: Accu | F188: 475 | H188: 574 | I188: 570.00 | J188: Target Achieved | K188: 99.00 | L188: 20.84% | M188: Successful | N188: 2018-10-30
A189: 120 | B189: 2018-10-24 | D189: GULFOILLUB | E189: Accu | F189: 707.5 | H189: 872 | I189: 872.00 | J189: Target Achieved | K189: 164.50 | L189: 23.25% | M189: Successful | N189: 2019-01-17
A190: 121 | B190: 2018-10-25 | D190: DBCORP | E190: Accu | F190: 162 | H190: 204 | I190: 209.00 | J190: Profit of Rs.42/- | K190: 42.00 | L190: 25.93% | M190: Successful | N190: 2019-03-15
A191: 122 | B191: 2018-10-26 | D191: RITES | E191: Accu | F191: 240 | H191: 297 | I191: 297.00 | J191: Target Achieved | K191: 57.00 | L191: 23.75% | M191: Successful | N191: 2018-11-13
A192: 123 | B192: 2018-12-05 | D192: BRIGADE | E192: Accu | F192: 202.5 | H192: 255 | I192: 252.00 | J192: Target Achieved | K192: 52.50 | L192: 25.93% | M192: Successful | N192: 2019-03-18 | R192: V
A193: 124 | B193: 2018-12-31 | D193: JKCEMENT | E193: Accu | F193: 710 | H193: 866 | I193: 866.00 | J193: Target Achieved | K193: 156.00 | L193: 21.97% | M193: Successful | N193: 2019-03-29 | R193: V
A194: 125 | B194: 2019-02-26 | D194: MARICO | E194: Accu | F194: 337.25 | H194: 398.5 | I194: 411.00 | J194: Profit of Rs.61.25/- | K194: 61.25 | L194: 18.16% | M194: Successful | N194: 2019-10-22 | R194: V
A195: 126 | B195: 2019-04-04 | D195: ITDCEM | E195: Accu | F195: 130 | H195: 65 | I195: 158.00 | J195: Loss of Rs.65 /- | K195: -65.00 | L195: -50.00% | M195: Unsuccessful | N195: 2019-09-18 | R195: K
A196: 127 | B196: 2017-10-09 | D196: RECLTD | E196: Accu | F196: 141.5 | H196: 183.5 | I196: 210.00 | J196: Profit of Rs.42/- | K196: 42.00 | L196: 29.68% | M196: Successful | N196: 2017-11-03 | R196: K
A197: 128 | B197: 2017-12-05 | D197: ALLCARGO | E197: Accu | F197: 172.00 | H197: 155.25 | I197: 230.00 | J197: Loss of Rs.16.75/- | K197: -16.75 | L197: -9.74% | M197: Unsuccessful | N197: 2019-11-18 | R197: K
A198: 129 | B198: 2018-10-25 | D198: GODREJCP | E198: Accu | F198: 698.5 | H198: 890 | I198: 890.00 | J198: Profit of Rs.191.50/- | K198: 191.50 | L198: 27.42% | M198: Successful | N198: 2021-05-12 | R198: V
A199: 130 | B199: 2017-05-22 | D199: GREAVESCOT | E199: Accu | F199: 127.6 | H199: 138 | I199: 190.00 | J199: Profit of Rs.10.40 | K199: 10.40 | L199: 8.15% | M199: Successful | N199: 2019-11-05 | R199: K
A200: 131 | B200: 2018-02-27 | D200: MOLDTKPAC | E200: Accu | F200: 317 | H200: 382.5 | I200: 398.00 | J200: Profit of Rs.65.5 | K200: 65.50 | L200: 20.66% | M200: Successful | N200: 2021-02-11 | R200: K
A201: 132 | B201: 2018-03-05 | D201: LICHSGFIN | E201: Accu | F201: =510-14.4 -> 495.60 | H201: 350 | I201: 672.00 | J201: Loss of Rs.145.60/- | K201: -145.60 | L201: -29.38% | M201: Unsuccessful | N201: 2020-02-26 | R201: V
A202: 133 | B202: 2018-05-17 | D202: PHILIPCARB | E202: Accu | F202: 230.30 | H202: 102.5 | I202: 348.00 | J202: Loss of Rs.127.80/- | K202: -127.80 | L202: -55.49% | M202: Unsuccessful | N202: 2020-03-06 | R202: V
A203: 134 | B203: 2018-06-07 | D203: KEC | E203: Accu | F203: =342.5-5.1 -> 337.4 | H203: 412.5 | I203: 439.00 | J203: Profit of Rs.75.10 | K203: 75.10 | L203: 22.26% | M203: Successful | N203: 2021-02-03 | R203: K
A204: 135 | B204: 2018-07-04 | D204: ASHOKLEY | E204: Accu | F204: =127.5-5.53 -> 121.97 | H204: 122.50 | I204: 170.00 | J204: Profit of Rs.0.53/- | K204: 0.53 | L204: 0% | M204: Neutral | N204: 2021-08-23 | R204: V
A205: 136 | B205: 2018-07-13 | D205: FCONSUMER | E205: Accu | F205: 46.50 | H205: 17 | I205: 59.00 | J205: Loss of Rs.29.50/- | K205: =H205-F205 -> -29.50 | L205: =K205/F205 -> -63.44% | M205: Unsuccessful | N205: 2020-02-26 | R205: V
A206: 137 | B206: 2018-10-23 | D206: JKPAPER | E206: Accu | F206: 156.5 | H206: 207.5 | I206: 191.00 | J206: Target Achieved | K206: 51.00 | L206: 32.59% | M206: Successful | N206: 2021-06-22 | R206: V
A207: 138 | B207: 2018-12-05 | D207: CCL | E207: Accu | F207: 259.5 | H207: 320 | I207: 320.00 | J207: Target Achieved | K207: 60.50 | L207: 23.31% | M207: Successful | N207: 2021-05-07 | R207: V
A208: 139 | B208: 2018-12-05 | D208: VARROC | E208: Accu | F208: 715 | H208: 445 | I208: 840.00 | J208: Loss of Rs.270/- | K208: -270.00 | L208: -37.76% | M208: Unsuccessful | N208: 2019-12-01 | R208: V
A209: 140 | B209: 2019-01-04 | D209: MGL | E209: Accu | F209: 875 | H209: 1165 | I209: 1185.00 | J209: Profit of Rs.290/- | K209: 290.00 | L209: 33.14% | M209: Successful | N209: 2020-01-17 | R209: V
A210: 141 | B210: 2019-04-04 | D210: COCHINSHIP | E210: Accu | F210: =387-14.63 -> 372.37 | H210: 490 | I210: 490.00 | J210: Target Achieved | K210: 117.63 | L210: 31.59% | M210: Successful | N210: 2020-01-20 | R210: V
A211: 142 | B211: 2019-04-23 | D211: MAHINDCIE | E211: Buy | F211: 220 | H211: 127.5 | I211: 284.00 | J211: Loss of Rs.92.50/- | K211: -92.50 | L211: -42.05% | M211: Unsuccessful | N211: 2020-03-06 | R211: V
A212: 143 | B212: 2019-06-06 | D212: RADICO | E212: Buy | F212: 332.8 | H212: 405 | I212: 419.00 | J212: Profit of Rs.72.20/- | K212: 72.20 | L212: 21.69% | M212: Successful | N212: 2020-01-30 | R212: K
A213: 144 | B213: 2019-06-25 | D213: M&MFIN | E213: Accu | F213: 386 | H213: 395.00 | I213: 452.00 | J213: Profit of Rs.9/- | K213: 9.00 | L213: 2% | M213: Neutral | N213: 2020-02-07 | R213: K
A214: 145 | B214: 2019-08-30 | D214: INDHOTEL | E214: Accu | F214: 137.5 | H214: 138.50 | I214: 190.00 | J214: Profit of Rs.1/- | K214: =H214-F214 -> 1.00 | L214: =K214/F214 -> 1% | M214: Neutral | N214: 2021-08-24 | R214: V
A215: 146 | B215: 2019-09-23 | D215: KNRCON | E215: Accu | F215: 235 | H215: 295 | I215: 296.00 | J215: Profit of Rs.60/- | K215: =H215-F215 -> 60.00 | L215: =K215/F215 -> 25.53% | M215: Successful | N215: 2020-01-14 | R215: K
A216: 147 | B216: 2019-10-14 | D216: KEC$ | E216: Accu | F216: 277.5 | H216: 333 | I216: 333.00 | J216: Profit of Rs.55.50/- | K216: 55.50 | L216: 20.00% | M216: Successful | N216: 2020-01-16 | R216: V
A217: 148 | B217: 2019-10-14 | D217: MGL$ | E217: Accu | F217: 930 | H217: 1165 | I217: 1200.00 | J217: Profit of Rs.235/- | K217: 235.00 | L217: 25.27% | M217: Successful | N217: 2020-01-17 | R217: K
A218: 149 | B218: 2019-10-15 | D218: JKPAPER$ | E218: Accu | F218: 111.00 | H218: 141 | I218: 141.00 | J218: Profit of Rs.30/- | K218: 30.00 | L218: 27.03% | M218: Successful | N218: 2021-05-12 | R218: K
A219: 150 | B219: 2019-10-15 | D219: RADICO$ | E219: Accu | F219: 296.00 | H219: 370 | I219: 370.00 | J219: Target Achieved | K219: 74.00 | L219: 25.00% | M219: Successful | N219: 2020-01-23 | R219: K
A220: 151 | B220: 2019-10-16 | D220: MOLDTKPAC$ | E220: Accu | F220: 300.00 | H220: 382.5 | I220: 344.00 | J220: Profit of Rs.82.5 | K220: 82.50 | L220: 27.50% | M220: Successful | N220: 2021-02-11 | R220: K
A221: 152 | B221: 2020-01-02 | D221: PSPPROJECT | E221: Accu | F221: 490-500 | I221: 590.00 | J221: Open | M221: Open | R221: K
A222: 153 | B222: 2020-05-15 | D222: BEL | E222: Accu | F222: 67.50 | H222: 86 | I222: 86.00 | J222: Profit of Rs.18.50/- | K222: =H222-F222 -> 18.50 | L222: =K222/F222 -> 27.41% | M222: Successful | N222: 2020-06-26 | R222: K
A223: 154 | B223: 2020-07-23 | D223: RITES | E223: Accu | F223: 231.00 | H223: 281 | I223: 281.00 | J223: Target Achieved | K223: 50.00 | L223: 21.65% | M223: Successful | N223: 2021-06-11 | R223: K
A224: 155 | B224: 2020-09-18 | D224: IEX | E224: Accu | F224: 206 | H224: 248 | I224: 248.00 | J224: Target Achieved | K224: 42.00 | L224: 20.39% | M224: Successful | N224: 2021-01-18 | R224: K
... 19 more rows
